Workbook

Sheet Pamatdati
A1: =COLUMN(O1)-COLUMN(F1) -> 9 | B1: xmlIdent | C1: xmlClmn
B3: GpTips | C3: =COLUMN(F3) -> 6 | F3: Pamatdati | H3: Biedrības, nodibinājuma un arodbiedrības gada pārskats | K3: $D$1:$J$33 | O3: Tikai salīdzināšanai
B5: NmrKods | C5: =COLUMN(H5) -> 8 | F5: Reģistrācijas numurs* | K5: Decimālais atdalītais | M5: =MID(1/10,2,1) -> . | O5: Reģistrācijas numurs
B6: TaxPayerName | C6: =COLUMN(H6) -> 8 | F6: Nosaukums | K6: Tūkstošu atdalītais | O6: Nosaukums
B7: AddressForResponse | C7: =COLUMN(H7) -> 8 | F7: Adrese | O7: Adrese
B8: TaksNo | C8: =COLUMN(H8) -> 8 | F8: Taksācijas periods no* | K8: EDS GP lapas gari nosaukumi | M8: Jā | O8: Taksācijas periods no
B9: TaksLidz | C9: =COLUMN(H9) -> 8 | F9: Taksācijas periods līdz* | O9: Taksācijas periods līdz
F11: Iesniedzamā informācija | I11: Papildus parametri
B13: IrPamatInformacija | C13: =COLUMN(F13) -> 6 | G13: Pamatinformācija | K13: Datu pūslmas virziens | O13: x | P13: Pamatinformācija
B14: IrAktivi | C14: 6 | G14: Bilances aktīvi | K14: 2. uz EDS XML no šī rīka | O14: x | P14: Bilances aktīvi
B15: IrPasivi | C15: 6 | G15: Bilances pasīvi | O15: x | P15: Bilances pasīvi
B16: PZAType,NPPType | C16: =COLUMN(F16) -> 6 | G16: Peļņas vai zaudējumu aprēķins | O16: x | P16: Peļņas vai zaudējumu aprēķins
B17: IrSadalaNaudasPlusmasParskats | C17: =COLUMN(F17) -> 6 | G17: Naudas plūsmas pārskats | P17: Naudas plūsmas pārskats
B18: IrSadalaKapitalaRezervjuIzmainuParskats | C18: =COLUMN(F18) -> 6 | G18: Pašu kapitāla izmaiņu pārskats | P18: Pašu kapitāla izmaiņu pārskats
B19: IrSadalaPielikums | C19: =COLUMN(F19) -> 6 | G19: Fin. Pārsk. pielikums vai piezīmes | P19: Finanšu pārskata pielikums vai piezīmes
B20: IrSadalaRevidents | C20: =COLUMN(F20) -> 6 | G20: Informācija par revidentu | P20: Informācija par revidentu
F22: Finanšu pārskata pielikums vai piezīmes
B24: Piezimes | C24: =COLUMN(F24) -> 6 | G24: Mikro Mikro | H24: Attēlot tikai piezīmes | P24: Mikro | Q24: Attēlot tikai piezīmes
B25: Saisinats | C25: 6 | G25: Mikro | H25: Attēlot saīsināto finanšu pārskata pielikumu | P25: Mazie | Q25: Attēlot saīsināto finanšu pārskata pielikumu
C26: 6 | G26: Mazie | H26: Ja nekas nav atzīmēts | P26: Videjie | Q26: Ja nekas nav atzimēts
B27: RaditVisu | C27: 6 | G27: Vidējie | H27: Rādīt visus laukus | P27: Lielie | Q27: Rādīt visus laukus
F29: Sagatavotājs
B31: Sagatavotajs | C31: =COLUMN(H31) -> 8 | F31: Vārds, uzvārds | O31: Vārds, uzvārds
B32: Epasts | C32: 8 | F32: E-pasts* | O32: E-pasts*
B33: Talrunis | C33: 8 | F33: Tālrunis | O33: Tālrunis
B35: Id | C35: =COLUMN(I35) -> 9 | F35: EDS Dokumenta numurs | O35: EDS Dokumenta numurs
B36: UID | C36: =COLUMN(I36) -> 9 | F36: UID | O36: UID
B37: Signer | C37: =COLUMN(I37) -> 9 | F37: Parakstītajs | O37: Parakstītajs
B38: Timestamp | C38: 9 | F38: Datums un laiks | O38: Datums un laiks

Sheet Pamatinformācija (hidden)
A1: =COLUMN(Y1)-COLUMN(H1) -> 17 | B1: xlGr | C1: xmlIdent | D1: xmlClmn | E1: width
H3: Pamatinformācija | W3: =IF(Pamatdati!$H$5=Pamatdati!$Q$5,IF(Pamatdati!$H$8-1=Pamatdati!$Q$9,"IPG","PG"),"N") -> PG | Y3: Tikai salīdzināšanai
B4: =B5 -> G
B5: =B6 -> G | I5: Pamatojums saīsināta pārskata perioda iesniegšanai | Z5: Pamatojums saīsināta pārskata perioda iesniegšanai
B6: =IF(OR(I6<>"",Z6<>""),"","G") -> G | C6: Pamatojums | D6: =COLUMN(I6) -> 9 | E6: =CLEAN(LEFT(I6,LEN(I6)/2)) -> 
B7: =B6 -> G | E7: =CLEAN(RIGHT(I6,LEN(I6)/2)) -> 
C9: Darbinieki | D9: =COLUMN(P9) -> 16 | H9: 5 | I9: Vidējais darbinieku skaits* | Y9: 5 | Z9: Vidējais darbinieku skaits*
B10: =B11 -> G
B11: =IF(OR(I11<>"",Z11<>""),"","G") -> G | C11: SlegBilance | D11: =COLUMN(I11) -> 9 | H11: 7 | J11: Likvidācijas slēguma bilance | Y11: 7 | AA11: Likvidācijas slēguma bilance
B12: =B13 -> G
B13: =IF(OR(I13<>"",Z13<>""),"","G") -> G | C13: SaimnParskats | D13: =COLUMN(I13) -> 9 | H13: 9 | J13: Saimnieciskās darbības pārskats (iesniedz tikai tad, ja uzņēmums uz laiku pārtrauc saimniecisko darbību) | Y13: 9 | AA13: Saimnieciskās darbības pārskats (iesniedz tikai tad, ja uzņēmums uz laiku pārtrauc saimniecisko darbību)
B14: =IF(OR(I14<>"",Z14<>""),"","G") -> G | C14: NavSamazinasana | D14: =COLUMN(I14) -> 9 | J14: Reorganizācijas, darbības izbeigšanas (likvidācijas) vai apturēšanas rezultātā nav notikusi aktīvu vērtības samazināšanās | AA14: Reorganizācijas, darbības izbeigšanas (likvidācijas) vai apturēšanas rezultātā nav notikusi aktīvu vērtības samazināšanās
B15: =B16 -> G
B16: =IF(OR(I16<>"",Z16<>""),"","G") -> G | C16: StarptStandarti | D16: =COLUMN(I16) -> 9 | H16: 10 | J16: Sagatavots atbilstoši starptautiskajiem grāmatvedības standartiem | Y16: 10 | AA16: Sagatavots atbilstoši starptautiskajiem grāmatvedības standartiem
B17: =B16 -> G | C17: NoapalosanasPakape | D17: =COLUMN(P17) -> 16 | J17: Noapaļošanas pakāpe gada pārskata summās | AA17: Noapaļošanas pakāpe gada pārskata summās
B18: =B19 -> G
B19: =IF(OR(I19<>"",Z19<>""),"","G") -> G | C19: AtsevStarptStandarti | D19: =COLUMN(I19) -> 9 | H19: 11 | J19: Atsevišķi posteņi (arī iepriekšējā pārskata gada posteņi) sagatavoti atbilstoši starptautiskajiem grāmatvedības standartiem | Y19: 11 | AA19: Atsevišķi posteņi (arī iepriekšējā pārskata gada posteņi) sagatavoti atbilstoši starptautiskajiem grāmatvedības standartiem
C21: UznemVeids | D21: =COLUMN(P21) -> 16 | H21: 12 | I21: Uzņēmējdarbības forma | Y21: 12 | Z21: Uzņēmējdarbības forma
C23: GramVeids | D23: =COLUMN(P23) -> 16 | H23: 13 | I23: Persona, kura kārto grāmatvedības uzskaiti* | Y23: 13 | Z23: Persona, kura kārto grāmatvedības uzskaiti*
B24: =IF(OR(P24<>"",AG24<>""),"","G") -> G | C24: GramNmrKods | D24: =COLUMN(P24) -> 16 | I24: Grāmatvedības pakalpojumu sniedzēja sabiedrības reģistrācijas numurs | Z24: Grāmatvedības pakalpojumu sniedzēja sabiedrības reģistrācijas numurs
B25: =B24 -> G | C25: GramNosaukums | D25: =COLUMN(P25) -> 16 | I25: Grāmatvedības pakalpojumu sniedzēja sabiedrības nosaukums | Z25: Grāmatvedības pakalpojumu sniedzēja sabiedrības nosaukums
C26: GramVardsUzvards | D26: =COLUMN(P26) -> 16 | I26: Personas vārds, uzvārds | Z26: Personas vārds, uzvārds
C27: GramAmats | D27: =COLUMN(P27) -> 16 | I27: Personas amats* | Z27: Personas amats*
C29: DatumsPub | D29: =COLUMN(P29) -> 16 | H29: 14 | I29: Gada pārskata apstiprināšanas datums* | Y29: 14 | Z29: Gada pārskata apstiprināšanas datums*
C30: AizpAmats | D30: =COLUMN(P30) -> 16 | I30: Amatpersonas amats | Z30: Amatpersonas amats
B31: =B32 -> G
B32: =IF(OR(I32<>"",Z32<>""),"","G") -> G | C32: MeitasSabiedriba | D32: =COLUMN(I32) -> 9 | H32: 15 | J32: Publiskas sabiedrības meitas sabiedrība | Y32: 15 | AA32: Publiskas sabiedrības meitas sabiedrība

Sheet Aktīvi (hidden)
A1: =COLUMN(P1)-COLUMN(G1) -> 9 | B1: xmlIdent | C1: xmlClmn | D1: xlGr
G3: Bilances aktīvi | N3: =IF(Pamatdati!$H$5=Pamatdati!$Q$5,IF(Pamatdati!$H$8-1=Pamatdati!$Q$9,"IPG","PG"),"N") -> PG | P3: Tikai salīdzināšanai
G5: Posteņa nosaukums | J5: Rindas kods | K5: Pārskata gada beigās | L5: Iepriekšējā pārskata gada beigās | P5: Posteņa nosaukums | S5: Rindas kods | T5: Pārskata gada beigās | U5: Iepriekšējā pārskata gada beigās
G6: Ilgtermiņa ieguldījumi | J6: 10 | P6: Ilgtermiņa ieguldījumi | S6: 10
H7: I. Nemateriālie ieguldījumi: | J7: 20 | Q7: I. Nemateriālie ieguldījumi: | S7: 20
B8: R30 | C8: =COLUMN(K8) -> 11 | D8: =IF(AND(OR(K8="",K8=0),OR(L8="",L8=0),OR(T8="",T8=0),OR(U8="",U8=0)),"G","") -> G | H8: 1. Attīstības izmaksas. | J8: 30 | Q8: 1. Attīstības izmaksas. | S8: 30
B9: R40 | C9: =COLUMN(K9) -> 11 | D9: =IF(AND(OR(K9="",K9=0),OR(L9="",L9=0),OR(T9="",T9=0),OR(U9="",U9=0)),"G","") -> G | H9: 2. Koncesijas, patenti, licences, preču zīmes un tamlīdzīgas tiesības. | J9: 40 | Q9: 2. Koncesijas, patenti, licences, preču zīmes un tamlīdzīgas tiesības. | S9: 40
B10: R50 | C10: 11 | D10: =IF(AND(OR(K10="",K10=0),OR(L10="",L10=0),OR(T10="",T10=0),OR(U10="",U10=0)),"G","") -> G | H10: 3. Citi nemateriālie ieguldījumi. | J10: 50 | Q10: 3. Citi nemateriālie ieguldījumi. | S10: 50
B11: R60 | C11: 11 | D11: G | H11: 4. Nemateriālā vērtība. | J11: 60 | Q11: 4. Nemateriālā vērtība. | S11: 60
B12: R70 | C12: 11 | D12: G | H12: 5. Avansa maksājumi par nemateriāliem ieguldījumiem. | J12: 70 | Q12: 5. Avansa maksājumi par nemateriāliem ieguldījumiem. | S12: 70
D13: S | H13: I. Nemateriālie ieguldījumi kopā | J13: 80 | K13: =SUM(K8:K12) -> 0 | L13: =SUM(L8:L12) -> 0 | Q13: I. Nemateriālie ieguldījumi kopā | S13: 80 | T13: =SUM(T8:T12) -> 0 | U13: =SUM(U8:U12) -> 0
H15: II. Pamatlīdzekļi: | J15: 90 | Q15: II. Pamatlīdzekļi: | S15: 90
D16: =IF(AND(OR(K16="",K16=0),OR(L16="",L16=0),OR(T16="",T16=0),OR(U16="",U16=0)),"G","") -> G | H16: 1. Nekustamie īpašumi: | J16: 100 | K16: =SUM(K17:K18) -> 0 | L16: =SUM(L17:L18) -> 0 | Q16: 1. Nekustamie īpašumi: | S16: 100 | T16: =SUM(T17:T18) -> 0 | U16: =SUM(U17:U18) -> 0
B17: R110 | C17: =COLUMN(K17) -> 11 | D17: G | H17: a) zemesgabali, ēkas un inženierbūves | J17: 110 | Q17: a) zemesgabali, ēkas un inženierbūves | S17: 110
B18: R120 | C18: 11 | D18: G | H18: b) ieguldījuma īpašumi | J18: 120 | Q18: b) ieguldījuma īpašumi | S18: 120
D19: G | H19: 2. Dzīvnieki un augi: | J19: 130 | K19: =SUM(K20:K21) -> 0 | L19: =SUM(L20:L21) -> 0 | Q19: 2. Dzīvnieki un augi: | S19: 130 | T19: =SUM(T20:T21) -> 0 | U19: =SUM(U20:U21) -> 0
B20: R140 | C20: =COLUMN(K20) -> 11 | D20: G | H20: a) darba vai produktīvie dzīvnieki un ilggadīgie stādījumi | J20: 140 | Q20: a) darba vai produktīvie dzīvnieki un ilggadīgie stādījumi | S20: 140
B21: R150 | C21: 11 | D21: G | H21: b) bioloģiskie aktīvi | J21: 150 | Q21: b) bioloģiskie aktīvi | S21: 150
B22: R160 | C22: 11 | D22: G | H22: 3. Ilgtermiņa ieguldījumi nomātajos pamatlīdzekļos. | J22: 160 | Q22: 3. Ilgtermiņa ieguldījumi nomātajos pamatlīdzekļos. | S22: 160
B23: R170 | C23: 11 | D23: G | H23: 4. Ilgtermiņa ieguldījumi publiskā partnera pamatlīdzekļos | J23: 170 | Q23: 4. Ilgtermiņa ieguldījumi publiskā partnera pamatlīdzekļos | S23: 170
B24: R180 | C24: 11 | D24: G | H24: 5. Tehnoloģiskās iekārtas un ierīces. | J24: 180 | Q24: 5. Tehnoloģiskās iekārtas un ierīces. | S24: 180
B25: R190 | C25: 11 | D25: G | H25: 6. Pārējie pamatlīdzekļi un inventārs. | J25: 190 | Q25: 6. Pārējie pamatlīdzekļi un inventārs. | S25: 190
B26: R200 | C26: 11 | D26: G | H26: 7. Pamatlīdzekļu izveidošana un nepabeigto celtniecības objektu izmaksas. | J26: 200 | Q26: 7. Pamatlīdzekļu izveidošana un nepabeigto celtniecības objektu izmaksas. | S26: 200
B27: R210 | C27: 11 | D27: G | H27: 8. Avansa maksājumi par pamatlīdzekļiem. | J27: 210 | Q27: 8. Avansa maksājumi par pamatlīdzekļiem. | S27: 210
D28: S | H28: II. Pamatlīdzekļi kopā | J28: 220 | K28: =SUM(K16,K19,K22:K27) -> 0 | L28: =SUM(L16,L19,L22:L27) -> 0 | Q28: II. Pamatlīdzekļi kopā | S28: 220 | T28: =SUM(T16,T19,T22:T27) -> 0 | U28: =SUM(U16,U19,U22:U27) -> 0
D29: S
D30: S | H30: III. Ilgtermiņa finanšu ieguldījumi: | J30: 230 | Q30: III. Ilgtermiņa finanšu ieguldījumi: | S30: 230
B31: R240 | C31: =COLUMN(K31) -> 11 | D31: =IF(AND(OR(K31="",K31=0),OR(L31="",L31=0),OR(T31="",T31=0),OR(U31="",U31=0)),"G","") -> G | H31: 1. Līdzdalība radniecīgo sabiedrību kapitālā. | J31: 240 | Q31: 1. Līdzdalība radniecīgo sabiedrību kapitālā. | S31: 240
B32: R250 | C32: 11 | D32: G | H32: 2. Aizdevumi radniecīgajām sabiedrībām. | J32: 250 | Q32: 2. Aizdevumi radniecīgajām sabiedrībām. | S32: 250
B33: R260 | C33: 11 | D33: G | H33: 3. Līdzdalība asociēto sabiedrību kapitālā. | J33: 260 | Q33: 3. Līdzdalība asociēto sabiedrību kapitālā. | S33: 260
B34: R270 | C34: 11 | D34: G | H34: 4. Aizdevumi asociētajām sabiedrībām. | J34: 270 | Q34: 4. Aizdevumi asociētajām sabiedrībām. | S34: 270
B35: R280 | C35: 11 | D35: G | H35: 5. Pārējie vērtspapīri un ieguldījumi. | J35: 280 | Q35: 5. Pārējie vērtspapīri un ieguldījumi. | S35: 280
B36: R290 | C36: 11 | D36: G | H36: 6. Pārējie aizdevumi un citi ilgtermiņa debitori. | J36: 290 | Q36: 6. Pārējie aizdevumi un citi ilgtermiņa debitori. | S36: 290
B37: R300 | C37: 11 | D37: G | H37: 7. Pašu akcijas un daļas. | J37: 300 | Q37: 7. Pašu akcijas un daļas. | S37: 300
B38: R310 | C38: 11 | D38: G | H38: 8. Aizdevumi akcionāriem vai dalībniekiem un vadībai. | J38: 310 | Q38: 8. Aizdevumi akcionāriem vai dalībniekiem un vadībai. | S38: 310
B39: R320 | C39: 11 | D39: G | H39: 9. Atliktā nodokļa aktīvi | J39: 320 | Q39: 9. Atliktā nodokļa aktīvi | S39: 320
D40: S | H40: III. Ilgtermiņa finanšu ieguldījumi kopā | J40: 330 | K40: =SUM(K31:K39) -> 0 | L40: =SUM(L31:L39) -> 0 | Q40: III. Ilgtermiņa finanšu ieguldījumi kopā | S40: 330 | T40: =SUM(T31:T39) -> 0 | U40: =SUM(U31:U39) -> 0
D41: S
D42: S | G42: Ilgtermiņa ieguldījumi kopā | J42: 340 | K42: =SUM(K13,K28,K40) -> 0 | L42: =SUM(L13,L28,L40) -> 0 | P42: Ilgtermiņa ieguldījumi kopā | S42: 340 | T42: =SUM(T13,T28,T40) -> 0 | U42: =SUM(U13,U28,U40) -> 0
D43: S
D44: S | G44: Apgrozāmie līdzekļi | J44: 350 | P44: Apgrozāmie līdzekļi | S44: 350
D45: S | H45: I. Krājumi: | J45: 360 | Q45: I. Krājumi: | S45: 360
B46: R370 | C46: =COLUMN(K46) -> 11 | D46: =IF(AND(OR(K46="",K46=0),OR(L46="",L46=0),OR(T46="",T46=0),OR(U46="",U46=0)),"G","") -> G | H46: 1. Izejvielas, pamatmateriāli un palīgmateriāli. | J46: 370 | Q46: 1. Izejvielas, pamatmateriāli un palīgmateriāli. | S46: 370
B47: R380 | C47: 11 | D47: G | H47: 2. Nepabeigtie ražojumi un pasūtījumi. | J47: 380 | Q47: 2. Nepabeigtie ražojumi un pasūtījumi. | S47: 380
B48: R390 | C48: 11 | D48: G | H48: 3. Gatavie ražojumi un preces pārdošanai. | J48: 390 | Q48: 3. Gatavie ražojumi un preces pārdošanai. | S48: 390
B49: R400 | C49: 11 | D49: G | H49: 4. Avansa maksājumi par krājumiem. | J49: 400 | Q49: 4. Avansa maksājumi par krājumiem. | S49: 400
D50: G | H50: 5. Dzīvnieki un augi. | J50: 410 | K50: =SUM(K51:K52) -> 0 | L50: =SUM(L51:L52) -> 0 | Q50: 5. Dzīvnieki un augi. | S50: 410 | T50: =SUM(T51:T52) -> 0 | U50: =SUM(U51:U52) -> 0
B51: R420 | C51: =COLUMN(K51) -> 11 | D51: G | H51: a) dzīvnieki un viengadīgie stādījumi | J51: 420 | Q51: a) dzīvnieki un viengadīgie stādījumi | S51: 420
B52: R430 | C52: 11 | D52: G | H52: b) bioloģiskie aktīvi | J52: 430 | Q52: b) bioloģiskie aktīvi | S52: 430
B53: R440 | C53: 11 | D53: G | H53: 6. Pārdošanai turēti ilgtermiņa ieguldījumi | J53: 440 | Q53: 6. Pārdošanai turēti ilgtermiņa ieguldījumi | S53: 440
D54: S | H54: I. Krājumi kopā | J54: 450 | K54: =SUM(K46:K50,K53) -> 0 | L54: =SUM(L46:L50,L53) -> 0 | Q54: I. Krājumi kopā | S54: 450 | T54: =SUM(T46:T50,T53) -> 0 | U54: =SUM(U46:U50,U53) -> 0
D55: S
D56: S | H56: II. Debitori: | J56: 460 | Q56: II. Debitori: | S56: 460
B57: R470 | C57: =COLUMN(K57) -> 11 | D57: =IF(AND(OR(K57="",K57=0),OR(L57="",L57=0),OR(T57="",T57=0),OR(U57="",U57=0)),"G","") -> G | H57: 1. Pircēju un pasūtītāju parādi. | J57: 470 | Q57: 1. Pircēju un pasūtītāju parādi. | S57: 470
B58: R480 | C58: 11 | D58: G | H58: 2. Radniecīgo sabiedrību parādi. | J58: 480 | Q58: 2. Radniecīgo sabiedrību parādi. | S58: 480
B59: R490 | C59: 11 | D59: G | H59: 3. Asociēto sabiedrību parādi. | J59: 490 | Q59: 3. Asociēto sabiedrību parādi. | S59: 490
B60: R500 | C60: 11 | D60: G | H60: 4. Citi debitori. | J60: 500 | Q60: 4. Citi debitori. | S60: 500
B61: R510 | C61: 11 | D61: G | H61: 5. Neiemaksātās daļas sabiedrības kapitālā. | J61: 510 | Q61: 5. Neiemaksātās daļas sabiedrības kapitālā. | S61: 510
B62: R520 | C62: 11 | D62: G | H62: 6. Īstermiņa aizdevumi akcionāriem vai dalībniekiem un vadībai. | J62: 520 | Q62: 6. Īstermiņa aizdevumi akcionāriem vai dalībniekiem un vadībai. | S62: 520
B63: R530 | C63: 11 | D63: G | H63: 7. Nākamo periodu izmaksas. | J63: 530 | Q63: 7. Nākamo periodu izmaksas. | S63: 530
B64: R540 | C64: 11 | D64: G | H64: 8. Uzkrātie ieņēmumi. | J64: 540 | Q64: 8. Uzkrātie ieņēmumi. | S64: 540
D65: S | H65: II. Debitori kopā | J65: 550 | K65: =SUM(K57:K64) -> 0 | L65: =SUM(L57:L64) -> 0 | Q65: II. Debitori kopā | S65: 550 | T65: =SUM(T57:T64) -> 0 | U65: =SUM(U57:U64) -> 0
D66: S
D67: S | H67: III. Īstermiņa finanšu ieguldījumi: | J67: 560 | Q67: III. Īstermiņa finanšu ieguldījumi: | S67: 560
B68: R570 | C68: =COLUMN(K68) -> 11 | D68: =IF(AND(OR(K68="",K68=0),OR(L68="",L68=0),OR(T68="",T68=0),OR(U68="",U68=0)),"G","") -> G | H68: 1. Līdzdalība radniecīgo sabiedrību kapitālā. | J68: 570 | Q68: 1. Līdzdalība radniecīgo sabiedrību kapitālā. | S68: 570
B69: R580 | C69: 11 | D69: G | H69: 2. Pašu akcijas un daļas. | J69: 580 | Q69: 2. Pašu akcijas un daļas. | S69: 580
B70: R590 | C70: 11 | D70: G | H70: 3. Pārējie vērtspapīri un līdzdalība kapitālos. | J70: 590 | Q70: 3. Pārējie vērtspapīri un līdzdalība kapitālos. | S70: 590
B71: R600 | C71: 11 | D71: G | H71: 4. Atvasinātie finanšu instrumenti. | J71: 600 | Q71: 4. Atvasinātie finanšu instrumenti. | S71: 600
D72: S | H72: III. Īstermiņa finanšu ieguldījumi kopā | J72: 610 | K72: =SUM(K68:K71) -> 0 | L72: =SUM(L68:L71) -> 0 | Q72: III. Īstermiņa finanšu ieguldījumi kopā | S72: 610 | T72: =SUM(T68:T71) -> 0 | U72: =SUM(U68:U71) -> 0
D73: S
B74: R620 | C74: =COLUMN(K74) -> 11 | D74: S | H74: IV. Nauda. | J74: 620 | Q74: IV. Nauda. | S74: 620
D75: S
D76: S | G76: Apgrozāmie līdzekļi | J76: 630 | K76: =SUM(K54,K65,K72,K74) -> 0 | L76: =SUM(L54,L65,L72,L74) -> 0 | P76: Apgrozāmie līdzekļi | S76: 630 | T76: =SUM(T54,T65,T72,T74) -> 0 | U76: =SUM(U54,U65,U72,U74) -> 0
G78: BILANCE | J78: 640 | K78: =SUM(K42,K76) -> 0 | L78: =SUM(L42,L76) -> 0 | P78: BILANCE | S78: 640 | T78: =SUM(T42,T76) -> 0 | U78: =SUM(U42,U76) -> 0
K80: =K78-Pasīvi!K70 -> 0 | L80: =L78-Pasīvi!L70 -> 0 | T80: =T78-Pasīvi!T70 -> 0 | U80: =U78-Pasīvi!U70 -> 0

Sheet Pasīvi (hidden)
A1: =COLUMN(P1)-COLUMN(G1) -> 9 | B1: xmlIdent | C1: xmlClmn | D1: xlGr
G3: Bilances pasīvi | N3: =IF(Pamatdati!$H$5=Pamatdati!$Q$5,IF(Pamatdati!$H$8-1=Pamatdati!$Q$9,"IPG","PG"),"N") -> PG | P3: Tikai salīdzināšanai
G5: Posteņa nosaukums | J5: Rindas kods | K5: Pārskata gada beigās | L5: Iepriekšējā pārskata gada beigās | P5: Posteņa nosaukums | S5: Rindas kods | T5: Pārskata gada beigās | U5: Iepriekšējā pārskata gada beigās
G6: Pašu kapitāls: | J6: 650 | P6: Pašu kapitāls: | S6: =J6 -> 650
B7: ="R"&J7 -> R660 | C7: =COLUMN(K7) -> 11 | D7: =IF(AND(OR(K7="",K7=0),OR(L7="",L7=0),OR(T7="",T7=0),OR(U7="",U7=0)),"G","") -> G | H7: 1. Akciju vai daļu kapitāls (pamatkapitāls). | J7: 660 | Q7: 1. Akciju vai daļu kapitāls (pamatkapitāls). | S7: 660
B8: ="R"&J8 -> R670 | C8: 11 | D8: =IF(AND(OR(K8="",K8=0),OR(L8="",L8=0),OR(T8="",T8=0),OR(U8="",U8=0)),"G","") -> G | H8: 2. Akciju (daļu) emisijas uzcenojums. | J8: 670 | Q8: 2. Akciju (daļu) emisijas uzcenojums. | S8: 670
B9: R680 | C9: 11 | D9: =IF(AND(OR(K9="",K9=0),OR(L9="",L9=0),OR(T9="",T9=0),OR(U9="",U9=0)),"G","") -> G | H9: 3. Ilgtermiņa ieguldījumu pārvērtēšanas rezerve. | J9: 680 | Q9: 3. Ilgtermiņa ieguldījumu pārvērtēšanas rezerve. | S9: 680
B10: R690 | C10: 11 | D10: =IF(AND(OR(K10="",K10=0),OR(L10="",L10=0),OR(T10="",T10=0),OR(U10="",U10=0)),"G","") -> G | H10: 4. Finanšu instrumentu patiesās vērtības rezerve. | J10: 690 | Q10: 4. Finanšu instrumentu patiesās vērtības rezerve. | S10: 690
H12: 5. Rezerves: | J12: 700 | Q12: 5. Rezerves: | S12: =J12 -> 700
B13: ="R"&J13 -> R710 | C13: =COLUMN(K13) -> 11 | D13: =IF(AND(OR(K13="",K13=0),OR(L13="",L13=0),OR(T13="",T13=0),OR(U13="",U13=0)),"G","") -> G | H13: a) likumā noteiktās rezerves; | J13: 710 | Q13: a) likumā noteiktās rezerves; | S13: 710
B14: R720 | C14: 11 | D14: G | H14: b) rezerves pašu akcijām vai daļām; | J14: 720 | Q14: b) rezerves pašu akcijām vai daļām; | S14: 720
B15: R730 | C15: 11 | D15: G | H15: c) sabiedrības statūtos noteiktās rezerves; | J15: 730 | Q15: c) sabiedrības statūtos noteiktās rezerves; | S15: 730
B16: R740 | C16: 11 | D16: G | H16: d) rezerves, kas novirzītas attīstībai; | J16: 740 | Q16: d) rezerves, kas novirzītas attīstībai; | S16: 740
B17: R760 | C17: 11 | D17: G | H17: e) pārējās rezerves. | J17: 760 | Q17: e) pārējās rezerves. | S17: 760
D18: S | H18: Rezerves kopā | J18: 770 | K18: =SUM(K13:K17) -> 0 | L18: =SUM(L13:L17) -> 0 | Q18: Rezerves kopā | S18: 770 | T18: =SUM(T13:T17) -> 0 | U18: =SUM(U13:U17) -> 0
D19: S
B20: ="R"&J20 -> R780 | C20: =COLUMN(K20) -> 11 | D20: S | H20: 6. Iepriekšējo gadu nesadalītā peļņa vai nesegtie zaudējumi | J20: 780 | Q20: 6. Iepriekšējo gadu nesadalītā peļņa vai nesegtie zaudējumi | S20: =J20 -> 780
B21: R790 | C21: 11 | D21: S | H21: 7. Pārskata gada peļņa vai zaudējumi | J21: 790 | Q21: 7. Pārskata gada peļņa vai zaudējumi | S21: 790
B22: R--- | C22: 11 | D22: G | H22: 8. Mazākumakcionāru līdzdalības daļa | J22: =IF(Pamatdati!H3="Konsolidētais uzņēmuma gada pārskats",800,"---") -> --- | Q22: 8. Mazākumakcionāru līdzdalības daļa | S22: ---
D23: S
D24: S | G24: Pašu kapitāls kopā | J24: =IF(Pamatdati!H3="Konsolidētais uzņēmuma gada pārskats",J22+10,J21+10) -> 800 | K24: =SUM(K7:K10,K18,K20:K21) -> 0 | L24: =SUM(L7:L10,L18,L20:L21) -> 0 | P24: Pašu kapitāls kopā | S24: =J24 -> 800 | T24: =SUM(T7:T10,T18,T20:T21) -> 0 | U24: =SUM(U7:U10,U18,U20:U21) -> 0
D25: S
D26: S | G26: Uzkrājumi: | J26: =J24+10 -> 810 | P26: Uzkrājumi: | S26: =J26 -> 810
B27: ="R"&J27 -> R820 | C27: =COLUMN(K27) -> 11 | D27: =IF(AND(OR(K27="",K27=0),OR(L27="",L27=0),OR(T27="",T27=0),OR(U27="",U27=0)),"G","") -> G | H27: 1. Uzkrājumi pensijām un tamlīdzīgām saistībām. | J27: =J26+10 -> 820 | Q27: 1. Uzkrājumi pensijām un tamlīdzīgām saistībām. | S27: 820
B28: R830 | C28: 11 | D28: =IF(AND(OR(K28="",K28=0),OR(L28="",L28=0),OR(T28="",T28=0),OR(U28="",U28=0)),"G","") -> G | H28: 2. Uzkrājumi paredzamajiem nodokļiem. | J28: =J27+10 -> 830 | Q28: 2. Uzkrājumi paredzamajiem nodokļiem. | S28: 830
B29: R840 | C29: 11 | D29: =IF(AND(OR(K29="",K29=0),OR(L29="",L29=0),OR(T29="",T29=0),OR(U29="",U29=0)),"G","") -> G | H29: 3. Citi uzkrājumi. | J29: 840 | Q29: 3. Citi uzkrājumi. | S29: 840
D30: S
D31: S | G31: Uzkrājumi kopā | J31: =J29+10 -> 850 | K31: =SUM(K27:K29) -> 0 | L31: =SUM(L27:L29) -> 0 | P31: Uzkrājumi kopā | S31: =J31 -> 850 | T31: =SUM(T27:T29) -> 0 | U31: 0
D32: S
D33: S | G33: Ilgtermiņa kreditori: | J33: =J31+10 -> 860 | P33: Ilgtermiņa kreditori: | S33: =J33 -> 860
B34: ="R"&J34 -> R870 | C34: =COLUMN(K34) -> 11 | D34: =IF(AND(OR(K34="",K34=0),OR(L34="",L34=0),OR(T34="",T34=0),OR(U34="",U34=0)),"G","") -> G | H34: 1. Aizņēmumi pret obligācijām. | J34: =J33+10 -> 870 | Q34: 1. Aizņēmumi pret obligācijām. | S34: 870
B35: R880 | C35: 11 | D35: G | H35: 2. Akcijās pārvēršamie aizņēmumi. | J35: 880 | Q35: 2. Akcijās pārvēršamie aizņēmumi. | S35: 880
B36: R890 | C36: 11 | D36: G | H36: 3. Aizņēmumi no kredītiestādēm. | J36: 890 | Q36: 3. Aizņēmumi no kredītiestādēm. | S36: 890
B37: R900 | C37: 11 | D37: G | H37: 4. Citi aizņēmumi. | J37: 900 | Q37: 4. Citi aizņēmumi. | S37: 900
B38: R910 | C38: 11 | D38: G | H38: 5. No pircējiem saņemtie avansi. | J38: 910 | Q38: 5. No pircējiem saņemtie avansi. | S38: 910
B39: R920 | C39: 11 | D39: G | H39: 6. Parādi piegādātājiem un darbuzņēmējiem. | J39: 920 | Q39: 6. Parādi piegādātājiem un darbuzņēmējiem. | S39: 920
B40: R930 | C40: 11 | D40: G | H40: 7. Maksājamie vekseļi. | J40: 930 | Q40: 7. Maksājamie vekseļi. | S40: 930
B41: R940 | C41: 11 | D41: G | H41: 8. Parādi radniecīgajām sabiedrībām. | J41: 940 | Q41: 8. Parādi radniecīgajām sabiedrībām. | S41: 940
B42: R950 | C42: 11 | D42: G | H42: 9. Parādi asociētajām sabiedrībām. | J42: 950 | Q42: 9. Parādi asociētajām sabiedrībām. | S42: 950
B43: R960 | C43: 11 | D43: G | H43: 10. Nodokļi un valsts sociālās apdrošināšanas obligātās iemaksas. | J43: 960 | Q43: 10. Nodokļi un valsts sociālās apdrošināšanas obligātās iemaksas. | S43: 960
B44: R970 | C44: 11 | D44: G | H44: 11. Atliktā nodokļa saistības | J44: 970 | Q44: 11. Atliktā nodokļa saistības | S44: 970
B45: R980 | C45: 11 | D45: G | H45: 12. Pārējie kreditori. | J45: 980 | Q45: 12. Pārējie kreditori. | S45: 980
B46: R990 | C46: 11 | D46: G | H46: 13. Nākamo periodu ieņēmumi. | J46: 990 | Q46: 13. Nākamo periodu ieņēmumi. | S46: 990
B47: R1000 | C47: 11 | D47: G | H47: 14. Neizmaksātās dividendes. | J47: 1000 | Q47: 14. Neizmaksātās dividendes. | S47: 1000
D48: S
D49: S | G49: Ilgtermiņa kreditori kopā | J49: =J47+10 -> 1010 | K49: =SUM(K34:K47) -> 0 | L49: =SUM(L34:L47) -> 0 | P49: Ilgtermiņa kreditori kopā | S49: =J49 -> 1010 | T49: =SUM(T34:T47) -> 0 | U49: 0
D50: S
D51: S | G51: Īstermiņa kreditori: | J51: =J49+10 -> 1020 | P51: Īstermiņa kreditori: | S51: =J51 -> 1020
B52: ="R"&J52 -> R1030 | C52: =COLUMN(K52) -> 11 | D52: =IF(AND(OR(K52="",K52=0),OR(L52="",L52=0),OR(T52="",T52=0),OR(U52="",U52=0)),"G","") -> G | H52: 1. Aizņēmumi pret obligācijām. | J52: =J51+10 -> 1030 | Q52: 1. Aizņēmumi pret obligācijām. | S52: 1030
B53: R1040 | C53: 11 | D53: G | H53: 2. Akcijās pārvēršamie aizņēmumi. | J53: 1040 | Q53: 2. Akcijās pārvēršamie aizņēmumi. | S53: 1040
B54: R1050 | C54: 11 | D54: G | H54: 3. Aizņēmumi no kredītiestādēm. | J54: 1050 | Q54: 3. Aizņēmumi no kredītiestādēm. | S54: 1050
B55: R1060 | C55: 11 | D55: G | H55: 4. Citi aizņēmumi. | J55: 1060 | Q55: 4. Citi aizņēmumi. | S55: 1060
B56: R1070 | C56: 11 | D56: G | H56: 5. No pircējiem saņemtie avansi. | J56: 1070 | Q56: 5. No pircējiem saņemtie avansi. | S56: 1070
B57: R1080 | C57: 11 | D57: G | H57: 6. Parādi piegādātājiem un darbuzņēmējiem. | J57: 1080 | Q57: 6. Parādi piegādātājiem un darbuzņēmējiem. | S57: 1080
B58: R1090 | C58: 11 | D58: G | H58: 7. Maksājamie vekseļi. | J58: 1090 | Q58: 7. Maksājamie vekseļi. | S58: 1090
B59: R1100 | C59: 11 | D59: G | H59: 8. Parādi radniecīgajām sabiedrībām. | J59: 1100 | Q59: 8. Parādi radniecīgajām sabiedrībām. | S59: 1100
B60: R1110 | C60: 11 | D60: G | H60: 9. Parādi asociētajām sabiedrībām. | J60: 1110 | Q60: 9. Parādi asociētajām sabiedrībām. | S60: 1110
B61: R1120 | C61: 11 | D61: G | H61: 10. Nodokļi un valsts sociālās apdrošināšanas obligātās iemaksas. | J61: 1120 | Q61: 10. Nodokļi un valsts sociālās apdrošināšanas obligātās iemaksas. | S61: 1120
B62: R1130 | C62: 11 | D62: G | H62: 11. Pārējie kreditori. | J62: 1130 | Q62: 11. Pārējie kreditori. | S62: 1130
B63: R1140 | C63: 11 | D63: G | H63: 12. Nākamo periodu ieņēmumi. | J63: 1140 | Q63: 12. Nākamo periodu ieņēmumi. | S63: 1140
B64: R1150 | C64: 11 | D64: G | H64: 13. Neizmaksātās dividendes. | J64: 1150 | Q64: 13. Neizmaksātās dividendes. | S64: 1150
B65: R1160 | C65: 11 | D65: G | H65: 14. Uzkrātās saistības. | J65: 1160 | Q65: 14. Uzkrātās saistības. | S65: 1160
B66: R1170 | C66: 11 | D66: G | H66: 15. Atvasinātie finanšu instrumenti. | J66: 1170 | Q66: 15. Atvasinātie finanšu instrumenti. | S66: 1170
D67: S
D68: S | G68: Īstermiņa kreditori kopā | J68: =J66+10 -> 1180 | K68: =SUM(K52:K66) -> 0 | L68: =SUM(L52:L66) -> 0 | P68: Īstermiņa kreditori kopā | S68: =J68 -> 1180 | T68: =SUM(T52:T66) -> 0 | U68: 0
G70: BILANCE | J70: =J68+10 -> 1190 | K70: =SUM(K24,K31,K49,K68) -> 0 | L70: =SUM(L24,L31,L49,L68) -> 0 | P70: BILANCE | S70: =J70 -> 1190 | T70: =SUM(T24,T31,T49,T68) -> 0 | U70: =SUM(U24,U31,U49,U68) -> 0
K72: =K70-Aktīvi!K78 -> 0 | L72: =L70-Aktīvi!L78 -> 0 | T72: =T70-Aktīvi!T78 -> 0 | U72: =U70-Aktīvi!U78 -> 0

Sheet PZA1 (hidden)
A1: =COLUMN(P1)-COLUMN(G1) -> 9 | B1: xmlIdent | C1: xmlClmn | D1: xlGr
G3: PZA - Klasificēts pēc izdevumu veidiem (PZA1) | N3: =IF(Pamatdati!$H$5=Pamatdati!$Q$5,IF(Pamatdati!$H$8-1=Pamatdati!$Q$9,"IPG","PG"),"N") -> PG | P3: Tikai salīdzināšanai
G5: Posteņa nosaukums | J5: Rindas kods | K5: Pārskata gada beigās | L5: Iepriekšējā pārskata gada beigās | P5: Posteņa nosaukums | S5: Rindas kods | T5: Pārskata gada beigās | U5: Iepriekšējā pārskata gada beigās
H6: 1. Neto apgrozījums. | J6: 10 | K6: =SUM(K7:K9) -> 0 | L6: =SUM(L7:L9) -> 0 | Q6: 1. Neto apgrozījums. | S6: =J6 -> 10 | T6: =SUM(T7:T9) -> 0 | U6: =SUM(U7:U9) -> 0
B7: R20 | C7: =COLUMN(K7) -> 11 | D7: =IF(AND(OR(K7="",K7=0),OR(L7="",L7=0),OR(T7="",T7=0),OR(U7="",U7=0)),"G","") -> G | H7: a) no lauksaimnieciskās darbības | J7: 20 | Q7: a) no lauksaimnieciskās darbības | S7: =J7 -> 20
B8: R30 | C8: =COLUMN(K8) -> 11 | D8: =IF(AND(OR(K8="",K8=0),OR(L8="",L8=0),OR(T8="",T8=0),OR(U8="",U8=0)),"G","") -> G | H8: b) no citiem pamatdarbības veidiem | J8: 30 | Q8: b) no citiem pamatdarbības veidiem | S8: 30
B9: R10R1 | C9: 11 | D9: G | H9: c) no būvniecības darbiem | J9: 10.1 | Q9: c) no būvniecības darbiem | S9: 10.1
B10: R40 | C10: 11 | D10: G | H10: 2. Gatavās produkcijas un nepabeigto ražojumu krājumu izmaiņas. | J10: 40 | Q10: 2. Gatavās produkcijas un nepabeigto ražojumu krājumu izmaiņas. | S10: 40
B11: R50 | C11: 11 | D11: G | H11: 3. Uz pašu ilgtermiņa ieguldījumiem attiecinātās (kapitalizētās) izmaksas. | J11: 50 | Q11: 3. Uz pašu ilgtermiņa ieguldījumiem attiecinātās (kapitalizētās) izmaksas. | S11: 50
B12: R60 | C12: 11 | D12: G | H12: 4. Pārējie saimnieciskās darbības ieņēmumi. | J12: 60 | Q12: 4. Pārējie saimnieciskās darbības ieņēmumi. | S12: 60
D13: G | H13: 5. Materiālu izmaksas: | J13: 70 | K13: =SUM(K14:K15) -> 0 | L13: =SUM(L14:L15) -> 0 | Q13: 5. Materiālu izmaksas: | S13: 70 | T13: =SUM(T14:T15) -> 0 | U13: =SUM(U14:U15) -> 0
B14: ="R"&J14 -> R80 | C14: =COLUMN(K14) -> 11 | D14: G | H14: a) izejvielu un palīgmateriālu izmaksas; | J14: 80 | Q14: a) izejvielu un palīgmateriālu izmaksas; | S14: 80
B15: ="R"&J15 -> R90 | C15: 11 | D15: G | H15: b) pārējās ārējās izmaksas. | J15: 90 | Q15: b) pārējās ārējās izmaksas. | S15: 90
D16: G | H16: 6. Personāla izmaksas: | J16: 100 | K16: =SUM(K17:K20) -> 0 | L16: =SUM(L17:L20) -> 0 | Q16: 6. Personāla izmaksas: | S16: 100 | T16: =SUM(T17:T20) -> 0 | U16: =SUM(U17:U20) -> 0
B17: ="R"&J17 -> R110 | C17: =COLUMN(K17) -> 11 | D17: G | H17: a) atlīdzība par darbu | J17: 110 | Q17: a) atlīdzība par darbu | S17: 110
B18: R120 | C18: 11 | D18: G | H18: b) pensijas no sabiedrības līdzekļiem | J18: 120 | Q18: b) pensijas no sabiedrības līdzekļiem | S18: 120
B19: R130 | C19: 11 | D19: G | H19: c) valsts sociālās apdrošināšanas obligātās iemaksas | J19: 130 | Q19: c) valsts sociālās apdrošināšanas obligātās iemaksas | S19: 130
B20: R140 | C20: 11 | D20: G | H20: d) pārējās sociālās nodrošināšanas izmaksas | J20: 140 | Q20: d) pārējās sociālās nodrošināšanas izmaksas | S20: 140
D21: G | H21: 7. Vērtības samazinājuma korekcijas: | J21: 150 | K21: =SUM(K22:K23) -> 0 | L21: =SUM(L22:L23) -> 0 | Q21: 7. Vērtības samazinājuma korekcijas: | S21: 150 | T21: =SUM(T22:T23) -> 0 | U21: =SUM(U22:U23) -> 0
B22: ="R"&J22 -> R160 | C22: =COLUMN(K22) -> 11 | D22: G | H22: a) pamatlīdzekļu un nemateriālo ieguldījumu vērtības samazinājuma korekcijas; | J22: 160 | Q22: a) pamatlīdzekļu un nemateriālo ieguldījumu vērtības samazinājuma korekcijas; | S22: 160
B23: R170 | C23: 11 | D23: G | H23: b) apgrozāmo līdzekļu vērtības samazinājuma korekcijas, ja tās pārsniedz tādas vērtības norakstījumu summas, kuras attiecīgā sabiedrība uzskata par parastām. | J23: 170 | Q23: b) apgrozāmo līdzekļu vērtības samazinājuma korekcijas, ja tās pārsniedz tādas vērtības norakstījumu summas, kuras attiecīgā sabiedrība uzskata par parastām. | S23: 170
B24: R180 | C24: 11 | D24: G | H24: 8. Pārējās saimnieciskās darbības izmaksas | J24: 180 | Q24: 8. Pārējās saimnieciskās darbības izmaksas | S24: 180
D25: G | H25: 9. Ieņēmumi no līdzdalības: | J25: 190 | K25: =SUM(K26:K28) -> 0 | L25: =SUM(L26:L28) -> 0 | Q25: 9. Ieņēmumi no līdzdalības: | S25: 190 | T25: =SUM(T26:T28) -> 0 | U25: =SUM(U26:U28) -> 0
B26: ="R"&J26 -> R200 | C26: =COLUMN(K26) -> 11 | D26: G | H26: a) radniecīgo sabiedrību kapitālā | J26: 200 | Q26: a) radniecīgo sabiedrību kapitālā | S26: 200
B27: R210 | C27: 11 | D27: G | H27: b) asociēto sabiedrību kapitālā | J27: 210 | Q27: b) asociēto sabiedrību kapitālā | S27: 210
B28: R220 | C28: 11 | D28: G | H28: c) citu sabiedrību kapitālā | J28: 220 | Q28: c) citu sabiedrību kapitālā | S28: 220
D29: G | H29: 10. Ieņēmumi no pārējiem vērtspapīriem un aizdevumiem, kas veidojuši ilgtermiņa finanšu ieguldījumus. | J29: 230 | K29: =SUM(K30:K31) -> 0 | L29: =SUM(L30:L31) -> 0 | Q29: 10. Ieņēmumi no pārējiem vērtspapīriem un aizdevumiem, kas veidojuši ilgtermiņa finanšu ieguldījumus. | S29: 230 | T29: =SUM(T30:T31) -> 0 | U29: =SUM(U30:U31) -> 0
B30: ="R"&J30 -> R240 | C30: =COLUMN(K30) -> 11 | D30: G | H30: a) no radniecīgajām sabiedrībām | J30: 240 | Q30: a) no radniecīgajām sabiedrībām | S30: 240
B31: R250 | C31: 11 | D31: G | H31: b) no asociētajām sabiedrībām un citām sabiedrībām, kā arī no vērtspapīriem un citiem ilgtermiņa debitoriem | J31: 250 | Q31: b) no asociētajām sabiedrībām un citām sabiedrībām, kā arī no vērtspapīriem un citiem ilgtermiņa debitoriem | S31: 250
D32: G | H32: 11. Pārējie procentu ieņēmumi un tamlīdzīgi ieņēmumi. | J32: 260 | K32: =SUM(K33:K34) -> 0 | L32: =SUM(L33:L34) -> 0 | Q32: 11. Pārējie procentu ieņēmumi un tamlīdzīgi ieņēmumi. | S32: 260 | T32: =SUM(T33:T34) -> 0 | U32: =SUM(U33:U34) -> 0
B33: ="R"&J33 -> R270 | C33: =COLUMN(K33) -> 11 | D33: G | H33: a) no radniecīgajām sabiedrībām | J33: 270 | Q33: a) no radniecīgajām sabiedrībām | S33: 270
B34: R280 | C34: 11 | D34: G | H34: b) no citām personām. | J34: 280 | Q34: b) no citām personām. | S34: 280
B35: R290 | C35: 11 | D35: G | H35: 12. Ilgtermiņa un īstermiņa finanšu ieguldījumu vērtības samazinājuma korekcijas | J35: =IF(Pamatdati!$H$3<>"Konsolidētais uzņēmuma gada pārskats",J34+10,"---") -> 290 | Q35: 12. Ilgtermiņa un īstermiņa finanšu ieguldījumu vērtības samazinājuma korekcijas | S35: 290
D36: G | H36: 12. Ilgtermiņa un īstermiņa finanšu ieguldījumu vērtības samazinājuma korekcijas | J36: =IF(Pamatdati!$H$3="Konsolidētais uzņēmuma gada pārskats",J34+10,"---") -> --- | K36: =SUM(K37:K38) -> 0 | L36: =SUM(L37:L38) -> 0 | Q36: 12. Ilgtermiņa un īstermiņa finanšu ieguldījumu vērtības samazinājuma korekcijas | S36: --- | T36: =SUM(T37:T38) -> 0 | U36: =SUM(U37:U38) -> 0
B37: ="R"&J37 -> R--- | C37: =COLUMN(K37) -> 11 | D37: G | H37: a) līdzdalības asociēto sabiedrību kapitālā vērtības samazināšanās | J37: =IF(Pamatdati!$H$3="Konsolidētais uzņēmuma gada pārskats",J36+10,"---") -> --- | Q37: a) līdzdalības asociēto sabiedrību kapitālā vērtības samazināšanās | S37: ---
B38: R--- | C38: 11 | D38: G | H38: b) pārējās vērtības samazinājuma korekcijas. | J38: =IF(Pamatdati!$H$3="Konsolidētais uzņēmuma gada pārskats",J37+10,"---") -> --- | Q38: b) pārējās vērtības samazinājuma korekcijas. | S38: ---
D39: G | H39: 13. Procentu maksājumi un tamlīdzīgas izmaksas | J39: =IF(Pamatdati!$H$3="Konsolidētais uzņēmuma gada pārskats",J38+10,J35+10) -> 300 | K39: =SUM(K40:K41) -> 0 | L39: =SUM(L40:L41) -> 0 | Q39: 13. Procentu maksājumi un tamlīdzīgas izmaksas | S39: 300 | T39: =SUM(T40:T41) -> 0 | U39: =SUM(U40:U41) -> 0
B40: ="R"&J40 -> R310 | C40: =COLUMN(K40) -> 11 | D40: G | H40: a) no radniecīgajām sabiedrībām | J40: =J39+10 -> 310 | Q40: a) no radniecīgajām sabiedrībām | S40: 310
B41: R320 | C41: 11 | D41: G | H41: b) no citām personām. | J41: =J40+10 -> 320 | Q41: b) no citām personām. | S41: 320
H42: 14. Peļņa vai zaudējumi pirms uzņēmumu ienākuma nodokļa | J42: 330 | K42: =K6+K10+K11+K12-K13-K16-K21-K24+K25+K29+K32+K35+K36-K39 -> 0 | L42: =L6+L10+L11+L12-L13-L16-L21-L24+L25+L29+L32+L35+L36-L39 -> 0 | Q42: 14. Peļņa vai zaudējumi pirms uzņēmumu ienākuma nodokļa | S42: 330 | T42: =T6+T10+T11+T12-T13-T16-T21-T24+T25+T29+T32+T35+T36-T39 -> 0 | U42: 0
B43: ="R"&J43 -> R340 | C43: 11 | D43: =IF(AND(OR(K43="",K43=0),OR(L43="",L43=0),OR(T43="",T43=0),OR(U43="",U43=0)),"G","") -> G | H43: 15. Uzņēmumu ienākuma nodoklis par pārskata gadu | J43: 340 | Q43: 15. Uzņēmumu ienākuma nodoklis par pārskata gadu | S43: 340
H44: 16. Peļņa vai zaudējumi pēc uzņēmumu ienākuma nodokļa aprēķināšanas | J44: 350 | K44: =K42-K43 -> 0 | L44: =L42-L43 -> 0 | Q44: 16. Peļņa vai zaudējumi pēc uzņēmumu ienākuma nodokļa aprēķināšanas | S44: 350 | T44: =T42-T43 -> 0 | U44: =U42-U43 -> 0
B45: ="R"&J45 -> R360 | C45: 11 | D45: =IF(AND(OR(K45="",K45=0),OR(L45="",L45=0),OR(T45="",T45=0),OR(U45="",U45=0)),"G","") -> G | H45: 17. Ieņēmumi vai izmaksas no atliktā nodokļa aktīvu vai saistību atlikumu izmaiņām | J45: 360 | Q45: 17. Ieņēmumi vai izmaksas no atliktā nodokļa aktīvu vai saistību atlikumu izmaiņām | S45: 360
B46: R370 | C46: 11 | D46: =IF(AND(OR(K46="",K46=0),OR(L46="",L46=0),OR(T46="",T46=0),OR(U46="",U46=0)),"G","") -> G | H46: 18. Ārkārtas dividendes | J46: 370 | Q46: 18. Ārkārtas dividendes | S46: 370
H47: 19. Pārskata gada peļņa vai zaudējumi | J47: 380 | K47: =K44+K45-K46 -> 0 | L47: =L44+L45-L46 -> 0 | Q47: 19. Pārskata gada peļņa vai zaudējumi | S47: 380 | T47: =T44+T45-T46 -> 0 | U47: =U44+U45-U46 -> 0
B48: R410 | C48: =COLUMN(K48) -> 11 | D48: =IF(AND(OR(K48="",K48=0),OR(L48="",L48=0),OR(T48="",T48=0),OR(U48="",U48=0)),"G","") -> G | H48: 20. Mazākumakcionāru peļņas vai zaudējumu daļa | J48: 410 | Q48: 20. Mazākumakcionāru peļņas vai zaudējumu daļa | S48: 410

Sheet PZA2 (hidden)
A1: =COLUMN(P1)-COLUMN(G1) -> 9 | B1: xmlIdent | C1: xmlClmn | D1: xlGr
G3: PZA - Klasificēts pēc izdevumu funkcijām (PZA2) | N3: =IF(Pamatdati!$H$5=Pamatdati!$Q$5,IF(Pamatdati!$H$8-1=Pamatdati!$Q$9,"IPG","PG"),"N") -> PG | P3: Tikai salīdzināšanai
G5: Posteņa nosaukums | J5: Rindas kods | K5: Pārskata gada beigās | L5: Iepriekšējā pārskata gada beigās | P5: Posteņa nosaukums | S5: Rindas kods | T5: Pārskata gada beigās | U5: Iepriekšējā pārskata gada beigās
H6: 1. Neto apgrozījums. | J6: 10 | K6: =SUM(K7:K9) -> 0 | L6: =SUM(L7:L9) -> 0 | Q6: 1. Neto apgrozījums. | S6: =J6 -> 10 | T6: =SUM(T7:T9) -> 0 | U6: =SUM(U7:U9) -> 0
B7: R20 | C7: =COLUMN(K7) -> 11 | D7: =IF(AND(OR(K7="",K7=0),OR(L7="",L7=0),OR(T7="",T7=0),OR(U7="",U7=0)),"G","") -> G | H7: a) no lauksaimnieciskās darbības | J7: 20 | Q7: a) no lauksaimnieciskās darbības | S7: =J7 -> 20
B8: R30 | C8: =COLUMN(K8) -> 11 | D8: =IF(AND(OR(K8="",K8=0),OR(L8="",L8=0),OR(T8="",T8=0),OR(U8="",U8=0)),"G","") -> G | H8: b) no citiem pamatdarbības veidiem | J8: 30 | Q8: b) no citiem pamatdarbības veidiem | S8: 30
B9: R10R1 | C9: 11 | D9: =IF(AND(OR(K9="",K9=0),OR(L9="",L9=0),OR(T9="",T9=0),OR(U9="",U9=0)),"G","") -> G | H9: c) no būvniecības darbiem | J9: 10.1 | Q9: c) no būvniecības darbiem | S9: 10.1
B10: R40 | C10: 11 | D10: =IF(AND(OR(K10="",K10=0),OR(L10="",L10=0),OR(T10="",T10=0),OR(U10="",U10=0)),"G","") -> G | H10: 2. Pārdotās produkcijas ražošanas pašizmaksa, pārdoto preču vai sniegto pakalpojumu iegādes izmaksas | J10: 40 | Q10: 2. Pārdotās produkcijas ražošanas pašizmaksa, pārdoto preču vai sniegto pakalpojumu iegādes izmaksas | S10: 40
H11: 3. Bruto peļņa vai zaudējumi. | J11: 50 | K11: =K6-K10 -> 0 | L11: =L6-L10 -> 0 | Q11: 3. Bruto peļņa vai zaudējumi. | S11: 50 | T11: =T6-T10 -> 0 | U11: =U6-U10 -> 0
B12: R60 | C12: 11 | D12: =IF(AND(OR(K12="",K12=0),OR(L12="",L12=0),OR(T12="",T12=0),OR(U12="",U12=0)),"G","") -> G | H12: 4. Pārdošanas izmaksas. | J12: 60 | Q12: 4. Pārdošanas izmaksas. | S12: 60
B13: R70 | C13: 11 | D13: G | H13: 5. Administrācijas izmaksas. | J13: 70 | Q13: 5. Administrācijas izmaksas. | S13: 70
B14: R80 | C14: 11 | D14: G | H14: 6. Pārējie saimnieciskās darbības ieņēmumi. | J14: 80 | Q14: 6. Pārējie saimnieciskās darbības ieņēmumi. | S14: 80
B15: R90 | C15: 11 | D15: G | H15: 7. Pārējās saimnieciskās darbības izmaksas. | J15: 90 | Q15: 7. Pārējās saimnieciskās darbības izmaksas. | S15: 90
D16: G | H16: 8. Ieņēmumi no līdzdalības: | J16: 100 | K16: =SUM(K17:K19) -> 0 | L16: =SUM(L17:L19) -> 0 | Q16: 8. Ieņēmumi no līdzdalības: | S16: 100 | T16: =SUM(T17:T19) -> 0 | U16: =SUM(U17:U19) -> 0
B17: R110 | C17: 11 | D17: G | H17: a) radniecīgo sabiedrību kapitālā | J17: 110 | Q17: a) radniecīgo sabiedrību kapitālā | S17: 110
B18: R120 | C18: 11 | D18: G | H18: b) asociēto sabiedrību kapitālā | J18: 120 | Q18: b) asociēto sabiedrību kapitālā | S18: 120
B19: R130 | C19: 11 | D19: G | H19: c) citu sabiedrību kapitālā | J19: 130 | Q19: c) citu sabiedrību kapitālā | S19: 130
D20: G | H20: 9. Ieņēmumi no pārējiem vērtspapīriem un aizdevumiem, kas veidojuši ilgtermiņa finanšu ieguldījumus: | J20: 140 | K20: =SUM(K21:K22) -> 0 | L20: =SUM(L21:L22) -> 0 | Q20: 9. Ieņēmumi no pārējiem vērtspapīriem un aizdevumiem, kas veidojuši ilgtermiņa finanšu ieguldījumus: | S20: 140 | T20: =SUM(T21:T22) -> 0 | U20: =SUM(U21:U22) -> 0
B21: R150 | C21: 11 | D21: G | H21: a) no radniecīgajām sabiedrībām | J21: 150 | Q21: a) no radniecīgajām sabiedrībām | S21: 150
B22: R160 | C22: 11 | D22: G | H22: b) no asociētajām sabiedrībām un citām sabiedrībām, kā arī no vērtspapīriem un citiem ilgtermiņa debitoriem | J22: 160 | Q22: b) no asociētajām sabiedrībām un citām sabiedrībām, kā arī no vērtspapīriem un citiem ilgtermiņa debitoriem | S22: 160
D23: G | H23: 10. Pārējie procentu ieņēmumi un tamlīdzīgi ieņēmumi: | J23: 170 | K23: =SUM(K24:K25) -> 0 | L23: =SUM(L24:L25) -> 0 | Q23: 10. Pārējie procentu ieņēmumi un tamlīdzīgi ieņēmumi: | S23: 170 | T23: =SUM(T24:T25) -> 0 | U23: =SUM(U24:U25) -> 0
B24: R180 | C24: 11 | D24: G | H24: a) no radniecīgajām sabiedrībām | J24: 180 | Q24: a) no radniecīgajām sabiedrībām | S24: 180
B25: R190 | C25: =COLUMN(K25) -> 11 | D25: G | H25: b) no citām personām | J25: 190 | Q25: b) no citām personām | S25: 190
B26: ="R"&J26 -> R200 | C26: =COLUMN(K26) -> 11 | D26: =IF(AND(OR(K26="",K26=0),OR(L26="",L26=0),OR(T26="",T26=0),OR(U26="",U26=0)),"G","") -> G | H26: 11. Ilgtermiņa un īstermiņa finanšu ieguldījumu vērtības samazinājuma korekcijas. | J26: =IF(Pamatdati!$H$3<>"Konsolidētais uzņēmuma gada pārskats",J25+10,"---") -> 200 | Q26: 11. Ilgtermiņa un īstermiņa finanšu ieguldījumu vērtības samazinājuma korekcijas. | S26: =J26 -> 200
B27: =IF(Pamatdati!$H$3="Konsolidētais uzņēmuma gada pārskats","R---","R"&J27) -> R--- | C27: 11 | D27: G | H27: 11. Ilgtermiņa un īstermiņa finanšu ieguldījumu vērtības samazinājuma korekcijas. | J27: =IF(Pamatdati!$H$3="Konsolidētais uzņēmuma gada pārskats",J25+10,"---") -> --- | K27: =SUM(K28:K29) -> 0 | L27: =SUM(L28:L29) -> 0 | Q27: 11. Ilgtermiņa un īstermiņa finanšu ieguldījumu vērtības samazinājuma korekcijas. | S27: --- | T27: =SUM(T28:T29) -> 0 | U27: =SUM(U28:U29) -> 0
B28: ="R"&J28 -> R--- | C28: 11 | D28: G | H28: a) līdzdalības asociēto sabiedrību kapitālā vērtības samazināšanās, | J28: =IF(Pamatdati!$H$3="Konsolidētais uzņēmuma gada pārskats",J27+10,"---") -> --- | Q28: a) līdzdalības asociēto sabiedrību kapitālā vērtības samazināšanās, | S28: ---
B29: R--- | C29: 11 | D29: G | H29: b) pārējās vērtības samazinājuma korekcijas. | J29: =IF(Pamatdati!$H$3="Konsolidētais uzņēmuma gada pārskats",J28+10,"---") -> --- | Q29: b) pārējās vērtības samazinājuma korekcijas. | S29: ---
D30: G | H30: 12. Procentu maksājumi un tamlīdzīgas izmaksas. | J30: =IF(Pamatdati!$H$3="Konsolidētais uzņēmuma gada pārskats",J29+10,J26+10) -> 210 | K30: =SUM(K31:K32) -> 0 | L30: =SUM(L31:L32) -> 0 | Q30: 12. Procentu maksājumi un tamlīdzīgas izmaksas. | S30: 210 | T30: =SUM(T31:T32) -> 0 | U30: =SUM(U31:U32) -> 0
B31: ="R"&J31 -> R220 | C31: =COLUMN(K31) -> 11 | D31: G | H31: a) radniecīgajām sabiedrībām | J31: =J30+10 -> 220 | Q31: a) radniecīgajām sabiedrībām | S31: 220
B32: R230 | C32: 11 | D32: G | H32: b) citām personām | J32: 230 | Q32: b) citām personām | S32: 230
H33: 13. Peļņa vai zaudējumi pirms uzņēmumu ienākuma nodokļa | J33: 240 | K33: =K11-K12-K13+K14-K15+K16+K20+K23-K30+K27+K26 -> 0 | L33: =L11-L12-L13+L14-L15+L16+L20+L23-L30+L27+L26 -> 0 | Q33: 13. Peļņa vai zaudējumi pirms uzņēmumu ienākuma nodokļa | S33: 240 | T33: =T11-T12-T13+T14-T15+T16+T20+T23-T30+T27+T26 -> 0 | U33: 0
B34: ="R"&J34 -> R250 | C34: 11 | D34: =IF(AND(OR(K34="",K34=0),OR(L34="",L34=0),OR(T34="",T34=0),OR(U34="",U34=0)),"G","") -> G | H34: 14. Uzņēmumu ienākuma nodoklis par pārskata gadu. | J34: 250 | Q34: 14. Uzņēmumu ienākuma nodoklis par pārskata gadu. | S34: 250
H35: 15. Peļņa vai zaudējumi pēc uzņēmumu ienākuma nodokļa aprēķināšanas | J35: 260 | K35: =K33-K34 -> 0 | L35: =L33-L34 -> 0 | Q35: 15. Peļņa vai zaudējumi pēc uzņēmumu ienākuma nodokļa aprēķināšanas | S35: 260 | T35: =T33-T34 -> 0 | U35: =U33-U34 -> 0
B36: ="R"&J36 -> R270 | C36: 11 | D36: =IF(AND(OR(K36="",K36=0),OR(L36="",L36=0),OR(T36="",T36=0),OR(U36="",U36=0)),"G","") -> G | H36: 16. Ieņēmumi vai izmaksas no atliktā nodokļa aktīvu vai saistību atlikumu izmaiņām | J36: 270 | Q36: 16. Ieņēmumi vai izmaksas no atliktā nodokļa aktīvu vai saistību atlikumu izmaiņām | S36: 270
B37: R280 | C37: 11 | D37: =IF(AND(OR(K37="",K37=0),OR(L37="",L37=0),OR(T37="",T37=0),OR(U37="",U37=0)),"G","") -> G | H37: 17. Ārkārtas dividendes | J37: 280 | Q37: 17. Ārkārtas dividendes | S37: 280
H38: 18. Pārskata gada peļņa vai zaudējumi. | J38: 290 | K38: =K35+K36-K37 -> 0 | L38: =L35+L36-L37 -> 0 | Q38: 18. Pārskata gada peļņa vai zaudējumi. | S38: 290 | T38: =T35+T36-T37 -> 0 | U38: =U35+U36-U37 -> 0
B39: ="R"&J39 -> R--- | C39: =COLUMN(K39) -> 11 | D39: =IF(AND(OR(K39="",K39=0),OR(L39="",L39=0),OR(T39="",T39=0),OR(U39="",U39=0)),"G","") -> G | H39: 19. Mazākumakcionāru peļņas vai zaudējumu daļa | J39: =IF(Pamatdati!H20="Konsolidētais uzņēmuma gada pārskats",J38+10,"---") -> --- | Q39: 19. Mazākumakcionāru peļņas vai zaudējumu daļa | S39: ---
K41: =K38-Pasīvi!K21 -> 0 | L41: =L38-Pasīvi!L21 -> 0 | T41: =T38-Pasīvi!T21 -> 0 | U41: =U38-Pasīvi!U21 -> 0

Sheet NPP1 (hidden)
A1: =COLUMN(P1)-COLUMN(G1) -> 9 | B1: xmlIdent | C1: xmlClmn | D1: xlGr
G3: Naudas plūsmas pārskats (NPP) - NPP pēc tiešās metodes (NPP1) | N3: =IF(Pamatdati!$H$5=Pamatdati!$Q$5,IF(Pamatdati!$H$8-1=Pamatdati!$Q$9,"IPG","PG"),"N") -> PG | P3: Tikai salīdzināšanai
G5: Posteņa nosaukums | J5: Rindas kods | K5: Pārskata gada beigās | L5: Iepriekšējā pārskata gada beigās | P5: Posteņa nosaukums | S5: Rindas kods | T5: Pārskata gada beigās | U5: Iepriekšējā pārskata gada beigās
H6: I. Pamatdarbības naudas plūsma | J6: 10 | Q6: I. Pamatdarbības naudas plūsma | S6: 10
B7: R20 | C7: =COLUMN(K7) -> 11 | D7: =IF(AND(OR(K7="",K7=0),OR(L7="",L7=0),OR(T7="",T7=0),OR(U7="",U7=0)),"G","") -> G | H7: 1. Ieņēmumi no preču pārdošanas un pakalpojumu sniegšanas. | J7: 20 | Q7: 1. Ieņēmumi no preču pārdošanas un pakalpojumu sniegšanas. | S7: 20
B8: R30 | C8: 11 | D8: G | H8: 2. Maksājumi piegādātājiem, darbiniekiem, pārējiem pamatdarbības izdevumiem. | J8: 30 | Q8: 2. Maksājumi piegādātājiem, darbiniekiem, pārējiem pamatdarbības izdevumiem. | S8: 30
B9: R40 | C9: 11 | D9: G | H9: 3. Pārējie pamatdarbības ieņēmumi vai izdevumi. | J9: 40 | Q9: 3. Pārējie pamatdarbības ieņēmumi vai izdevumi. | S9: 40
B10: R50 | C10: 11 | D10: G | H10: 4. Bruto pamatdarbības naudas plūsma. | J10: 50 | Q10: 4. Bruto pamatdarbības naudas plūsma. | S10: 50
B11: R60 | C11: 11 | D11: G | H11: 5. Izdevumi procentu maksājumiem. | J11: 60 | Q11: 5. Izdevumi procentu maksājumiem. | S11: 60
B12: R70 | C12: 11 | D12: G | H12: 6. Izdevumi uzņēmumu ienākuma nodokļa maksājumiem. | J12: 70 | Q12: 6. Izdevumi uzņēmumu ienākuma nodokļa maksājumiem. | S12: 70
B13: R80 | C13: 11 | D13: G | H13: 7. Pamatdarbības neto naudas plūsma. | J13: 80 | Q13: 7. Pamatdarbības neto naudas plūsma. | S13: 80
H15: II. Ieguldīšanas darbības naudas plūsma | J15: 90 | Q15: II. Ieguldīšanas darbības naudas plūsma | S15: 90
B16: R100 | C16: =COLUMN(K16) -> 11 | D16: =IF(AND(OR(K16="",K16=0),OR(L16="",L16=0),OR(T16="",T16=0),OR(U16="",U16=0)),"G","") -> G | H16: 1. Radniecīgo sabiedrību, asociēto sabiedrību vai citu sabiedrību akciju vai daļu iegāde. | J16: 100 | Q16: 1. Radniecīgo sabiedrību, asociēto sabiedrību vai citu sabiedrību akciju vai daļu iegāde. | S16: 100
B17: R110 | C17: 11 | D17: G | H17: 2. Ieņēmumi no radniecīgo sabiedrību, asociēto sabiedrību vai citu sabiedrību akciju vai daļu atsavināšanas. | J17: 110 | Q17: 2. Ieņēmumi no radniecīgo sabiedrību, asociēto sabiedrību vai citu sabiedrību akciju vai daļu atsavināšanas. | S17: 110
B18: R120 | C18: 11 | D18: G | H18: 3. Pamatlīdzekļu un nemateriālo ieguldījumu iegāde. | J18: 120 | Q18: 3. Pamatlīdzekļu un nemateriālo ieguldījumu iegāde. | S18: 120
B19: R130 | C19: 11 | D19: G | H19: 4. Ieņēmumi no pamatlīdzekļu un nemateriālo ieguldījumu pārdošanas. | J19: 130 | Q19: 4. Ieņēmumi no pamatlīdzekļu un nemateriālo ieguldījumu pārdošanas. | S19: 130
B20: R140 | C20: 11 | D20: G | H20: 5. Izsniegtie aizdevumi. | J20: 140 | Q20: 5. Izsniegtie aizdevumi. | S20: 140
B21: R150 | C21: 11 | D21: G | H21: 6. Ieņēmumi no aizdevumu atmaksas. | J21: 150 | Q21: 6. Ieņēmumi no aizdevumu atmaksas. | S21: 150
B22: R160 | C22: 11 | D22: G | H22: 7. Saņemtie procenti. | J22: 160 | Q22: 7. Saņemtie procenti. | S22: 160
B23: R170 | C23: 11 | D23: G | H23: 8. Saņemtās dividendes. | J23: 170 | Q23: 8. Saņemtās dividendes. | S23: 170
B24: R180 | C24: 11 | D24: G | H24: 9. Ieguldīšanas darbības neto naudas plūsma. | J24: 180 | Q24: 9. Ieguldīšanas darbības neto naudas plūsma. | S24: 180
H26: III. Finansēšanas darbības naudas plūsma | J26: 190 | Q26: III. Finansēšanas darbības naudas plūsma | S26: 190
B27: R200 | C27: =COLUMN(K27) -> 11 | D27: =IF(AND(OR(K27="",K27=0),OR(L27="",L27=0),OR(T27="",T27=0),OR(U27="",U27=0)),"G","") -> G | H27: 1. Ieņēmumi no akciju un obligāciju emisijas vai kapitāla līdzdalības daļu ieguldījumiem. | J27: 200 | Q27: 1. Ieņēmumi no akciju un obligāciju emisijas vai kapitāla līdzdalības daļu ieguldījumiem. | S27: 200
B28: R210 | C28: 11 | D28: G | H28: 2. Saņemtie aizņēmumi. | J28: 210 | Q28: 2. Saņemtie aizņēmumi. | S28: 210
B29: R220 | C29: 11 | D29: G | H29: 3. Saņemtās subsīdijas, dotācijas, dāvinājumi vai ziedojumi. | J29: 220 | Q29: 3. Saņemtās subsīdijas, dotācijas, dāvinājumi vai ziedojumi. | S29: 220
B30: R230 | C30: 11 | D30: G | H30: 4. Izdevumi aizņēmumu atmaksāšanai. | J30: 230 | Q30: 4. Izdevumi aizņēmumu atmaksāšanai. | S30: 230
B31: R240 | C31: 11 | D31: G | H31: 5. Izdevumi nomāta pamatlīdzekļa izpirkumam. | J31: 240 | Q31: 5. Izdevumi nomāta pamatlīdzekļa izpirkumam. | S31: 240
B32: R250 | C32: 11 | D32: G | H32: 6. Izmaksātās dividendes. | J32: 250 | Q32: 6. Izmaksātās dividendes. | S32: 250
B33: R260 | C33: 11 | D33: G | H33: 7. Finansēšanas darbības neto naudas plūsma. | J33: 260 | Q33: 7. Finansēšanas darbības neto naudas plūsma. | S33: 260
B35: R270 | C35: =COLUMN(K35) -> 11 | D35: =IF(AND(OR(K35="",K35=0),OR(L35="",L35=0),OR(T35="",T35=0),OR(U35="",U35=0)),"G","") -> G | H35: IV. Ārvalstu valūtu kursu svārstību rezultāts | J35: 270 | Q35: IV. Ārvalstu valūtu kursu svārstību rezultāts | S35: 270
B36: R280 | C36: 11 | D36: =IF(AND(OR(K36="",K36=0),OR(L36="",L36=0),OR(T36="",T36=0),OR(U36="",U36=0)),"G","") -> G | H36: V. Naudas un tās ekvivalentu neto pieaugums vai samazinājums | J36: 280 | Q36: V. Naudas un tās ekvivalentu neto pieaugums vai samazinājums | S36: 280
B37: R290 | C37: 11 | D37: =IF(AND(OR(K37="",K37=0),OR(L37="",L37=0),OR(T37="",T37=0),OR(U37="",U37=0)),"G","") -> G | H37: VI. Naudas un tās ekvivalentu atlikums pārskata gada sākumā | J37: 290 | Q37: VI. Naudas un tās ekvivalentu atlikums pārskata gada sākumā | S37: 290
B38: R300 | C38: 11 | D38: =IF(AND(OR(K38="",K38=0),OR(L38="",L38=0),OR(T38="",T38=0),OR(U38="",U38=0)),"G","") -> G | H38: VII. Naudas un tās ekvivalentu atlikums pārskata gada beigās | J38: 300 | Q38: VII. Naudas un tās ekvivalentu atlikums pārskata gada beigās | S38: 300

Sheet NPP2 (hidden)
A1: =COLUMN(P1)-COLUMN(G1) -> 9 | B1: xmlIdent | C1: xmlClmn | D1: xlGr
G3: Naudas plūsmas pārskats (NPP) - NPP pēc netiešās metodes (NPP2) | N3: =IF(Pamatdati!$H$5=Pamatdati!$Q$5,IF(Pamatdati!$H$8-1=Pamatdati!$Q$9,"IPG","PG"),"N") -> PG | P3: Tikai salīdzināšanai
G5: Posteņa nosaukums | J5: Rindas kods | K5: Pārskata gada beigās | L5: Iepriekšējā pārskata gada beigās | P5: Posteņa nosaukums | S5: Rindas kods | T5: Pārskata gada beigās | U5: Iepriekšējā pārskata gada beigās
H6: I. Pamatdarbības naudas plūsma | J6: 10 | Q6: I. Pamatdarbības naudas plūsma | S6: 10
B7: R20 | C7: =COLUMN(K7) -> 11 | H7: 1. Peļņa vai zaudējumi pirms uzņēmumu ienākuma nodokļa. | J7: 20 | Q7: 1. Peļņa vai zaudējumi pirms uzņēmumu ienākuma nodokļa. | S7: 20
H8: Korekcijas: | J8: 30 | Q8: Korekcijas: | S8: 30
B9: R40 | C9: =COLUMN(K9) -> 11 | D9: =IF(AND(OR(K9="",K9=0),OR(L9="",L9=0),OR(T9="",T9=0),OR(U9="",U9=0)),"G","") -> G | H9: a) pamatlīdzekļu vērtības samazinājuma korekcijas; | J9: 40 | Q9: a) pamatlīdzekļu vērtības samazinājuma korekcijas; | S9: 40
B10: R50 | C10: 11 | D10: G | H10: b) nemateriālo ieguldījumu vērtības samazinājuma korekcijas; | J10: 50 | Q10: b) nemateriālo ieguldījumu vērtības samazinājuma korekcijas; | S10: 50
B11: R60 | C11: 11 | D11: G | H11: c) uzkrājumu veidošana (izņemot uzkrājumus nedrošiem parādiem); | J11: 60 | Q11: c) uzkrājumu veidošana (izņemot uzkrājumus nedrošiem parādiem); | S11: 60
B12: R70 | C12: 11 | D12: G | H12: d) peļņa vai zaudējumi no ārvalstu valūtu kursu svārstībām; | J12: 70 | Q12: d) peļņa vai zaudējumi no ārvalstu valūtu kursu svārstībām; | S12: 70
B13: R80 | C13: 11 | D13: G | H13: e) ieņēmumi no līdzdalības radniecīgo sabiedrību, asociēto sabiedrību vai citu sabiedrību pamatkapitālā | J13: 80 | Q13: e) ieņēmumi no līdzdalības radniecīgo sabiedrību, asociēto sabiedrību vai citu sabiedrību pamatkapitālā | S13: 80
B14: R90 | C14: 11 | D14: G | H14: f) ieņēmumi no pārējiem vērtspapīriem un aizdevumiem, kas veidojuši ilgtermiņa finanšu ieguldījumus | J14: 90 | Q14: f) ieņēmumi no pārējiem vērtspapīriem un aizdevumiem, kas veidojuši ilgtermiņa finanšu ieguldījumus | S14: 90
B15: R100 | C15: 11 | D15: G | H15: g) pārējie procentu ieņēmumi un tamlīdzīgi ieņēmumi; | J15: 100 | Q15: g) pārējie procentu ieņēmumi un tamlīdzīgi ieņēmumi; | S15: 100
B16: R110 | C16: 11 | D16: G | H16: h) ilgtermiņa un īstermiņa finanšu ieguldījumu vērtības samazinājuma korekcijas; | J16: 110 | Q16: h) ilgtermiņa un īstermiņa finanšu ieguldījumu vērtības samazinājuma korekcijas; | S16: 110
B17: R120 | C17: 11 | D17: G | H17: i) procentu maksājumi un tamlīdzīgas izmaksas. | J17: 120 | Q17: i) procentu maksājumi un tamlīdzīgas izmaksas. | S17: 120
B19: R130 | C19: =COLUMN(K19) -> 11 | H19: 2. Peļņa vai zaudējumi pirms apgrozāmo līdzekļu un īstermiņa kreditoru atlikumu izmaiņu ietekmes korekcijām. | J19: 130 | K19: =SUM(K7:K17) -> 0 | L19: =SUM(L7:L17) -> 0 | Q19: 2. Peļņa vai zaudējumi pirms apgrozāmo līdzekļu un īstermiņa kreditoru atlikumu izmaiņu ietekmes korekcijām. | S19: 130 | T19: =SUM(T7:T17) -> 0 | U19: =SUM(U7:U17) -> 0
H20: Korekcijas: | J20: 140 | Q20: Korekcijas: | S20: 140
B21: R150 | C21: =COLUMN(K21) -> 11 | D21: =IF(AND(OR(K21="",K21=0),OR(L21="",L21=0),OR(T21="",T21=0),OR(U21="",U21=0)),"G","") -> G | H21: a) debitoru parādu atlikumu pieaugums vai samazinājums; | J21: 150 | Q21: a) debitoru parādu atlikumu pieaugums vai samazinājums; | S21: 150
B22: R160 | C22: 11 | D22: =IF(AND(OR(K22="",K22=0),OR(L22="",L22=0),OR(T22="",T22=0),OR(U22="",U22=0)),"G","") -> G | H22: b) krājumu atlikumu pieaugums vai samazinājums; | J22: 160 | Q22: b) krājumu atlikumu pieaugums vai samazinājums; | S22: 160
B23: R170 | C23: 11 | D23: =IF(AND(OR(K23="",K23=0),OR(L23="",L23=0),OR(T23="",T23=0),OR(U23="",U23=0)),"G","") -> G | H23: c) piegādātājiem, darbuzņēmējiem un pārējiem kreditoriem maksājamo parādu atlikumu pieaugums vai samazinājums. | J23: 170 | Q23: c) piegādātājiem, darbuzņēmējiem un pārējiem kreditoriem maksājamo parādu atlikumu pieaugums vai samazinājums. | S23: 170
B25: R180 | C25: =COLUMN(K25) -> 11 | D25: =IF(AND(OR(K25="",K25=0),OR(L25="",L25=0),OR(T25="",T25=0),OR(U25="",U25=0)),"G","") -> G | H25: 3. Bruto pamatdarbības naudas plūsma. | J25: 180 | K25: =SUM(K19:K23) -> 0 | L25: =SUM(L19:L23) -> 0 | Q25: 3. Bruto pamatdarbības naudas plūsma. | S25: 180 | T25: =SUM(T19:T23) -> 0 | U25: =SUM(U19:U23) -> 0
B26: R190 | C26: 11 | D26: =IF(AND(OR(K26="",K26=0),OR(L26="",L26=0),OR(T26="",T26=0),OR(U26="",U26=0)),"G","") -> G | H26: 4. Izdevumi procentu maksājumiem. | J26: 190 | Q26: 4. Izdevumi procentu maksājumiem. | S26: 190
B27: R200 | C27: 11 | D27: =IF(AND(OR(K27="",K27=0),OR(L27="",L27=0),OR(T27="",T27=0),OR(U27="",U27=0)),"G","") -> G | H27: 5. Izdevumi uzņēmumu ienākuma nodokļa maksājumiem. | J27: 200 | Q27: 5. Izdevumi uzņēmumu ienākuma nodokļa maksājumiem. | S27: 200
B28: R210 | C28: 11 | D28: =IF(AND(OR(K28="",K28=0),OR(L28="",L28=0),OR(T28="",T28=0),OR(U28="",U28=0)),"G","") -> G | H28: 6. Pamatdarbības neto naudas plūsma. | J28: 210 | K28: =SUM(K25:K27) -> 0 | L28: =SUM(L25:L27) -> 0 | Q28: 6. Pamatdarbības neto naudas plūsma. | S28: 210 | T28: =SUM(T25:T27) -> 0 | U28: =SUM(U25:U27) -> 0
H30: II. Ieguldīšanas darbības naudas plūsma | J30: 220 | Q30: II. Ieguldīšanas darbības naudas plūsma | S30: 220
B31: R230 | C31: =COLUMN(K31) -> 11 | D31: =IF(AND(OR(K31="",K31=0),OR(L31="",L31=0),OR(T31="",T31=0),OR(U31="",U31=0)),"G","") -> G | H31: 1. Radniecīgo sabiedrību, asociēto sabiedrību vai citu sabiedrību akciju vai daļu iegāde. | J31: 230 | Q31: 1. Radniecīgo sabiedrību, asociēto sabiedrību vai citu sabiedrību akciju vai daļu iegāde. | S31: 230
B32: R240 | C32: 11 | D32: G | H32: 2. Ieņēmumi no radniecīgo sabiedrību, asociēto sabiedrību vai citu sabiedrību akciju vai daļu atsavināšanas. | J32: 240 | Q32: 2. Ieņēmumi no radniecīgo sabiedrību, asociēto sabiedrību vai citu sabiedrību akciju vai daļu atsavināšanas. | S32: 240
B33: R250 | C33: 11 | D33: G | H33: 3. Pamatlīdzekļu un nemateriālo ieguldījumu iegāde. | J33: 250 | Q33: 3. Pamatlīdzekļu un nemateriālo ieguldījumu iegāde. | S33: 250
B34: R260 | C34: 11 | D34: G | H34: 4. Ieņēmumi no pamatlīdzekļu un nemateriālo ieguldījumu pārdošanas. | J34: 260 | Q34: 4. Ieņēmumi no pamatlīdzekļu un nemateriālo ieguldījumu pārdošanas. | S34: 260
B35: R270 | C35: 11 | D35: G | H35: 5. Izsniegtie aizdevumi. | J35: 270 | Q35: 5. Izsniegtie aizdevumi. | S35: 270
B36: R280 | C36: 11 | D36: G | H36: 6. Ieņēmumi no aizdevumu atmaksas. | J36: 280 | Q36: 6. Ieņēmumi no aizdevumu atmaksas. | S36: 280
B37: R290 | C37: 11 | D37: G | H37: 7. Saņemtie procenti. | J37: 290 | Q37: 7. Saņemtie procenti. | S37: 290
B38: R300 | C38: 11 | D38: G | H38: 8. Saņemtās dividendes. | J38: 300 | Q38: 8. Saņemtās dividendes. | S38: 300
B39: R310 | C39: 11 | D39: G | H39: 9. Ieguldīšanas darbības neto naudas plūsma. | J39: 310 | K39: =SUM(K31:K38) -> 0 | L39: =SUM(L31:L38) -> 0 | Q39: 9. Ieguldīšanas darbības neto naudas plūsma. | S39: 310 | T39: =SUM(T31:T38) -> 0 | U39: 0
H41: III. Finansēšanas darbības naudas plūsma | J41: 320 | Q41: III. Finansēšanas darbības naudas plūsma | S41: 320
B42: R330 | C42: =COLUMN(K42) -> 11 | D42: =IF(AND(OR(K42="",K42=0),OR(L42="",L42=0),OR(T42="",T42=0),OR(U42="",U42=0)),"G","") -> G | H42: 1. Ieņēmumi no akciju un obligāciju emisijas vai kapitāla līdzdalības daļu ieguldījumiem. | J42: 330 | Q42: 1. Ieņēmumi no akciju un obligāciju emisijas vai kapitāla līdzdalības daļu ieguldījumiem. | S42: 330
B43: R340 | C43: 11 | D43: G | H43: 2. Saņemtie aizņēmumi. | J43: 340 | Q43: 2. Saņemtie aizņēmumi. | S43: 340
B44: R350 | C44: 11 | D44: G | H44: 3. Saņemtās subsīdijas, dotācijas, dāvinājumi vai ziedojumi. | J44: 350 | Q44: 3. Saņemtās subsīdijas, dotācijas, dāvinājumi vai ziedojumi. | S44: 350
B45: R360 | C45: 11 | D45: G | H45: 4. Izdevumi aizņēmumu atmaksāšanai. | J45: 360 | Q45: 4. Izdevumi aizņēmumu atmaksāšanai. | S45: 360
B46: R370 | C46: 11 | D46: G | H46: 5. Izdevumi nomāta pamatlīdzekļa izpirkumam. | J46: 370 | Q46: 5. Izdevumi nomāta pamatlīdzekļa izpirkumam. | S46: 370
B47: R380 | C47: 11 | D47: G | H47: 6. Izmaksātās dividendes. | J47: 380 | Q47: 6. Izmaksātās dividendes. | S47: 380
B48: R390 | C48: 11 | D48: G | H48: 7. Finansēšanas darbības neto naudas plūsma. | J48: 390 | K48: =SUM(K42:K47) -> 0 | L48: =SUM(L42:L47) -> 0 | Q48: 7. Finansēšanas darbības neto naudas plūsma. | S48: 390 | T48: =SUM(T42:T47) -> 0 | U48: 0
B50: R400 | C50: =COLUMN(K50) -> 11 | D50: =IF(AND(OR(K50="",K50=0),OR(L50="",L50=0),OR(T50="",T50=0),OR(U50="",U50=0)),"G","") -> G | H50: IV. Ārvalstu valūtu kursu svārstību rezultāts | J50: 400 | Q50: IV. Ārvalstu valūtu kursu svārstību rezultāts | S50: 400
B51: R410 | C51: 11 | D51: =IF(AND(OR(K51="",K51=0),OR(L51="",L51=0),OR(T51="",T51=0),OR(U51="",U51=0)),"G","") -> G | H51: V. Pārskata gada neto naudas plūsma | J51: 410 | K51: =SUM(K28,K39,K48,K50) -> 0 | L51: =SUM(L28,L39,L48,L50) -> 0 | Q51: V. Pārskata gada neto naudas plūsma | S51: 410 | T51: =SUM(T28,T39,T48,T50) -> 0 | U51: 0
B52: R420 | C52: 11 | D52: =IF(AND(OR(K52="",K52=0),OR(L52="",L52=0),OR(T52="",T52=0),OR(U52="",U52=0)),"G","") -> G | H52: VI. Naudas un tās ekvivalentu atlikums pārskata gada sākumā | J52: 420 | Q52: VI. Naudas un tās ekvivalentu atlikums pārskata gada sākumā | S52: 420
B53: R430 | C53: 11 | D53: =IF(AND(OR(K53="",K53=0),OR(L53="",L53=0),OR(T53="",T53=0),OR(U53="",U53=0)),"G","") -> G | H53: VII. Naudas un tās ekvivalentu atlikums pārskata gada beigās | J53: 430 | K53: =SUM(K51:K52) -> 0 | L53: =SUM(L51:L52) -> 0 | Q53: VII. Naudas un tās ekvivalentu atlikums pārskata gada beigās | S53: 430 | T53: =SUM(T51:T52) -> 0 | U53: =SUM(U51:U52) -> 0

Sheet PKIP (hidden)
A1: =COLUMN(P1)-COLUMN(G1) -> 9 | B1: xmlIdent | C1: xmlClmn | D1: xlGr
G3: Pašu kapitāla izmaiņu pārskats (PKIP) | N3: =IF(Pamatdati!$H$5=Pamatdati!$Q$5,IF(Pamatdati!$H$8-1=Pamatdati!$Q$9,"IPG","PG"),"N") -> PG | P3: Tikai salīdzināšanai
G5: Posteņa nosaukums | J5: Rindas kods | K5: Pārskata gada beigās | L5: Iepriekšējā pārskata gada beigās | P5: Posteņa nosaukums | S5: Rindas kods | T5: Pārskata gada beigās | U5: Iepriekšējā pārskata gada beigās
G6: I. Akciju vai daļu kapitāls (pamatkapitāls) | J6: 10 | P6: I. Akciju vai daļu kapitāls (pamatkapitāls) | S6: 10
B7: R20 | C7: =COLUMN(K7) -> 11 | H7: 1. Iepriekšējā gada bilancē norādītā summa | J7: 20 | Q7: 1. Iepriekšējā gada bilancē norādītā summa | S7: 20
B8: R30 | C8: 11 | H8: 2. Iepriekšējā gada bilancē norādītās summas labojums | J8: 30 | Q8: 2. Iepriekšējā gada bilancē norādītās summas labojums | S8: 30
B9: R40 | C9: 11 | D9: =IF(AND(OR(K9="",K9=0),OR(L9="",L9=0),OR(T9="",T9=0),OR(U9="",U9=0)),"G","") -> G | H9: 3. Akciju vai daļu kapitāla (pamatkapitāla) pieaugums/samazinājums | J9: 40 | Q9: 3. Akciju vai daļu kapitāla (pamatkapitāla) pieaugums/samazinājums | S9: 40
H10: 4. Pārskata gada bilancē norādītā summa perioda beigās | J10: 50 | K10: =SUM(K7:K9) -> 0 | L10: =SUM(L7:L9) -> 0 | Q10: 4. Pārskata gada bilancē norādītā summa perioda beigās | S10: 50 | T10: =SUM(T7:T9) -> 0 | U10: =SUM(U7:U9) -> 0
D12: =D16 -> G | G12: II. Akciju (daļu) emisijas uzcenojums | J12: 60 | P12: II. Akciju (daļu) emisijas uzcenojums | S12: 60
B13: R70 | C13: =COLUMN(K13) -> 11 | D13: =IF(AND(OR(K13="",K13=0),OR(L13="",L13=0),OR(T13="",T13=0),OR(U13="",U13=0)),"G","") -> G | H13: 1. Iepriekšējā gada bilancē norādītā summa | J13: 70 | Q13: 1. Iepriekšējā gada bilancē norādītā summa | S13: 70
B14: R80 | C14: 11 | D14: =IF(AND(OR(K14="",K14=0),OR(L14="",L14=0),OR(T14="",T14=0),OR(U14="",U14=0)),"G","") -> G | H14: 2. Iepriekšējā gada bilancē norādītās summas labojums | J14: 80 | Q14: 2. Iepriekšējā gada bilancē norādītās summas labojums | S14: 80
B15: R90 | C15: 11 | D15: =IF(AND(OR(K15="",K15=0),OR(L15="",L15=0),OR(T15="",T15=0),OR(U15="",U15=0)),"G","") -> G | H15: 3. Akciju (daļu) emisijas uzcenojuma pieaugums/ samazinājums | J15: 90 | Q15: 3. Akciju (daļu) emisijas uzcenojuma pieaugums/ samazinājums | S15: 90
D16: =IF(AND(OR(K16="",K16=0),OR(L16="",L16=0),OR(T16="",T16=0),OR(U16="",U16=0)),"G","") -> G | H16: 4. Pārskata gada bilancē norādītā summa perioda beigās | J16: 100 | K16: =SUM(K13:K15) -> 0 | L16: =SUM(L13:L15) -> 0 | Q16: 4. Pārskata gada bilancē norādītā summa perioda beigās | S16: 100 | T16: =SUM(T13:T15) -> 0 | U16: =SUM(U13:U15) -> 0
D17: =D16 -> G
D18: =D22 -> G | G18: III. Ilgtermiņa ieguldījumu pārvērtēšanas rezerve | J18: 110 | P18: III. Ilgtermiņa ieguldījumu pārvērtēšanas rezerve | S18: 110
B19: R120 | C19: =COLUMN(K19) -> 11 | D19: =IF(AND(OR(K19="",K19=0),OR(L19="",L19=0),OR(T19="",T19=0),OR(U19="",U19=0)),"G","") -> G | H19: 1. Iepriekšējā gada bilancē norādītā summa | J19: 120 | Q19: 1. Iepriekšējā gada bilancē norādītā summa | S19: 120
B20: R130 | C20: 11 | D20: =IF(AND(OR(K20="",K20=0),OR(L20="",L20=0),OR(T20="",T20=0),OR(U20="",U20=0)),"G","") -> G | H20: 2. Iepriekšējā gada bilancē norādītās summas labojums | J20: 130 | Q20: 2. Iepriekšējā gada bilancē norādītās summas labojums | S20: 130
B21: R140 | C21: 11 | D21: =IF(AND(OR(K21="",K21=0),OR(L21="",L21=0),OR(T21="",T21=0),OR(U21="",U21=0)),"G","") -> G | H21: 3. Ilgtermiņa ieguldījumu pārvērtēšanas rezerves atlikuma palielinājums/samazinājums | J21: 140 | Q21: 3. Ilgtermiņa ieguldījumu pārvērtēšanas rezerves atlikuma palielinājums/samazinājums | S21: 140
D22: =IF(AND(OR(K22="",K22=0),OR(L22="",L22=0),OR(T22="",T22=0),OR(U22="",U22=0)),"G","") -> G | H22: 4. Pārskata gada bilancē norādītā summa perioda beigās | J22: 150 | K22: =SUM(K19:K21) -> 0 | L22: =SUM(L19:L21) -> 0 | Q22: 4. Pārskata gada bilancē norādītā summa perioda beigās | S22: 150 | T22: =SUM(T19:T21) -> 0 | U22: =SUM(U19:U21) -> 0
D23: =D22 -> G
D24: =D28 -> G | G24: IV. Finanšu instrumentu patiesās vērtības rezerve | J24: 160 | P24: IV. Finanšu instrumentu patiesās vērtības rezerve | S24: 160
B25: R170 | C25: =COLUMN(K25) -> 11 | D25: =IF(AND(OR(K25="",K25=0),OR(L25="",L25=0),OR(T25="",T25=0),OR(U25="",U25=0)),"G","") -> G | H25: 1. Iepriekšējā gada bilancē norādītā summa | J25: 170 | Q25: 1. Iepriekšējā gada bilancē norādītā summa | S25: 170
B26: R180 | C26: 11 | D26: =IF(AND(OR(K26="",K26=0),OR(L26="",L26=0),OR(T26="",T26=0),OR(U26="",U26=0)),"G","") -> G | H26: 2. Iepriekšējā gada bilancē norādītās summas labojums | J26: 180 | Q26: 2. Iepriekšējā gada bilancē norādītās summas labojums | S26: 180
B27: R190 | C27: 11 | D27: =IF(AND(OR(K27="",K27=0),OR(L27="",L27=0),OR(T27="",T27=0),OR(U27="",U27=0)),"G","") -> G | H27: 3. Finanšu instrumentu patiesās vērtības rezervju atlikuma palielinājums/samazinājums | J27: 190 | Q27: 3. Finanšu instrumentu patiesās vērtības rezervju atlikuma palielinājums/samazinājums | S27: 190
D28: =IF(AND(OR(K28="",K28=0),OR(L28="",L28=0),OR(T28="",T28=0),OR(U28="",U28=0)),"G","") -> G | H28: 4. Pārskata gada bilancē norādītā summa perioda beigās | J28: 200 | K28: =SUM(K25:K27) -> 0 | L28: =SUM(L25:L27) -> 0 | Q28: 4. Pārskata gada bilancē norādītā summa perioda beigās | S28: 200 | T28: =SUM(T25:T27) -> 0 | U28: =SUM(U25:U27) -> 0
D29: =D28 -> G
D30: =D34 -> G | G30: V. Rezerves | J30: 210 | P30: V. Rezerves | S30: 210
B31: R220 | C31: =COLUMN(K31) -> 11 | D31: =IF(AND(OR(K31="",K31=0),OR(L31="",L31=0),OR(T31="",T31=0),OR(U31="",U31=0)),"G","") -> G | H31: 1. Iepriekšējā gada bilancē norādītā summa | J31: 220 | Q31: 1. Iepriekšējā gada bilancē norādītā summa | S31: 220
B32: R230 | C32: 11 | D32: =IF(AND(OR(K32="",K32=0),OR(L32="",L32=0),OR(T32="",T32=0),OR(U32="",U32=0)),"G","") -> G | H32: 2. Iepriekšējā gada bilancē norādītās summas labojums | J32: 230 | Q32: 2. Iepriekšējā gada bilancē norādītās summas labojums | S32: 230
B33: R240 | C33: 11 | D33: =IF(AND(OR(K33="",K33=0),OR(L33="",L33=0),OR(T33="",T33=0),OR(U33="",U33=0)),"G","") -> G | H33: 3. Rezervju atlikuma palielinājums/samazinājums | J33: 240 | Q33: 3. Rezervju atlikuma palielinājums/samazinājums | S33: 240
D34: =IF(AND(OR(K34="",K34=0),OR(L34="",L34=0),OR(T34="",T34=0),OR(U34="",U34=0)),"G","") -> G | H34: 4. Pārskata gada bilancē norādītā summa perioda beigās | J34: 250 | K34: =SUM(K31:K33) -> 0 | L34: =SUM(L31:L33) -> 0 | Q34: 4. Pārskata gada bilancē norādītā summa perioda beigās | S34: 250 | T34: =SUM(T31:T33) -> 0 | U34: =SUM(U31:U33) -> 0
D35: =D34 -> G
G36: VI. Nesadalītā peļņa | J36: 260 | P36: VI. Nesadalītā peļņa | S36: 260
B37: R270 | C37: =COLUMN(K37) -> 11 | D37: =IF(AND(OR(K37="",K37=0),OR(L37="",L37=0),OR(T37="",T37=0),OR(U37="",U37=0)),"G","") -> G | H37: 1. Iepriekšējā gada bilancē norādītā summa | J37: 270 | Q37: 1. Iepriekšējā gada bilancē norādītā summa | S37: 270
B38: R280 | C38: 11 | D38: G | H38: 2. Iepriekšējā gada bilancē norādītās summas labojums | J38: 280 | Q38: 2. Iepriekšējā gada bilancē norādītās summas labojums | S38: 280
B39: R290 | C39: =COLUMN(K39) -> 11 | D39: =IF(AND(OR(K39="",K39=0),OR(L39="",L39=0),OR(T39="",T39=0),OR(U39="",U39=0)),"G","") -> G | H39: 3. Nesadalītās peļņas palielinājums/samazinājums | J39: 290 | Q39: 3. Nesadalītās peļņas palielinājums/samazinājums | S39: 290
C40: =COLUMN(K40) -> 11 | D40: =IF(AND(OR(K40="",K40=0),OR(L40="",L40=0),OR(T40="",T40=0),OR(U40="",U40=0)),"G","") -> G | H40: 4. Pārskata gada bilancē norādītā summa perioda beigās | J40: 300 | K40: =SUM(K37:K39) -> 0 | L40: =SUM(L37:L39) -> 0 | Q40: 4. Pārskata gada bilancē norādītā summa perioda beigās | S40: 300 | T40: =SUM(T37:T39) -> 0 | U40: =SUM(U37:U39) -> 0
G42: VI.1 Mazākumakcionāru līdzdalības daļa | J42: =IF(Pamatdati!$H$3="Konsolidētais uzņēmuma gada pārskats",J40+1,"---") -> --- | P42: VI.1 Mazākumakcionāru līdzdalības daļa | S42: 301
B43: R302 | C43: =COLUMN(K43) -> 11 | D43: =IF(AND(OR(K43="",K43=0),OR(L43="",L43=0),OR(T43="",T43=0),OR(U43="",U43=0)),"G","") -> G | H43: 1. Iepriekšējā gada bilancē norādītā summa | J43: =IF(Pamatdati!$H$3="Konsolidētais uzņēmuma gada pārskats",J42+1,"---") -> --- | Q43: 1. Iepriekšējā gada bilancē norādītā summa | S43: 302
B44: R303 | C44: 11 | D44: G | H44: 2. Iepriekšējā gada bilancē norādītās summas labojums | J44: =IF(Pamatdati!$H$3="Konsolidētais uzņēmuma gada pārskats",J43+1,"---") -> --- | Q44: 2. Iepriekšējā gada bilancē norādītās summas labojums | S44: 303
B45: R304 | C45: 11 | D45: G | H45: 3. Mazākumakcionāru līdzdalības daļas palielinājums/samazinājums | J45: =IF(Pamatdati!$H$3="Konsolidētais uzņēmuma gada pārskats",J44+1,"---") -> --- | Q45: 3. Mazākumakcionāru līdzdalības daļas palielinājums/samazinājums | S45: 304
C46: 11 | D46: G | H46: 4. Pārskata gada bilancē norādītā summa perioda beigās | J46: =IF(Pamatdati!$H$3="Konsolidētais uzņēmuma gada pārskats",J45+5,"---") -> --- | K46: =SUM(K43:K45) -> 0 | L46: =SUM(L43:L45) -> 0 | Q46: 4. Pārskata gada bilancē norādītā summa perioda beigās | S46: 309 | T46: =SUM(T43:T45) -> 0 | U46: =SUM(U43:U45) -> 0
G48: VII. Pašu kapitāls | J48: 310 | P48: VII. Pašu kapitāls | S48: 310
H49: 1. Iepriekšējā gada bilancē norādītā summa | J49: 320 | K49: =SUM(K37,K31,K25,K19,K13,K7,K43) -> 0 | L49: =SUM(L37,L31,L25,L19,L13,L7,L43) -> 0 | Q49: 1. Iepriekšējā gada bilancē norādītā summa | S49: 320 | T49: =SUM(T37,T31,T25,T19,T13,T7,T43) -> 0 | U49: =SUM(U37,U31,U25,U19,U13,U7,U43) -> 0
H50: 2. Iepriekšējā gada bilancē norādītās summas labojums | J50: 330 | K50: =SUM(K38,K32,K26,K20,K14,K8,K44) -> 0 | L50: 0 | Q50: 2. Iepriekšējā gada bilancē norādītās summas labojums | S50: 330 | T50: =SUM(T38,T32,T26,T20,T14,T8,T44) -> 0 | U50: 0
H51: 3. Pārskata gada bilancē norādītā summa perioda beigās | J51: 340 | K51: 0 | L51: 0 | Q51: 3. Pārskata gada bilancē norādītā summa perioda beigās | S51: 340 | T51: 0 | U51: 0

Sheet Ziedotāji un dāvinātāji
B1: 4 simboli | C1: 2 simboli | D1: ja LV tad 11 simboli ja Arvalsts., tad līdz 20 simboliem | E1: līdz 120 simboliem | F1: līdz 120 simboliem | G1: Skaits, max 2 cipari aiz komata | I1: 2 simboli | J1: līdz 120 simboliem
B2: Ziedotāja tips | C2: Valsts | D2: NMR kods / personas kods | E2: Nosaukums / vārds, uzvārds | F2: Ārvalstu adrese | G2: Nauda (euro) | H2: Mantiskā (euro) | I2: Mērķis | J2: Komentārs

Sheet Paraugs
B1: 4 simboli | C1: 2 simboli | D1: ja LV tad 11 simboli ja Arvalsts., tad līdz 20 simboliem | E1: līdz 120 simboliem | F1: līdz 120 simboliem | G1: Skaits, max 2 cipari aiz komata | I1: 2 simboli | J1: līdz 120 simboliem
B2: Ziedotāja tips | C2: Valsts | D2: NMR kods / personas kods | E2: Nosaukums / vārds, uzvārds | F2: Ārvalstu adrese | G2: Nauda (euro) | H2: Mantiskā (euro) | I2: Mērķis | J2: Komentārs
B3: LRJP | C3: LV | D3: ??????????? | E3: ???????????????????? | G3: 10 | I3: NL
B4: LRJP | C4: LV | D4: ??????????? | E4: ???????????????????? | H4: 10 | I4: NM
B5: LRFP | C5: LV | D5: ??????????? | E5: ???????????????????? | G5: 10 | I5: NL
B6: LRFP | C6: LV | D6: ?????????????? | E6: ???????????????????? | G6: 10 | I6: NL
B7: LRFP | C7: LV | D7: ???????????? | E7: ???????????????????? | G7: 10 | I7: NL
B8: AVJP | C8: DK | D8: ???????? | E8: ???????????????????? | F8: ???????????????????? | G8: 10 | I8: NL
B9: AVJP | C9: LT | D9: ????????? | E9: ???????????????????? | F9: ???????????????????? | G9: 10 | I9: NL
B10: AVJP | C10: LT | D10: ???????????? | E10: ???????????????????? | F10: ???????????????????? | G10: 10 | I10: NL
B11: ANON | C11: LV | E11: ???????????????????? | G11: 10 | I11: NL

Sheet Pielikums vai piezīmes (hidden)
A1: =COLUMN(AY1)-COLUMN(N1) -> 37 | B1: xlIzm | C1: xlGr | D1: MI | E1: MA | F1: V | G1: L | H1: RowOffset | I1: xmlIdent | J1: xmlClmn | K1: width 875; 1040; 1410
B3: IZM | C3: GR | D3: MI | E3: MA | F3: VI | G3: LI | N3: Finanšu pārskata pielikums vai piezīmes | AW3: =IF(Pamatdati!$H$5=Pamatdati!$Q$5,IF(Pamatdati!$H$8-1=Pamatdati!$Q$9,"IPG","PG"),"N") -> PG | AY3: Tikai salīdzināšanai
B5: 1 | D5: x | E5: x | F5: x | G5: x | N5: 1. | O5: Sabiedrības sniegtā informācija | AY5: 1. | AZ5: Sabiedrības sniegtā informācija
B6: 1
B7: 1 | D7: x | E7: x | F7: x | G7: x | I7: R101 | J7: ="L:"&COLUMN(AS7) -> L:45 | N7: 1.1. | O7: Vidējais darbinieku skaits | AY7: 1.1. | AZ7: Vidējais darbinieku skaits
B8: 3 | C8: =C9 -> 
B9: 3 | C9: =IF(C12="GS","S","") ->  | F9: x | G9: x | N9: 1.2. | O9: Vidējais darbinieku skaits sadalījumā pa kategorijām: | AY9: 1.2. | AZ9: Vidējais darbinieku skaits sadalījumā pa kategorijām:
B10: 3 | C10: =IFERROR(IF(OR(AS10<>"",CD10<>""),"GS","G"),"GS") -> G | F10: x | G10: x | I10: R10201 | J10: ="L:"&COLUMN(AS10) -> L:45 | N10: 1.2.1. | O10: valdes locekļi | AY10: 1.2.1. | AZ10: valdes locekļi
B11: 3 | C11: =IFERROR(IF(OR(AS11<>"",CD11<>""),"GS","G"),"GS") -> G | F11: x | G11: x | I11: R10202 | J11: ="L:"&COLUMN(AS11) -> L:45 | N11: 1.2.2. | O11: padomes locekļi | AY11: 1.2.2. | AZ11: padomes locekļi
B12: 3 | C12: =IFERROR(IF(OR(AS12<>"",CD12<>""),"GS","G"),"GS") -> G | F12: x | G12: x | I12: R10203 | J12: ="L:"&COLUMN(AS12) -> L:45 | N12: 1.2.3. | O12: pārējie darbinieki | AY12: 1.2.3. | AZ12: pārējie darbinieki
B13: 3 | C13: =C14 -> 
B14: 3 | C14: =IF(C15="GS","S","") ->  | F14: x | G14: x | N14: 1.3. | O14: Detalizēta informācija par naudas un tās ekvivalentu atlikumiem (naudas plūsmas pārskatā) pārskata gada sākumā un beigās | AY14: 1.3. | AZ14: Detalizēta informācija par naudas un tās ekvivalentu atlikumiem (naudas plūsmas pārskatā) pārskata gada sākumā un beigās
B15: 3 | C15: =IFERROR(IF(OR(N15<>"",AY15<>""),"GS","G"),"GS") -> G | I15: R103 | J15: =COLUMN(N15) -> 14 | K15: =LEFT(IF(LEN(N15)<LEN(AY15),AY15,N15),LEN(IF(LEN(N15)<LEN(AY15),AY15,N15))/2) ->  | CI15: =N14 -> 1.3.
B16: 3 | C16: =C15 -> G | J16: =COLUMN(N16) -> 14 | K16: =RIGHT(IF(LEN(N15)<LEN(AY15),AY15,N15),LEN(IF(LEN(N15)<LEN(AY15),AY15,N15))/2) -> 
B17: 2 | C17: =C18 -> 
B18: 2 | C18: =IF(C19="GS","S","") ->  | E18: x | F18: x | G18: x | N18: 1.4. | O18: Informācija par pieņemto grāmatvedības politiku, tās izmaiņām un atbilstību pieņēmumam, ka sabiedrība darbosies arī turpmāk: | AY18: 1.4. | AZ18: Informācija par pieņemto grāmatvedības politiku, tās izmaiņām un atbilstību pieņēmumam, ka sabiedrība darbosies arī turpmāk:
B19: 2 | C19: =IFERROR(IF(OR(N19<>"",AY19<>""),"GS","G"),"GS") -> G | I19: R104 | J19: =COLUMN(N19) -> 14 | K19: =LEFT(IF(LEN(N19)<LEN(AY19),AY19,N19),LEN(IF(LEN(N19)<LEN(AY19),AY19,N19))/2) ->  | CI19: =N18 -> 1.4.
B20: 2 | C20: =C19 -> G | J20: =COLUMN(N20) -> 14 | K20: =RIGHT(IF(LEN(N19)<LEN(AY19),AY19,N19),LEN(IF(LEN(N19)<LEN(AY19),AY19,N19))/2) -> 
B21: 2
B22: 2 | E22: x | F22: x | G22: x | N22: 1.4.1. | O22: ilgtermiņa ieguldījumu uzskaite: | AY22: 1.4.1. | AZ22: ilgtermiņa ieguldījumu uzskaite:
B23: 2 | C23: =IF(C24="GS","S","") ->  | E23: x | F23: x | G23: x | N23: 1.4.1.1. | O23: nemateriālo ieguldījumu uzskaite | AY23: 1.4.1.1. | AZ23: nemateriālo ieguldījumu uzskaite
B24: 2 | C24: =IFERROR(IF(OR(N24<>"",AY24<>""),"GS","G"),"GS") -> G | I24: R1040101 | J24: =COLUMN(N24) -> 14 | K24: =LEFT(IF(LEN(N24)<LEN(AY24),AY24,N24),LEN(IF(LEN(N24)<LEN(AY24),AY24,N24))/2) ->  | CI24: =N23 -> 1.4.1.1.
B25: 2 | C25: =C24 -> G | J25: =COLUMN(N25) -> 14 | K25: =RIGHT(IF(LEN(N24)<LEN(AY24),AY24,N24),LEN(IF(LEN(N24)<LEN(AY24),AY24,N24))/2) -> 
B26: 2 | C26: =IF(C27="GS","S","") ->  | E26: x | F26: x | G26: x | N26: 1.4.1.2. | O26: pamatlīdzekļu uzskaite (novērtēšana, nolietojuma metode, dzīvnieku un augu uzskaite) | AY26: 1.4.1.2. | AZ26: pamatlīdzekļu uzskaite (novērtēšana, nolietojuma metode, dzīvnieku un augu uzskaite)
B27: 2 | C27: =IFERROR(IF(OR(N27<>"",AY27<>""),"GS","G"),"GS") -> G | I27: R1040102 | J27: =COLUMN(N27) -> 14 | K27: =LEFT(IF(LEN(N27)<LEN(AY27),AY27,N27),LEN(IF(LEN(N27)<LEN(AY27),AY27,N27))/2) ->  | CI27: =N26 -> 1.4.1.2.
B28: 2 | C28: =C27 -> G | J28: =COLUMN(N28) -> 14 | K28: =RIGHT(IF(LEN(N27)<LEN(AY27),AY27,N27),LEN(IF(LEN(N27)<LEN(AY27),AY27,N27))/2) -> 
B29: 2 | C29: =IF(C30="GS","S","") ->  | E29: x | F29: x | G29: x | N29: 1.4.1.3. | O29: ilgtermiņa finanšu ieguldījumu uzskaite | AY29: 1.4.1.3. | AZ29: ilgtermiņa finanšu ieguldījumu uzskaite
B30: 2 | C30: =IFERROR(IF(OR(N30<>"",AY30<>""),"GS","G"),"GS") -> G | I30: R1040103 | J30: =COLUMN(N30) -> 14 | K30: =LEFT(IF(LEN(N30)<LEN(AY30),AY30,N30),LEN(IF(LEN(N30)<LEN(AY30),AY30,N30))/2) ->  | CI30: =N29 -> 1.4.1.3.
B31: 2 | C31: =C30 -> G | J31: =COLUMN(N31) -> 14 | K31: =RIGHT(IF(LEN(N30)<LEN(AY30),AY30,N30),LEN(IF(LEN(N30)<LEN(AY30),AY30,N30))/2) -> 
B32: 2 | C32: =IF(C33="GS","S","") ->  | E32: x | F32: x | G32: x | N32: 1.4.1.4. | O32: papildus sniegtā informācija, ja tāda ir | AY32: 1.4.1.4. | AZ32: papildus sniegtā informācija, ja tāda ir
B33: 2 | C33: =IFERROR(IF(OR(N33<>"",AY33<>""),"GS","G"),"GS") -> G | I33: R1040104 | J33: =COLUMN(N33) -> 14 | K33: =LEFT(IF(LEN(N33)<LEN(AY33),AY33,N33),LEN(IF(LEN(N33)<LEN(AY33),AY33,N33))/2) ->  | CI33: =N32 -> 1.4.1.4.
B34: 2 | C34: =C33 -> G | J34: =COLUMN(N34) -> 14 | K34: =RIGHT(IF(LEN(N33)<LEN(AY33),AY33,N33),LEN(IF(LEN(N33)<LEN(AY33),AY33,N33))/2) -> 
B35: 2
B36: 2 | E36: x | F36: x | G36: x | N36: 1.4.2. | O36: apgrozāmo līdzekļu uzskaite: | AY36: 1.4.2. | AZ36: apgrozāmo līdzekļu uzskaite:
B37: 2 | C37: =IF(C38="GS","S","") ->  | E37: x | F37: x | G37: x | N37: 1.4.2.1. | O37: krājumu uzskaite | AY37: 1.4.2.1. | AZ37: krājumu uzskaite
B38: 2 | C38: =IFERROR(IF(OR(N38<>"",AY38<>""),"GS","G"),"GS") -> G | I38: R1040201 | J38: =COLUMN(N38) -> 14 | K38: =LEFT(IF(LEN(N38)<LEN(AY38),AY38,N38),LEN(IF(LEN(N38)<LEN(AY38),AY38,N38))/2) ->  | CI38: =N37 -> 1.4.2.1.
B39: 2 | C39: =C38 -> G | J39: =COLUMN(N39) -> 14 | K39: =RIGHT(IF(LEN(N38)<LEN(AY38),AY38,N38),LEN(IF(LEN(N38)<LEN(AY38),AY38,N38))/2) -> 
B40: 2 | C40: =IF(C41="GS","S","") ->  | E40: x | F40: x | G40: x | N40: 1.4.2.2. | O40: uzkrājumu veidošanas grāmatvedības politika nedrošiem parādiem | AY40: 1.4.2.2. | AZ40: uzkrājumu veidošanas grāmatvedības politika nedrošiem parādiem
B41: 2 | C41: =IFERROR(IF(OR(N41<>"",AY41<>""),"GS","G"),"GS") -> G | I41: R1040202 | J41: =COLUMN(N41) -> 14 | K41: =LEFT(IF(LEN(N41)<LEN(AY41),AY41,N41),LEN(IF(LEN(N41)<LEN(AY41),AY41,N41))/2) ->  | CI41: =N40 -> 1.4.2.2.
B42: 2 | C42: =C41 -> G | J42: =COLUMN(N42) -> 14 | K42: =RIGHT(IF(LEN(N41)<LEN(AY41),AY41,N41),LEN(IF(LEN(N41)<LEN(AY41),AY41,N41))/2) -> 
B43: 2 | C43: =IF(C44="GS","S","") ->  | E43: x | F43: x | G43: x | N43: 1.4.2.3. | O43: papildus sniegtā informācija, ja tāda ir | AY43: 1.4.2.3. | AZ43: papildus sniegtā informācija, ja tāda ir
B44: 2 | C44: =IFERROR(IF(OR(N44<>"",AY44<>""),"GS","G"),"GS") -> G | I44: R1040203 | J44: =COLUMN(N44) -> 14 | K44: =LEFT(IF(LEN(N44)<LEN(AY44),AY44,N44),LEN(IF(LEN(N44)<LEN(AY44),AY44,N44))/2) ->  | CI44: =N43 -> 1.4.2.3.
B45: 2 | C45: =C44 -> G | J45: =COLUMN(N45) -> 14 | K45: =RIGHT(IF(LEN(N44)<LEN(AY44),AY44,N44),LEN(IF(LEN(N44)<LEN(AY44),AY44,N44))/2) -> 
B46: 2
B47: 2 | C47: =IF(C48="GS","S","") ->  | E47: x | F47: x | G47: x | N47: 1.4.3. | O47: uzkrājumu veidošanas noteikumi | AY47: 1.4.3. | AZ47: uzkrājumu veidošanas noteikumi
B48: 2 | C48: =IFERROR(IF(OR(N48<>"",AY48<>""),"GS","G"),"GS") -> G | I48: R10403 | J48: =COLUMN(N48) -> 14 | K48: =LEFT(IF(LEN(N48)<LEN(AY48),AY48,N48),LEN(IF(LEN(N48)<LEN(AY48),AY48,N48))/2) ->  | CI48: =N47 -> 1.4.3.
B49: 2 | C49: =C48 -> G | J49: =COLUMN(N49) -> 14 | K49: =RIGHT(IF(LEN(N48)<LEN(AY48),AY48,N48),LEN(IF(LEN(N48)<LEN(AY48),AY48,N48))/2) -> 
B50: 2 | C50: =IF(C51="GS","S","") ->  | E50: x | F50: x | G50: x | N50: 1.4.4. | O50: kreditoru uzskaite | AY50: 1.4.4. | AZ50: kreditoru uzskaite
B51: 2 | C51: =IFERROR(IF(OR(N51<>"",AY51<>""),"GS","G"),"GS") -> G | I51: R10404 | J51: =COLUMN(N51) -> 14 | K51: =LEFT(IF(LEN(N51)<LEN(AY51),AY51,N51),LEN(IF(LEN(N51)<LEN(AY51),AY51,N51))/2) ->  | CI51: =N50 -> 1.4.4.
B52: 2 | C52: =C51 -> G | J52: =COLUMN(N52) -> 14 | K52: =RIGHT(IF(LEN(N51)<LEN(AY51),AY51,N51),LEN(IF(LEN(N51)<LEN(AY51),AY51,N51))/2) -> 
B53: 2 | C53: =IF(C54="GS","S","") ->  | E53: x | F53: x | G53: x | N53: 1.4.5. | O53: ieņēmumu atzīšanas principi | AY53: 1.4.5. | AZ53: ieņēmumu atzīšanas principi
B54: 2 | C54: =IFERROR(IF(OR(N54<>"",AY54<>""),"GS","G"),"GS") -> G | I54: R10405 | J54: =COLUMN(N54) -> 14 | K54: =LEFT(IF(LEN(N54)<LEN(AY54),AY54,N54),LEN(IF(LEN(N54)<LEN(AY54),AY54,N54))/2) ->  | CI54: =N53 -> 1.4.5.
B55: 2 | C55: =C54 -> G | J55: =COLUMN(N55) -> 14 | K55: =RIGHT(IF(LEN(N54)<LEN(AY54),AY54,N54),LEN(IF(LEN(N54)<LEN(AY54),AY54,N54))/2) -> 
B56: 2 | C56: =IF(C57="GS","S","") ->  | E56: x | F56: x | G56: x | N56: 1.4.6. | O56: ar būvdarbu līgumu saistīto ieņēmumu uzskaites principi | AY56: 1.4.6. | AZ56: ar būvdarbu līgumu saistīto ieņēmumu uzskaites principi
B57: 2 | C57: =IFERROR(IF(OR(N57<>"",AY57<>""),"GS","G"),"GS") -> G | I57: R10406 | J57: =COLUMN(N57) -> 14 | K57: =LEFT(IF(LEN(N57)<LEN(AY57),AY57,N57),LEN(IF(LEN(N57)<LEN(AY57),AY57,N57))/2) ->  | CI57: =N56 -> 1.4.6.
B58: 2 | C58: =C57 -> G | J58: =COLUMN(N58) -> 14 | K58: =RIGHT(IF(LEN(N57)<LEN(AY57),AY57,N57),LEN(IF(LEN(N57)<LEN(AY57),AY57,N57))/2) -> 
B59: 2 | C59: =IF(C60="GS","S","") ->  | E59: x | F59: x | G59: x | N59: 1.4.7. | O59: izdevumu atzīšanas principi | AY59: 1.4.7. | AZ59: izdevumu atzīšanas principi
B60: 2 | C60: =IFERROR(IF(OR(N60<>"",AY60<>""),"GS","G"),"GS") -> G | I60: R10407 | J60: =COLUMN(N60) -> 14 | K60: =LEFT(IF(LEN(N60)<LEN(AY60),AY60,N60),LEN(IF(LEN(N60)<LEN(AY60),AY60,N60))/2) ->  | CI60: =N59 -> 1.4.7.
B61: 2 | C61: =C60 -> G | J61: =COLUMN(N61) -> 14 | K61: =RIGHT(IF(LEN(N60)<LEN(AY60),AY60,N60),LEN(IF(LEN(N60)<LEN(AY60),AY60,N60))/2) -> 
B62: 2 | C62: =IF(C63="GS","S","") ->  | E62: x | F62: x | G62: x | N62: 1.4.8. | O62: papildus sniegtā informācija, ja tāda ir | AY62: 1.4.8. | AZ62: papildus sniegtā informācija, ja tāda ir
B63: 2 | C63: =IFERROR(IF(OR(N63<>"",AY63<>""),"GS","G"),"GS") -> G | I63: R10408 | J63: =COLUMN(N63) -> 14 | K63: =LEFT(IF(LEN(N63)<LEN(AY63),AY63,N63),LEN(IF(LEN(N63)<LEN(AY63),AY63,N63))/2) ->  | CI63: =N62 -> 1.4.8.
B64: 2 | C64: =C63 -> G | J64: =COLUMN(N64) -> 14 | K64: =RIGHT(IF(LEN(N63)<LEN(AY63),AY63,N63),LEN(IF(LEN(N63)<LEN(AY63),AY63,N63))/2) -> 
B65: 1
B66: 1 | C66: =IF(C67="GS","S","") ->  | D66: x | E66: x | F66: x | G66: x | N66: 1.5. | O66: Detalizēta informācija par maznozīmīgām summām, kas norādītas līdzīgu finanšu informāciju apvienojošos posteņos | AY66: 1.5. | AZ66: Detalizēta informācija par maznozīmīgām summām, kas norādītas līdzīgu finanšu informāciju apvienojošos posteņos
B67: 1 | C67: =IFERROR(IF(OR(N67<>"",AY67<>""),"GS","G"),"GS") -> G | I67: R105 | J67: =COLUMN(N67) -> 14 | K67: =LEFT(IF(LEN(N67)<LEN(AY67),AY67,N67),LEN(IF(LEN(N67)<LEN(AY67),AY67,N67))/2) ->  | CI67: =N66 -> 1.5.
B68: 1 | C68: =C67 -> G | J68: =COLUMN(N68) -> 14 | K68: =RIGHT(IF(LEN(N67)<LEN(AY67),AY67,N67),LEN(IF(LEN(N67)<LEN(AY67),AY67,N67))/2) -> 
B69: 2
B70: 2 | C70: =IF(C71="GS","S","") ->  | E70: x | F70: x | G70: x | N70: 1.6. | O70: Papildinformācija, ja tāda nepieciešama skaidra un patiesa priekšstata gūšanai | AY70: 1.6. | AZ70: Papildinformācija, ja tāda nepieciešama skaidra un patiesa priekšstata gūšanai
B71: 2 | C71: =IFERROR(IF(OR(N71<>"",AY71<>""),"GS","G"),"GS") -> G | I71: R106 | J71: =COLUMN(N71) -> 14 | K71: =LEFT(IF(LEN(N71)<LEN(AY71),AY71,N71),LEN(IF(LEN(N71)<LEN(AY71),AY71,N71))/2) ->  | CI71: =N70 -> 1.6.
B72: 2 | C72: =C71 -> G | J72: =COLUMN(N72) -> 14 | K72: =RIGHT(IF(LEN(N71)<LEN(AY71),AY71,N71),LEN(IF(LEN(N71)<LEN(AY71),AY71,N71))/2) -> 
B73: 2
B74: 2 | C74: =IF(C75="GS","S","") ->  | E74: x | F74: x | G74: x | N74: 1.7. | O74: Skaidrojums par atkāpšanos no kāda likumā noteiktā finanšu pārskata posteņu atzīšanas, novērtēšanas un norādīšanas principa vai noteikumiem | AY74: 1.7. | AZ74: Skaidrojums par atkāpšanos no kāda likumā noteiktā finanšu pārskata posteņu atzīšanas, novērtēšanas un norādīšanas principa vai noteikumiem
B75: 2 | C75: =IFERROR(IF(OR(N75<>"",AY75<>""),"GS","G"),"GS") -> G | I75: R107 | J75: =COLUMN(N75) -> 14 | K75: =LEFT(IF(LEN(N75)<LEN(AY75),AY75,N75),LEN(IF(LEN(N75)<LEN(AY75),AY75,N75))/2) ->  | CI75: =N74 -> 1.7.
B76: 2 | C76: =C75 -> G | J76: =COLUMN(N76) -> 14 | K76: =RIGHT(IF(LEN(N75)<LEN(AY75),AY75,N75),LEN(IF(LEN(N75)<LEN(AY75),AY75,N75))/2) -> 
B77: 1
B78: 1 | D78: x | E78: x | F78: x | G78: x | N78: 1.8. | O78: Bilancē neiekļautās finansiālās saistības, sniegtās garantijas, un citas iespējamās saistības (kopsumma): | AY78: 1.8. | AZ78: Bilancē neiekļautās finansiālās saistības, sniegtās garantijas, un citas iespējamās saistības (kopsumma):
B79: 1 | C79: =IF(C80="GS","S","") ->  | D79: x | E79: x | F79: x | G79: x | N79: 1.8.1. | O79: galvojumi un garantijas | AY79: 1.8.1. | AZ79: galvojumi un garantijas
B80: 1 | C80: =IFERROR(IF(OR(N80<>"",AY80<>""),"GS","G"),"GS") -> G | I80: R10801 | J80: =COLUMN(N80) -> 14 | K80: =LEFT(IF(LEN(N80)<LEN(AY80),AY80,N80),LEN(IF(LEN(N80)<LEN(AY80),AY80,N80))/2) ->  | CI80: =N79 -> 1.8.1.
B81: 1 | C81: =C80 -> G | J81: =COLUMN(N81) -> 14 | K81: =RIGHT(IF(LEN(N80)<LEN(AY80),AY80,N80),LEN(IF(LEN(N80)<LEN(AY80),AY80,N80))/2) -> 
B82: 1 | C82: =IF(C83="GS","S","") ->  | D82: x | E82: x | F82: x | G82: x | N82: 1.8.2. | O82: saistības par noslēgtajiem nomas un īres līgumiem, kas ir būtiski sabiedrības darbībā | AY82: 1.8.2. | AZ82: saistības par noslēgtajiem nomas un īres līgumiem, kas ir būtiski sabiedrības darbībā
B83: 1 | C83: =IFERROR(IF(OR(N83<>"",AY83<>""),"GS","G"),"GS") -> G | I83: R10802 | J83: =COLUMN(N83) -> 14 | K83: =LEFT(IF(LEN(N83)<LEN(AY83),AY83,N83),LEN(IF(LEN(N83)<LEN(AY83),AY83,N83))/2) ->  | CI83: =N82 -> 1.8.2.
B84: 1 | C84: =C83 -> G | J84: =COLUMN(N84) -> 14 | K84: =RIGHT(IF(LEN(N83)<LEN(AY83),AY83,N83),LEN(IF(LEN(N83)<LEN(AY83),AY83,N83))/2) -> 
B85: 1 | C85: =IF(C86="GS","S","") ->  | D85: x | E85: x | F85: x | G85: x | N85: 1.8.3. | O85: informācija par to, ka sabiedrības aktīvi ir ieķīlāti vai citādi apgrūtināti | AY85: 1.8.3. | AZ85: informācija par to, ka sabiedrības aktīvi ir ieķīlāti vai citādi apgrūtināti
B86: 1 | C86: =IFERROR(IF(OR(N86<>"",AY86<>""),"GS","G"),"GS") -> G | I86: R10803 | J86: =COLUMN(N86) -> 14 | K86: =LEFT(IF(LEN(N86)<LEN(AY86),AY86,N86),LEN(IF(LEN(N86)<LEN(AY86),AY86,N86))/2) ->  | CI86: =N85 -> 1.8.3.
B87: 1 | C87: =C86 -> G | J87: =COLUMN(N87) -> 14 | K87: =RIGHT(IF(LEN(N86)<LEN(AY86),AY86,N86),LEN(IF(LEN(N86)<LEN(AY86),AY86,N86))/2) -> 
B88: 1 | C88: =IF(C89="GS","S","") ->  | D88: x | E88: x | F88: x | G88: x | N88: 1.8.4. | O88: saistības, kas attiecas uz pensijām | AY88: 1.8.4. | AZ88: saistības, kas attiecas uz pensijām
B89: 1 | C89: =IFERROR(IF(OR(N89<>"",AY89<>""),"GS","G"),"GS") -> G | I89: R10804 | J89: =COLUMN(N89) -> 14 | K89: =LEFT(IF(LEN(N89)<LEN(AY89),AY89,N89),LEN(IF(LEN(N89)<LEN(AY89),AY89,N89))/2) ->  | CI89: =N88 -> 1.8.4.
B90: 1 | C90: =C89 -> G | J90: =COLUMN(N90) -> 14 | K90: =RIGHT(IF(LEN(N89)<LEN(AY89),AY89,N89),LEN(IF(LEN(N89)<LEN(AY89),AY89,N89))/2) -> 
B91: 4
B92: 4 | C92: =IF(C93="",C96,C93) ->  | G92: x | N92: 1.8.5. | O92: pensijas un līdzīgas saistības pret bijušajiem pārvaldes institūciju locekļiem: | AY92: 1.8.5. | AZ92: pensijas un līdzīgas saistības pret bijušajiem pārvaldes institūciju locekļiem:
B93: 4 | C93: =IF(C94="GS","S","") ->  | G93: x | N93: 1.8.5.1. | O93: padomes locekļi | AY93: 1.8.5.1. | AZ93: padomes locekļi
B94: 4 | C94: =IFERROR(IF(OR(N94<>"",AY94<>""),"GS","G"),"GS") -> G | I94: R1080501 | J94: =COLUMN(N94) -> 14 | K94: =LEFT(IF(LEN(N94)<LEN(AY94),AY94,N94),LEN(IF(LEN(N94)<LEN(AY94),AY94,N94))/2) ->  | CI94: =N93 -> 1.8.5.1.
B95: 4 | C95: =C94 -> G | J95: =COLUMN(N95) -> 14 | K95: =RIGHT(IF(LEN(N94)<LEN(AY94),AY94,N94),LEN(IF(LEN(N94)<LEN(AY94),AY94,N94))/2) -> 
B96: 4 | C96: =IF(C97="GS","S","") ->  | G96: x | N96: 1.8.5.2. | O96: valdes locekļi | AY96: 1.8.5.2. | AZ96: valdes locekļi
B97: 4 | C97: =IFERROR(IF(OR(N97<>"",AY97<>""),"GS","G"),"GS") -> G | I97: R1080502 | J97: =COLUMN(N97) -> 14 | K97: =LEFT(IF(LEN(N97)<LEN(AY97),AY97,N97),LEN(IF(LEN(N97)<LEN(AY97),AY97,N97))/2) ->  | CI97: =N96 -> 1.8.5.2.
B98: 4 | C98: =C97 -> G | J98: =COLUMN(N98) -> 14 | K98: =RIGHT(IF(LEN(N97)<LEN(AY97),AY97,N97),LEN(IF(LEN(N97)<LEN(AY97),AY97,N97))/2) -> 
B99: 1
B100: 1 | C100: =IF(C101="GS","S","") ->  | D100: x | E100: x | F100: x | G100: x | N100: 1.8.6. | O100: saistības pret radniecīgajiem un asociētajiem uzņēmumiem | AY100: 1.8.6. | AZ100: saistības pret radniecīgajiem un asociētajiem uzņēmumiem
B101: 1 | C101: =IFERROR(IF(OR(N101<>"",AY101<>""),"GS","G"),"GS") -> G | I101: R10806 | J101: =COLUMN(N101) -> 14 | K101: =LEFT(IF(LEN(N101)<LEN(AY101),AY101,N101),LEN(IF(LEN(N101)<LEN(AY101),AY101,N101))/2) ->  | CI101: =N100 -> 1.8.6.
B102: 1 | C102: =C101 -> G | J102: =COLUMN(N102) -> 14 | K102: =RIGHT(IF(LEN(N101)<LEN(AY101),AY101,N101),LEN(IF(LEN(N101)<LEN(AY101),AY101,N101))/2) -> 
B103: 1 | C103: =IF(C104="GS","S","") ->  | D103: x | E103: x | F103: x | G103: x | N103: 1.8.7. | O103: informācija par iespējamām saistībām, kas varētu rasties konkrēta pagātnes notikuma sakarā | AY103: 1.8.7. | AZ103: informācija par iespējamām saistībām, kas varētu rasties konkrēta pagātnes notikuma sakarā
B104: 1 | C104: =IFERROR(IF(OR(N104<>"",AY104<>""),"GS","G"),"GS") -> G | I104: R10807 | J104: =COLUMN(N104) -> 14 | K104: =LEFT(IF(LEN(N104)<LEN(AY104),AY104,N104),LEN(IF(LEN(N104)<LEN(AY104),AY104,N104))/2) ->  | CI104: =N103 -> 1.8.7.
B105: 1 | C105: =C104 -> G | J105: =COLUMN(N105) -> 14 | K105: =RIGHT(IF(LEN(N104)<LEN(AY104),AY104,N104),LEN(IF(LEN(N104)<LEN(AY104),AY104,N104))/2) -> 
B106: 1 | C106: =IF(C107="GS","S","") ->  | D106: x | E106: x | F106: x | G106: x | N106: 1.8.8. | O106: informācija par operatīvo nomu (informāciju sniedz gan nomnieks, gan iznomātājs) | AY106: 1.8.8. | AZ106: informācija par operatīvo nomu (informāciju sniedz gan nomnieks, gan iznomātājs)
B107: 1 | C107: =IFERROR(IF(OR(N107<>"",AY107<>""),"GS","G"),"GS") -> G | I107: R10808 | J107: =COLUMN(N107) -> 14 | K107: =LEFT(IF(LEN(N107)<LEN(AY107),AY107,N107),LEN(IF(LEN(N107)<LEN(AY107),AY107,N107))/2) ->  | CI107: =N106 -> 1.8.8.
B108: 1 | C108: =C107 -> G | J108: =COLUMN(N108) -> 14 | K108: =RIGHT(IF(LEN(N107)<LEN(AY107),AY107,N107),LEN(IF(LEN(N107)<LEN(AY107),AY107,N107))/2) -> 
B109: 1 | C109: =IF(C110="GS","S","") ->  | D109: x | E109: x | F109: x | G109: x | N109: 1.8.9. | O109: informācija par finanšu nomu (informāciju sniedz gan nomnieks, gan iznomātājs) | AY109: 1.8.9. | AZ109: informācija par finanšu nomu (informāciju sniedz gan nomnieks, gan iznomātājs)
B110: 1 | C110: =IFERROR(IF(OR(N110<>"",AY110<>""),"GS","G"),"GS") -> G | I110: R10809 | J110: =COLUMN(N110) -> 14 | K110: =LEFT(IF(LEN(N110)<LEN(AY110),AY110,N110),LEN(IF(LEN(N110)<LEN(AY110),AY110,N110))/2) ->  | CI110: =N109 -> 1.8.9.
B111: 1 | C111: =C110 -> G | J111: =COLUMN(N111) -> 14 | K111: =RIGHT(IF(LEN(N110)<LEN(AY110),AY110,N110),LEN(IF(LEN(N110)<LEN(AY110),AY110,N110))/2) -> 
B112: 1 | C112: =IF(C113="GS","S","") ->  | D112: x | E112: x | F112: x | G112: x | N112: 1.8.10. | O112: informācija par atgriezenisko nomu | AY112: 1.8.10. | AZ112: informācija par atgriezenisko nomu
B113: 1 | C113: =IFERROR(IF(OR(N113<>"",AY113<>""),"GS","G"),"GS") -> G | I113: R10810 | J113: =COLUMN(N113) -> 14 | K113: =LEFT(IF(LEN(N113)<LEN(AY113),AY113,N113),LEN(IF(LEN(N113)<LEN(AY113),AY113,N113))/2) ->  | CI113: =N112 -> 1.8.10.
B114: 1 | C114: =C113 -> G | J114: =COLUMN(N114) -> 14 | K114: =RIGHT(IF(LEN(N113)<LEN(AY113),AY113,N113),LEN(IF(LEN(N113)<LEN(AY113),AY113,N113))/2) -> 
B115: 1 | C115: =IF(C116="GS","S","") ->  | D115: x | E115: x | F115: x | G115: x | N115: 1.8.11. | O115: papildus sniegtā informācija, ja tāda ir | AY115: 1.8.11. | AZ115: papildus sniegtā informācija, ja tāda ir
B116: 1 | C116: =IFERROR(IF(OR(N116<>"",AY116<>""),"GS","G"),"GS") -> G | I116: R10811 | J116: =COLUMN(N116) -> 14 | K116: =LEFT(IF(LEN(N116)<LEN(AY116),AY116,N116),LEN(IF(LEN(N116)<LEN(AY116),AY116,N116))/2) ->  | CI116: =N115 -> 1.8.11.
B117: 1 | C117: =C116 -> G | J117: =COLUMN(N117) -> 14 | K117: =RIGHT(IF(LEN(N116)<LEN(AY116),AY116,N116),LEN(IF(LEN(N116)<LEN(AY116),AY116,N116))/2) -> 
B118: 2
B119: 2 | E119: x | F119: x | G119: x | N119: 1.9. | O119: Informācija par nelabvēlīgiem vai labvēlīgiem notikumiem, kas neattiecas uz pārskata gadu, bet var būtiski ietekmēt gada pārskatu lietotāju novērtējumu attiecībā uz sabiedrības līdzekļiem, saistībām, finansiālo stāvokli, peļņu vai zaudējumiem un naudas plūsmu vai lēmumu pieņemšanu nākotnē | AY119: 1.9. | AZ119: Informācija par nelabvēlīgiem vai labvēlīgiem notikumiem, kas neattiecas uz pārskata gadu, bet var būtiski ietekmēt gada pārskatu lietotāju novērtējumu attiecībā uz sabiedrības līdzekļiem, saistībām, finansiālo stāvokli, peļņu vai zaudējumiem un naudas plūsmu vai lēmumu pieņemšanu nākotnē
B120: 2
B121: 2 | C121: =IFERROR(IF(OR(N121<>"",AY121<>""),"GS","G"),"GS") -> G | I121: R109 | J121: =COLUMN(N121) -> 14 | K121: =LEFT(IF(LEN(N121)<LEN(AY121),AY121,N121),LEN(IF(LEN(N121)<LEN(AY121),AY121,N121))/2) ->  | CI121: =N119 -> 1.9.
B122: 2 | C122: =C121 -> G | J122: =COLUMN(N122) -> 14 | K122: =RIGHT(IF(LEN(N121)<LEN(AY121),AY121,N121),LEN(IF(LEN(N121)<LEN(AY121),AY121,N121))/2) -> 
B123: 3
B124: 3 | C124: =IF(C125="GS","S","") ->  | F124: x | G124: x | N124: 1.10. | O124: Informācija par būtiskiem notikumiem, kuri nav iekļauti bilancē vai peļņas vai zaudējuma aprēķinā | AY124: 1.10. | AZ124: Informācija par būtiskiem notikumiem, kuri nav iekļauti bilancē vai peļņas vai zaudējuma aprēķinā
B125: 3 | C125: =IFERROR(IF(OR(N125<>"",AY125<>""),"GS","G"),"GS") -> G | I125: R110 | J125: =COLUMN(N125) -> 14 | K125: =LEFT(IF(LEN(N125)<LEN(AY125),AY125,N125),LEN(IF(LEN(N125)<LEN(AY125),AY125,N125))/2) ->  | CI125: =N124 -> 1.10.
B126: 3 | C126: =C125 -> G | J126: =COLUMN(N126) -> 14 | K126: =RIGHT(IF(LEN(N125)<LEN(AY125),AY125,N125),LEN(IF(LEN(N125)<LEN(AY125),AY125,N125))/2) -> 
B127: 3
B128: 3 | C128: =LEFT(C129&C132&C135&C138&C141&C144&C147&C150&C153,1) ->  | F128: x | G128: x | N128: 1.11. | O128: Informācija par bilancē neiekļautu vienošanos, kam ir ietekme sabiedrības finansiālā stāvokļa novērtēšanā: | AY128: 1.11. | AZ128: Informācija par bilancē neiekļautu vienošanos, kam ir ietekme sabiedrības finansiālā stāvokļa novērtēšanā:
B129: 3 | C129: =IF(C130="GS","S","") ->  | F129: x | G129: x | N129: 1.11.1. | O129: īpašiem nolūkiem dibinātu sabiedrību izveidošana vai izmantošana | AY129: 1.11.1. | AZ129: īpašiem nolūkiem dibinātu sabiedrību izveidošana vai izmantošana
B130: 3 | C130: =IFERROR(IF(OR(N130<>"",AY130<>""),"GS","G"),"GS") -> G | I130: R11101 | J130: =COLUMN(N130) -> 14 | K130: =LEFT(IF(LEN(N130)<LEN(AY130),AY130,N130),LEN(IF(LEN(N130)<LEN(AY130),AY130,N130))/2) ->  | CI130: =N129 -> 1.11.1.
B131: 3 | C131: =C130 -> G | J131: =COLUMN(N131) -> 14 | K131: =RIGHT(IF(LEN(N130)<LEN(AY130),AY130,N130),LEN(IF(LEN(N130)<LEN(AY130),AY130,N130))/2) -> 
B132: 3 | C132: =IF(C133="GS","S","") ->  | F132: x | G132: x | N132: 1.11.2. | O132: ārzonu darbība | AY132: 1.11.2. | AZ132: ārzonu darbība
B133: 3 | C133: =IFERROR(IF(OR(N133<>"",AY133<>""),"GS","G"),"GS") -> G | I133: R11102 | J133: =COLUMN(N133) -> 14 | K133: =LEFT(IF(LEN(N133)<LEN(AY133),AY133,N133),LEN(IF(LEN(N133)<LEN(AY133),AY133,N133))/2) ->  | CI133: =N132 -> 1.11.2.
B134: 3 | C134: =C133 -> G | J134: =COLUMN(N134) -> 14 | K134: =RIGHT(IF(LEN(N133)<LEN(AY133),AY133,N133),LEN(IF(LEN(N133)<LEN(AY133),AY133,N133))/2) -> 
B135: 3 | C135: =IF(C136="GS","S","") ->  | F135: x | G135: x | N135: 1.11.3. | O135: vienošanās par risku vai ieguvumu dalīšanu | AY135: 1.11.3. | AZ135: vienošanās par risku vai ieguvumu dalīšanu
B136: 3 | C136: =IFERROR(IF(OR(N136<>"",AY136<>""),"GS","G"),"GS") -> G | I136: R11103 | J136: =COLUMN(N136) -> 14 | K136: =LEFT(IF(LEN(N136)<LEN(AY136),AY136,N136),LEN(IF(LEN(N136)<LEN(AY136),AY136,N136))/2) ->  | CI136: =N135 -> 1.11.3.
B137: 3 | C137: =C136 -> G | J137: =COLUMN(N137) -> 14 | K137: =RIGHT(IF(LEN(N136)<LEN(AY136),AY136,N136),LEN(IF(LEN(N136)<LEN(AY136),AY136,N136))/2) -> 
B138: 3 | C138: =IF(C139="GS","S","") ->  | F138: x | G138: x | N138: 1.11.4. | O138: kombinētie repo un pārdošanas darījumi | AY138: 1.11.4. | AZ138: kombinētie repo un pārdošanas darījumi
B139: 3 | C139: =IFERROR(IF(OR(N139<>"",AY139<>""),"GS","G"),"GS") -> G | I139: R11104 | J139: =COLUMN(N139) -> 14 | K139: =LEFT(IF(LEN(N139)<LEN(AY139),AY139,N139),LEN(IF(LEN(N139)<LEN(AY139),AY139,N139))/2) ->  | CI139: =N138 -> 1.11.4.
B140: 3 | C140: =C139 -> G | J140: =COLUMN(N140) -> 14 | K140: =RIGHT(IF(LEN(N139)<LEN(AY139),AY139,N139),LEN(IF(LEN(N139)<LEN(AY139),AY139,N139))/2) -> 
B141: 3 | C141: =IF(C142="GS","S","") ->  | F141: x | G141: x | N141: 1.11.5. | O141: parādu faktūrkreditēšana | AY141: 1.11.5. | AZ141: parādu faktūrkreditēšana
B142: 3 | C142: =IFERROR(IF(OR(N142<>"",AY142<>""),"GS","G"),"GS") -> G | I142: R11105 | J142: =COLUMN(N142) -> 14 | K142: =LEFT(IF(LEN(N142)<LEN(AY142),AY142,N142),LEN(IF(LEN(N142)<LEN(AY142),AY142,N142))/2) ->  | CI142: =N141 -> 1.11.5.
B143: 3 | C143: =C142 -> G | J143: =COLUMN(N143) -> 14 | K143: =RIGHT(IF(LEN(N142)<LEN(AY142),AY142,N142),LEN(IF(LEN(N142)<LEN(AY142),AY142,N142))/2) -> 
B144: 3 | C144: =IF(C145="GS","S","") ->  | F144: x | G144: x | N144: 1.11.6. | O144: konsignācijas preču līgumi | AY144: 1.11.6. | AZ144: konsignācijas preču līgumi
B145: 3 | C145: =IFERROR(IF(OR(N145<>"",AY145<>""),"GS","G"),"GS") -> G | I145: R11106 | J145: =COLUMN(N145) -> 14 | K145: =LEFT(IF(LEN(N145)<LEN(AY145),AY145,N145),LEN(IF(LEN(N145)<LEN(AY145),AY145,N145))/2) ->  | CI145: =N144 -> 1.11.6.
B146: 3 | C146: =C145 -> G | J146: =COLUMN(N146) -> 14 | K146: =RIGHT(IF(LEN(N145)<LEN(AY145),AY145,N145),LEN(IF(LEN(N145)<LEN(AY145),AY145,N145))/2) -> 
B147: 3 | C147: =IF(C148="GS","S","") ->  | F147: x | G147: x | N147: 1.11.7. | O147: līgumdarbu piesaistīšana | AY147: 1.11.7. | AZ147: līgumdarbu piesaistīšana
B148: 3 | C148: =IFERROR(IF(OR(N148<>"",AY148<>""),"GS","G"),"GS") -> G | I148: R11107 | J148: =COLUMN(N148) -> 14 | K148: =LEFT(IF(LEN(N148)<LEN(AY148),AY148,N148),LEN(IF(LEN(N148)<LEN(AY148),AY148,N148))/2) ->  | CI148: =N147 -> 1.11.7.
B149: 3 | C149: =C148 -> G | J149: =COLUMN(N149) -> 14 | K149: =RIGHT(IF(LEN(N148)<LEN(AY148),AY148,N148),LEN(IF(LEN(N148)<LEN(AY148),AY148,N148))/2) -> 
B150: 3 | C150: =IF(C151="GS","S","") ->  | F150: x | G150: x | N150: 1.11.8. | O150: ārpakalpojumu izmantošana | AY150: 1.11.8. | AZ150: ārpakalpojumu izmantošana
B151: 3 | C151: =IFERROR(IF(OR(N151<>"",AY151<>""),"GS","G"),"GS") -> G | I151: R11108 | J151: =COLUMN(N151) -> 14 | K151: =LEFT(IF(LEN(N151)<LEN(AY151),AY151,N151),LEN(IF(LEN(N151)<LEN(AY151),AY151,N151))/2) ->  | CI151: =N150 -> 1.11.8.
B152: 3 | C152: =C151 -> G | J152: =COLUMN(N152) -> 14 | K152: =RIGHT(IF(LEN(N151)<LEN(AY151),AY151,N151),LEN(IF(LEN(N151)<LEN(AY151),AY151,N151))/2) -> 
B153: 3 | C153: =IF(C154="GS","S","") ->  | F153: x | G153: x | N153: 1.11.9. | O153: papildus sniegtā informācija, ja tāda ir | AY153: 1.11.9. | AZ153: papildus sniegtā informācija, ja tāda ir
B154: 3 | C154: =IFERROR(IF(OR(N154<>"",AY154<>""),"GS","G"),"GS") -> G | I154: R11109 | J154: =COLUMN(N154) -> 14 | K154: =LEFT(IF(LEN(N154)<LEN(AY154),AY154,N154),LEN(IF(LEN(N154)<LEN(AY154),AY154,N154))/2) ->  | CI154: =N153 -> 1.11.9.
B155: 3 | C155: =C154 -> G | J155: =COLUMN(N155) -> 14 | K155: =RIGHT(IF(LEN(N154)<LEN(AY154),AY154,N154),LEN(IF(LEN(N154)<LEN(AY154),AY154,N154))/2) -> 
B156: 3 | C156: =C157 -> 
B157: 3 | C157: =C158 ->  | F157: x | G157: x | N157: 1.12. | O157: Informācija par meitas sabiedrībām | AY157: 1.12. | AZ157: Informācija par meitas sabiedrībām
B158: 3 | C158: =C159 ->  | O158: Meitas sab. nosaukums | X158: Meitas sab. juridiskā adrese | AF158: Līdzdalības daļa meitas sab. pamatkapitālā % | AK158: Meitas sab. pašu kapitāla apmērs | AP158: Meitas sab. peļņas vai zaudējumu apmērs | AZ158: Meitas sab. nosaukums | BI158: Meitas sab. juridiskā adrese | BQ158: Līdzdalības daļa meitas sab. pamatkapitālā % | BV158: Meitas sab. pašu kapitāla apmērs | CA158: Meitas sab. peļņas vai zaudējumu apmērs
B159: 3 | C159: =C160 -> 
B160: 3 | C160: =IF(C161="GS","S","") -> 
B161: 3 | C161: =IF(OR(O161<>"",AZ161<>""),"GS","G") -> G | I161: R112 | J161: =COLUMN(O161)&";"&COLUMN(X161)&";N:"&COLUMN(AF161)&";L:"&COLUMN(AK161)&";L:"&COLUMN(AP161) -> 15;24;N:32;L:37;L:42 | K161: =O161 -> 0 | N161: 1 | AY161: 1
B162: 3 | C162: G | I162: R112 | J162: =COLUMN(O162)&";"&COLUMN(X162)&";N:"&COLUMN(AF162)&";L:"&COLUMN(AK162)&";L:"&COLUMN(AP162) -> 15;24;N:32;L:37;L:42 | K162: 0 | N162: 2 | AY162: 2
B163: 3 | C163: G | I163: R112 | J163: 15;24;N:32;L:37;L:42 | K163: 0 | N163: 3 | AY163: 3
B164: 3 | C164: G | I164: R112 | J164: 15;24;N:32;L:37;L:42 | K164: 0 | N164: 4 | AY164: 4
B165: 3 | C165: G | I165: R112 | J165: 15;24;N:32;L:37;L:42 | K165: 0 | N165: 5 | AY165: 5
B166: 3 | C166: G | I166: R112 | J166: 15;24;N:32;L:37;L:42 | K166: 0 | N166: 6 | AY166: 6
B167: 3 | C167: G | I167: R112 | J167: 15;24;N:32;L:37;L:42 | K167: 0 | N167: 7 | AY167: 7
B168: 3 | C168: G | I168: R112 | J168: 15;24;N:32;L:37;L:42 | K168: 0 | N168: 8 | AY168: 8
B169: 3 | C169: G | I169: R112 | J169: 15;24;N:32;L:37;L:42 | K169: 0 | N169: 9 | AY169: 9
B170: 3 | C170: G | I170: R112 | J170: 15;24;N:32;L:37;L:42 | K170: 0 | N170: 10 | AY170: 10
B171: 3 | C171: =C172 -> 
B172: 3 | C172: =C173 ->  | F172: x | G172: x | N172: 1.13. | O172: Informācija par asociētajām sabiedrībām | AY172: 1.13. | AZ172: Informācija par asociētajām sabiedrībām
B173: 3 | C173: =C174 ->  | O173: Asoc. sab. nosaukums | X173: Asoc. sab. juridiskā adrese | AF173: Līdzdalības daļa asoc. sab. pamatkapitālā % | AK173: Asoc. sab. pašu kapitāla apmērs | AP173: Asoc. sab. peļņas vai zaudējumu apmērs | AZ173: Asoc. sab. nosaukums | BI173: Asoc. sab. juridiskā adrese | BQ173: Līdzdalības daļa asoc. sab. pamatkapitālā % | BV173: Asoc. sab. pašu kapitāla apmērs | CA173: Asoc. sab. peļņas vai zaudējumu apmērs
B174: 3 | C174: =C175 -> 
B175: 3 | C175: =IF(C176="GS","S","") -> 
B176: 3 | C176: =IF(OR(O176<>"",AZ176<>""),"GS","G") -> G | I176: R113 | J176: =COLUMN(O176)&";"&COLUMN(X176)&";N:"&COLUMN(AF176)&";L:"&COLUMN(AK176)&";L:"&COLUMN(AP176) -> 15;24;N:32;L:37;L:42 | K176: =IF(O176="",AZ176,O176) -> 0 | N176: 1 | AY176: 1
B177: 3 | C177: G | I177: R113 | J177: =COLUMN(O177)&";"&COLUMN(X177)&";N:"&COLUMN(AF177)&";L:"&COLUMN(AK177)&";L:"&COLUMN(AP177) -> 15;24;N:32;L:37;L:42 | K177: =IF(O177="",AZ177,O177) -> 0 | N177: 2 | AY177: 2
B178: 3 | C178: G | I178: R113 | J178: 15;24;N:32;L:37;L:42 | K178: 0 | N178: 3 | AY178: 3
B179: 3 | C179: G | I179: R113 | J179: 15;24;N:32;L:37;L:42 | K179: 0 | N179: 4 | AY179: 4
B180: 3 | C180: G | I180: R113 | J180: 15;24;N:32;L:37;L:42 | K180: 0 | N180: 5 | AY180: 5
B181: 3 | C181: G | I181: R113 | J181: 15;24;N:32;L:37;L:42 | K181: 0 | N181: 6 | AY181: 6
B182: 3 | C182: G | I182: R113 | J182: 15;24;N:32;L:37;L:42 | K182: 0 | N182: 7 | AY182: 7
B183: 3 | C183: G | I183: R113 | J183: 15;24;N:32;L:37;L:42 | K183: 0 | N183: 8 | AY183: 8
B184: 3 | C184: G | I184: R113 | J184: 15;24;N:32;L:37;L:42 | K184: 0 | N184: 9 | AY184: 9
B185: 3 | C185: G | I185: R113 | J185: 15;24;N:32;L:37;L:42 | K185: 0 | N185: 10 | AY185: 10
B186: 3
B187: 3 | C187: =IF(OR(C188="GS",COUNT(AS190:AU193)),"S","") ->  | F187: x | G187: x | N187: 1.14. | O187: Informācija par pārskata gada laikā parakstītajām akcijām vai daļām: | AY187: 1.14. | AZ187: Informācija par pārskata gada laikā parakstītajām akcijām vai daļām:
B188: 3 | C188: =IFERROR(IF(OR(N188<>"",AY188<>"",COUNT(CD190:CF193),COUNT(AS190:AU193)),"GS","G"),"GS") -> G | I188: R114 | J188: =COLUMN(N188) -> 14 | K188: =LEFT(IF(LEN(N188)<LEN(AY188),AY188,N188),LEN(IF(LEN(N188)<LEN(AY188),AY188,N188))/2) ->  | CI188: =N187 -> 1.14.
B189: 3 | C189: =C188 -> G | J189: =COLUMN(N189) -> 14 | K189: =RIGHT(IF(LEN(N188)<LEN(AY188),AY188,N188),LEN(IF(LEN(N188)<LEN(AY188),AY188,N188))/2) -> 
B190: 3 | C190: =IFERROR(IF(OR(AS190<>"",CD190<>""),"GS","G"),"GS") -> G | F190: x | G190: x | I190: R11401 | J190: ="L:"&COLUMN(AS190) -> L:45 | N190: 1.14.1. | O190: skaits | AY190: 1.14.1. | AZ190: skaits
B191: 3 | C191: =IFERROR(IF(OR(AS191<>"",CD191<>""),"GS","G"),"GS") -> G | F191: x | G191: x | I191: R11402 | J191: ="N:"&COLUMN(AS191) -> N:45 | N191: 1.14.2. | O191: nominālvērtība | AY191: 1.14.2. | AZ191: nominālvērtība
B192: 3 | C192: =IFERROR(IF(OR(AS192<>"",CD192<>""),"GS","G"),"GS") -> G | F192: x | G192: x | I192: R11403 | J192: ="N:"&COLUMN(AS192) -> N:45 | N192: 1.14.3. | O192: kopā | AY192: 1.14.3. | AZ192: kopā
B193: 3 | C193: =IFERROR(IF(OR(AS193<>"",CD193<>""),"GS","G"),"GS") -> G | F193: x | G193: x | I193: R11404 | J193: ="L:"&COLUMN(AS193) -> L:45 | N193: 1.14.4. | O193: uzskaites vērtība (jānorāda, ja nav zināms skaits un nominālvērtība) | AY193: 1.14.4. | AZ193: uzskaites vērtība (jānorāda, ja nav zināms skaits un nominālvērtība)
B194: 3 | C194: =C195 -> 
B195: 3 | C195: =C196 ->  | F195: x | G195: x | N195: 1.15. | O195: Informācija par kapitālsabiedrībām, kuras dalībnieks ir personālsabiedrība | AY195: 1.15. | AZ195: Informācija par kapitālsabiedrībām, kuras dalībnieks ir personālsabiedrība
B196: 3 | C196: =IF(C197="GS","S","") ->  | O196: Veids | X196: Nosaukums | AH196: Juridiskā adrese | AZ196: Veids | BI196: Nosaukums | BS196: Juridiskā adrese
B197: 3 | C197: =IFERROR(IF(OR(O197<>"",AZ197<>""),"GS","G"),"GS") -> G | I197: R115 | J197: =COLUMN(O197)&";"&COLUMN(X197)&";"&COLUMN(AH197) -> 15;24;34 | N197: 1 | AY197: 1
B198: 3 | C198: G | I198: R115 | J198: 15;24;34 | N198: 2 | AY198: 2
B199: 3 | C199: G | I199: R115 | J199: 15;24;34 | N199: 3 | AY199: 3
B200: 3 | C200: G | I200: R115 | J200: 15;24;34 | N200: 4 | AY200: 4
B201: 3 | C201: G | I201: R115 | J201: 15;24;34 | N201: 5 | AY201: 5
B202: 3 | C202: G | I202: R115 | J202: 15;24;34 | N202: 6 | AY202: 6
... 1224 more rows

Sheet Šabloni pielikumiem (hidden)
B2: Nr. | C2: Teksta paraugs
B3: 1.3. | C3: Naudas plūsmas pārskats sagatavots pēc netiešās / (tiešās metodes). Naudas plūsmas pārskata mērķiem nauda un naudas ekvivalenti sastāv no atlikumiem naudas kasē, tekošo bankas kontu atlikumiem un īstermiņa depozītiem ar termiņu līdz 90 dienām.
B4: 1.4. | C4: Elektroniskajā deklarēšanas sistēmā (EDS) ievadītais gada pārskata atvasinājums elektroniskā formā pēc sniegtās informācijas satura atbilst Sabiedrības sagatavotajam pilnajam gada pārskatam, tomēr EDS pielikumā informācija ir sniegta citā griezumā, tā neietver pilnībā visu gada pārskata pielikumā iekļauto informāciju un tādējādi EDS sniegtā informācija nav tieši salīdzināma ar pilnajā gada pārskatā iekļauto finanšu pārskata informāciju, ko revidējis zvērināts revidents un par kuru tika izsniegts zvērināta revidenta ziņojums. Pilnu Sabiedrības gada pārskatu par 2019. gadu kopā ar zvērināta revidenta ziņojumu par gada pārskatā iekļauto finanšu pārskatu lūdzu skatīt ieskenētā veidā pievienotajā pielikumā.
B5: 1.4. | C5: Sabiedrības finanšu pārskati ir sagatavoti saskaņā ar Latvijas Republikas likumiem “Par grāmatvedību”, “Gada pārskatu un konsolidēto gada pārskatu likums”, un MK noteikumiem Nr.775 “Gada pārskatu un konsolidēto gada pārskatu likuma piemērošanas noteikumi”. Finanšu pārskatā par naudas vienību lietota Latvijas Republikas naudas vienība euro (Eur). Finanšu pārskats sagatavots atbilstoši šādiem vispārīgajiem principiem: • pieņem, ka sabiedrība darbosies arī turpmāk (darbības turpināšanas princips); • izmanto to pašu grāmatvedības politiku un novērtēšanas metodes, kuras izmantotas iepriekšējā pārskata gadā; • finanšu pārskatā posteņus atzīst un novērtē, izmantojot piesardzības principu, jo īpaši ievērojot šādus nosacījumus: a) finanšu pārskatā iekļauj tikai līdz bilances datumam iegūto peļņu, b) ņem vērā visas saistības, kā arī paredzamās riska summas un zaudējumus, kas radušies pārskata gadā vai iepriekšējos gados, arī tad, ja tie kļuvuši zināmi laikposmā starp bilances datumu un dienu, kad gada pārskatu paraksta vadība, pilnvarotā persona vai pārvaldes institūcija, c) aprēķina un ņem vērā visas aktīvu vērtības samazināšanās un nolietojuma summas neatkarīgi no tā, vai pārskata gads tiek noslēgts ar peļņu vai zaudējumiem; • bilances un peļņas vai zaudējumu aprēķina posteņos summas norāda pēc uzkrāšanas principa, proti, ieņēmumus un izdevumus norāda, ņemot vērā to rašanās laiku, nevis naudas saņemšanas vai izdošanas laiku. Ar pārskata gadu saistītos ieņēmumus un izdevumus norāda neatkarīgi no maksājuma vai rēķina saņemšanas datuma; • izmaksas saskaņo ar ieņēmumiem attiecīgajos pārskata periodos; • bilances aktīva un pasīva posteņus novērtē atsevišķi; • jebkāds ieskaits starp bilances aktīva un pasīva posteņiem vai peļņas vai zaudējumu aprēķina ieņēmumu un izdevumu posteņiem ir aizliegts, • ja tiek izslēgts atsavināts vai likvidēts ilgtermiņa ieguldījumu objekts, savstarpēji ieskaita ar minētā objekta izslēgšanu saistītos ieņēmumus un izmaksas. Peļņas vai zaudējumu aprēķinā norāda neto vērtību — peļņu vai zaudējumus no ilgtermiņa ieguldījumu objekta atsavināšanas, kuru aprēķina kā starpību starp izslēgtā objekta bilances vērtību un tā atsavināšanas vai likvidācijas ieņēmumiem un izdevumiem ar nosacījumu, ka finanšu pārskata pielikumā ir norādītas bruto summas; • bilances un peļņas vai zaudējumu aprēķina posteņos summas norāda, ņemot vērā saimniecisko darījumu saturu un būtību, nevis tikai juridisko formu; • bilances un peļņas vai zaudējumu aprēķina posteņus novērtē atbilstīgi iegādes izmaksām vai ražošanas pašizmaksai. Iegādes izmaksas ir preces vai pakalpojuma pirkšanas cena (atskaitot saņemtās atlaides), kurai pieskaitīti ar pirkumu saistītie papildu izdevumi. Ražošanas pašizmaksa ir izejvielu, pamatmateriālu un palīgmateriālu iegādes izmaksas un citi izdevumi, kas ir tieši saistīti ar attiecīgā objekta izgatavošanu. Ražošanas pašizmaksā drīkst iekļaut arī tādu izmaksu daļas, kas ir netieši saistītas ar objekta izgatavošanu, ja vien šīs izmaksas ir attiecināmas uz to pašu laikposmu. Bilances un/, peļņas vai zaudējumu aprēķina, naudas plūsmas pārskata un pašu kapitāla izmaiņu pārskata konkrētajos posteņos norādīta nozīmīga finanšu informācija, kura būtiski ietekmē gada pārskata lietotāju novērtējumu vai lēmumu pieņemšanu. Maznozīmīgas summas, kuras būtiski neietekmē gada pārskata lietotāju novērtējumu vai lēmumu pieņemšanu, minētajās finanšu pārskata sastāvdaļās norādīta attiecīgos līdzīgu finanšu informāciju apvienojošajos posteņos, šo summu detalizējums sniegts tālāk finanšu pārskata pielikumā.
B6: 1.4. | C6: Aplēšu izmantošana Finanšu pārskatu sagatavošanā sabiedrības valde veikusi vairākas aplēses un pieņēmumus, kas ietekmē atsevišķus finanšu pārskatos ietverto bilances un ieņēmumu un izdevumu pārskata posteņu atlikumu, kā arī iespējamo saistību apmēru. Notikumi nākotnē var ietekmēt minētās aplēses un pieņēmumus. Jebkāda šādu aplēšu un pieņēmumu maiņas ietekme uz sabiedrības darbības rezultātiem tiek uzrādīta finanšu pārskatos tā noteikšanas brīdī.
B7: 1.4. | C7: Ārvalstu valūtu pārvērtēšana euro Visi darījumi ārvalstu valūtās ir pārvērsti euro saskaņā ar grāmatvedībā izmantojamo ārvalstu valūtas kursu, kas ir spēkā darījuma datumā dienas sākumā. Visi monetārie aktīvi ārvalstu valūtā pārskata perioda beigās tiek pārvērtēti euro (Eur) saskaņā ar grāmatvedībā izmantojamo ārvalstu valūtas kursu, kas ir spēkā bilances datumā 31. decembrī dienas beigās un attiecīgās valūtu kursu starpības ir atspoguļotas peļņas vai zaudējumu aprēķinā. Ārvalstu valūtu kursi pārskata perioda beigās pēdējo divu gadu laikā bija sekojoši:
B8: 1.4. | C8: Ilgtermiņa ieguldījumu pārvērtēšana Atkāpjoties no likuma “Gada pārskatu un konsolidēto gada pārskatu likums” normām pamatlīdzekļu objektu, kura vērtība ir būtiski lielāka par tā iegādes izmaksām vai ražošanas pašizmaksu, vai novērtējumu iepriekšējā gada bilancē, var pārvērtēt atbilstoši augstākai vērtībai, ja var pieņemt, ka vērtības paaugstinājums būs ilgstošs. Pārvērtēšanas rezultātā radušos starpību starp novērtējumu, kas veikts, pamatojoties uz iegādes izmaksām vai ražošanas pašizmaksu, un novērtējumu, kas veikts, pamatojoties uz pārvērtēšanu, ja šī starpība ir pozitīva (turpmāk — vērtības pieaugums), iekļauj attiecīgajā bilances aktīva postenī, kurā norādīts pārvērtētais pamatlīdzekļu objekts, un bilances pasīva postenī "Ilgtermiņa ieguldījumu pārvērtēšanas rezerve" iedaļā "Pašu kapitāls". Ilgtermiņa ieguldījumu pārvērtēšanas rezervē neiekļauj summu, kuras apmērā pārvērtēšanas rezultātā radies vērtības pieaugums pilnībā vai daļēji kompensē tā paša pamatlīdzekļu objekta vērtības samazinājuma korekcijas, kas iepriekšējos pārskata gados bija ietvertas peļņas vai zaudējumu aprēķinā kā izmaksas. Šo summu ietver peļņas vai zaudējumu aprēķinā kā ieņēmumus tajā pārskata gadā, kurā konstatēts pamatlīdzekļu objekta vērtības pieaugums. Pārvērtētā pamatlīdzekļu objekta ikgadējo nolietojumu kārtējā pārskata gadā aprēķina, pamatojoties uz šā objekta vērtību attiecīgajā pārskata gadā, un tādās pašās summās ietver peļņas vai zaudējumu aprēķinā kā izmaksas. Ilgtermiņa ieguldījumu pārvērtēšanas rezervi samazina, ja pārvērtētais pamatlīdzekļu objekts ir atsavināts, likvidēts vai tā vērtības palielināšanai vairs nav pamata vai ja veic pārvērtētā pamatlīdzekļu objekta ikgadējo nolietojuma aprēķināšanu. Pārvērtēšanas rezerves samazinājumu ietver peļņas vai zaudējumu aprēķinā kā ieņēmumus tajā pārskata gadā, kurā šāds samazinājums veikts. Ilgtermiņa ieguldījumu pārvērtēšanas rezervi neizmaksā, nesadala dividendēs un neizlietot zaudējumu segšanai, pamatkapitāla palielināšanai, citu rezervju veidošanai vai citiem mērķiem
B9: 1.4. | C9: Ilgtermiņa ieguldījumi nomātajos pamatlīdzekļos Nomāto pamatlīdzekļu kapitālā remonta izmaksas tiek norakstītas pēc lineārās metodes īsākajā no kapitālo uzlabojumu lietderīgās izmantošanas laika un nomas perioda.
B10: 1.4. | C10: Uzkrātās saistības Bilances postenī "Uzkrātās saistības" norāda skaidri zināmās saistību summas pret preču piegādātājiem un pakalpojumu sniedzējiem par pārskata gadā saņemtajām precēm vai pakalpojumiem, par kuriem piegādes, pirkuma vai līguma nosacījumu vai citu iemeslu dēļ bilances datumā vēl nav saņemts maksāšanai paredzēts attiecīgs attaisnojuma dokuments (rēķins). Sabiedrība veido uzkrājumus saistībām pret darbiniekiem par neizmantoto atvaļinājumu. Uzkrātās neizmantoto atvaļinājumu izmaksas tiek aplēstas, reizinot darbinieku vidējo dienas izpeļņu par pārskata gada pēdējiem sešiem mēnešiem ar pārskata gada beigās uzkrāto neizmantoto atvaļinājuma dienas skaitu.
B11: 1.4. | C11: Radniecīgās sabiedrības Radniecīgās sabiedrības ir tādas sabiedrības, kas attiecībā pret sabiedrību, ir koncerna meitas sabiedrība vai koncerna mātes sabiedrība, vai citas šā koncerna meitas sabiedrības, vai šā koncerna meitas sabiedrības meitas sabiedrība.
B12: 1.4. | C12: Asociētās sabiedrības Asociētās sabiedrības ir tādas sabiedrības, kas atrodas citas sabiedrības būtiskā ietekmē, kura tiek nodrošināta ar ne mazāk kā 20, bet ne vairāk kā 50 procentiem no akcionāru vai dalībnieku balsstiesībām šajā sabiedrībā.
B13: 1.4. | C13: Salīdzinošā informācija Atbilstoši likuma prasībām mainīti atsevišķu peļņas vai zaudējumu aprēķina un bilances posteņu nosaukumi, kā arī veikta posteņu pārklasifikācija, pārklasificējot iepriekšējā perioda salīdzinošos rādītājus atbilstoši pārskata gadā lietotajiem principiem, tādejādi pārskata perioda finanšu rādītāji ir savstarpēji salīdzināmi:
B14: 1.4. | C14: Salīdzinošā informācija Finanšu pārskata rādītāji nav salīdzināmi ar iepriekšējo periodu, jo iepriekšējais periods ir par 8 mēnešiem, bet pārskata periods ir par 12 mēnešiem.
B15: 1.4. | C15: Konsolidētais gada pārskats, informācija par koncerna mātes sabiedrību un piemēroto atbrīvojumu nesagatavot konsolidēto gada pārskatu Koncerna mātes sabiedrība piemēro atbrīvojumu no pienākuma sagatavot konsolidēto gada pārskatu, jo tā ir maza koncerna mātes sabiedrība un tās meitas sabiedrību pārvedama vērtspapīri nav iekļauti regulētajā tirgū. Mātes sabiedrība ir atbrīvota no pienākuma sagatavot konsolidēto gada pārskatu, jo tai ir tikai tādas meitas sabiedrības, par kurām informācija gan par katru atsevišķi, gan kā par kopumu, ir nenozīmīga un, kuras izslēdzot no konsolidācijas mātes sabiedrības pārskats kā koncerna pārskats sniedz patiesu un skaidru priekšstatu par šā koncerna darbības rezultātiem un finansiālo stāvokli.
B16: 1.4.1.1. | C16: Nemateriālie ieguldījumi Nemateriālie ieguldījumi galvenokārt sastāv no par atlīdzību iegūtām lietošanas tiesībām, licencēm, patentiem, koncesijām un tam līdzīgām tiesībām. Nemateriālie ieguldījumi tiek novērtēti pēc to sākotnējās izmaksu vērtības, atskaitot uzkrāto nolietojumu. Nolietojums tiek aprēķināts pēc lineārās metodes, pielietojot 33,33% nolietojuma likmi gadā. Izņēmuma gadījumā, ja nemateriālās vērtības vai attīstības izmaksu objekta lietderīgās lietošanas laiku nav iespējams ticami aplēst, to sākotnējo vērtību noraksta pakāpeniski, sadalot pa gadiem laikposmā, kas nav ilgāks par 10 gadiem (katru šādu gadījumu paskaidro finanšu pārskata pielikumā, norādot laikposma ilgumu, kurā paredzēts norakstīt attiecīgā posteņa sākotnējo vērtību).
B17: 1.4.1.2. | C17: Pamatlīdzekļi Pamatlīdzekļi tiek novērtēti pēc to sākotnējās izmaksu vērtības vai pārvērtētās sākotnējās vērtības, atskaitot uzkrāto nolietojumu. Nolietojums tiek aprēķināts pēc lineārās/ ģeometriski degresīvās metodes, pielietojot sekojošas vadības noteiktas pamatlīdzekļu nolietojuma aprēķināšanas likmes, kas balstītas uz pamatlīdzekļu lietderīgās kalpošanas laika novērtējumu, attiecībā uz finanšu uzskaitē esošo pamatlīdzekļu iedalījumu kategorijās: Tabula Aktīvu aplēstās atlikušās vērtības un lietderīgās izmantošanas periodi tiek pārskatīti un nepieciešamības gadījumā koriģēti katrā pārskata datumā. Sabiedrība kapitalizē pamatlīdzekļus, kuru vērtība pārsniedz Eur _____ un derīgās lietošanas laiks pārsniedz 1 gadu. Pamatlīdzekļu kārtējā remonta un uzturēšanas izmaksas tiek iekļautas tā perioda peļņas vai zaudējumu aprēķinā, kurā tās ir radušās. Pamatlīdzekļu objektu uzskaites vērtības atzīšanu pārtrauc, ja tas tiek atsavināts vai gadījumā, kad no aktīva turpmākās lietošanas nākotnē nav gaidāmi nekādi saimnieciskie labumi. Nepabeigtā celtniecība atspoguļo pamatlīdzekļu izveidošanas un nepabeigto celtniecības objektu izmaksas, un tā tiek uzskaitīta sākotnējā vērtībā. Sākotnējā vērtībā ietilpst celtniecības izmaksas un citas tiešās izmaksas. Nepabeigtajai celtniecībai nolietojums netiek aprēķināts, kamēr attiecīgie aktīvi nav pabeigti un nodoti ekspluatācijā. Sabiedrība iekļauj pamatlīdzekļu izveidošanas izmaksās saņemto aizņēmumu, kas izmantoti aktīvu izveidei, procentu izmaksas.
B18: 1.4.1.3. | C18: Ieguldījumi koncerna meitas un asociētajās sabiedrībās, citi ieguldījumi Ilgtermiņa ieguldījumi, ieskaitot ieguldījumus koncerna meitas un asociētajās sabiedrībās, tiek uzskaitīti iegādes vērtībā, kuru koriģē to vērtības ilgstošas palielināšanās vai samazināšanās gadījumos.
B19: 1.4.2.1. | C19: Krājumi Izejvielas, materiāli un preces pārdošanai gada pārskatā tiek novērtēti pēc vidējās svērtās cenas vai FIFO metodes (pirmais iekšā, pirmais ārā). Sabiedrība lieto vienu un to pašu krājumu izlietojuma un atlikumu vērtības noteikšanas metodi visiem līdzīga veida un lietojuma krājumiem. Krājumu vērtību koriģē, lai tie bilances datumā tiktu novērtēti atbilstoši iegādes izmaksām vai ražošanas pašizmaksai, vai zemākajām tirgus cenām šajā datumā, atkarībā no tā, kurš no šiem rādītājiem ir zemāks, vai īpašos gadījumos — atbilstoši neto pārdošanas vērtībai. Krājumu vērtības samazinājuma korekcijas var pārtraukt, ja vērtības samazināšanai vairs nav pamata. Nepabeigto pasūtījumu vērtībā iekļauj materiālu, darbaspēka un citas izmaksas, kas tieši saistītas ar pakalpojumu sniegšanu, kā arī attiecināmā daļa no vispārējām pieskaitāmām izmaksām. Sabiedrība iekļauj krājumu izveidošanas pašizmaksā saņemto aizņēmumu, kas izmantoti aktīvu izveidei, procentu izmaksas.
B20: 1.4.2.2. | C20: Debitori Debitoru parādi novērtēti, ievērojot piesardzības principu, bilancē uzrādot tikai reālos debitorus. Speciālie uzkrājumi šaubīgiem parādiem tiek veidoti gadījumos, kad pēc vadības uzskatiem šo debitoru parādu atgūšana ir apšaubāma, izvērtējot katru debitoru atsevišķi. Bezcerīgie parādi tiek norakstīti pārskata gada zaudējumos.
B21: 1.4.2.3. | C21: Nauda un naudas ekvivalenti Naudas plūsmas pārskata mērķiem nauda un naudas ekvivalenti sastāv no atlikumiem naudas kasē, tekošo bankas kontu atlikumiem un īstermiņa depozītiem ar termiņu līdz 90 dienām.
B22: 1.4.3. | C22: Uzkrājumi Sabiedrība veidot uzkrājumus izdevumu segšanai, ja šo izdevumu būtība ir skaidri noteikta un to rašanās bilances datumā ir paredzama vai zināma vai kuri noteikti radīsies, bet var mainīties šo izdevumu segšanai nepieciešamās summas lielums vai to rašanās datums. Uzkrājumus novērtē saskaņā ar precīzāko grāmatvedības aplēsi par summu, kas nepieciešama bilances datumā, lai segtu šā panta pirmajā daļā minētās saistības vai otrajā daļā minētos izdevumus, kuri varētu rasties. Uzkrājumus nedrīkst izmantot aktīvu vērtības koriģēšanai. Uzkrājumus pārskata katrā bilances datumā. Ja turpmāku notikumu ietekmē mainās apstākļi, kas bija par pamatu līdzšinējam uzkrājumu novērtējumam, vai ir iegūta jauna informācija, sabiedrība maina grāmatvedības aplēsi un koriģē (palielina vai samazina) attiecīgo uzkrājumu summu. Ja vairs netiek izpildīti attiecīgo uzkrājumu atzīšanas nosacījumi, tos izslēdz.
B23: 1.4.4. | C23: Uzkrātās saistības Bilances postenī "Uzkrātās saistības" norāda skaidri zināmās saistību summas pret preču piegādātājiem un pakalpojumu sniedzējiem par pārskata gadā saņemtajām precēm vai pakalpojumiem, par kuriem piegādes, pirkuma vai līguma nosacījumu vai citu iemeslu dēļ bilances datumā vēl nav saņemts maksāšanai paredzēts attiecīgs attaisnojuma dokuments (rēķins). Sabiedrība veido uzkrājumus saistībām pret darbiniekiem par neizmantoto atvaļinājumu. Uzkrātās neizmantoto atvaļinājumu izmaksas tiek aplēstas, reizinot darbinieku vidējo dienas izpeļņu par pārskata gada pēdējiem sešiem mēnešiem ar pārskata gada beigās uzkrāto neizmantoto atvaļinājuma dienas skaitu.
B24: 1.4.5. | C24: Ieņēmumu atzīšana Sabiedrības pamatdarbība ir...................................................................................................... Neto apgrozījums ir gada laikā pārdotās produkcijas un sniegto pakalpojumu vērtības kopsumma atskaitot piešķirtās atlaides un pievienotās vērtības nodokli. Ieņēmumi tiek atzīti pēc sekojošiem principiem: • Trešās personas vārdā iekasētās summas, kuras saņem sabiedrība un kuru dēļ nepalielinās pašu kapitāls, neiekļauj ieņēmumos. • Ieņēmumi no preču pārdošanas Latvijā tiek atzīti, kad pircējs ir preces akceptējis. Ieņēmumi no preču pārdošanas ārpus Latvijas tiek atzīti atbilstoši preču piegādes nosacījumiem. • Ieņēmumi no pakalpojumu sniegšanas tiek atzīti atbilstoši darījuma izpildes pakāpei. • Ieņēmumi no soda un kavējuma naudām tiek atzīti saņemšanas brīdī. • Procentu ieņēmumi tiek atzīti pamatojoties uz proporcionālu laika sadalījumu, ņemot vērā aktīva faktisko ienesīgumu. • Dividendes tiek atzītas brīdī, kad rodas likumīgas tiesības uz tām. • Autoratlīdzību atzīst pēc uzkrāšanas principa saskaņā ar attiecīgo līgumu. Pārējie saimnieciskās darbības ieņēmumi ir dažādi citi ieņēmumi (piemēram, gūto peļņu no ilgtermiņa ieguldījumu objektu atsavināšanas vai no ārvalstu valūtas kursu svārstībām, ieņēmumus no saņemtajām apdrošināšanas atlīdzībām, no saņemtās finanšu palīdzības vai finansiālā atbalsta), kas nav tieši saistīti ar sabiedrības pamatdarbību, bet, kas radušies saimnieciskās darbības rezultātā vai izriet no tās.
B25: 1.4.6. | C25: Ar ilgtermiņa līgumu saistītie ieņēmumi Ar līgumu saistītos ieņēmumos iekļauj: o Ieņēmumu sākotnējo summu, par kuru vienojas līgumā; o Līgumā paredzēto darbu novirzes, prasījumu un veicināšanas maksājumu izmaiņas, ja ir ticams, ka tās radīs ieņēmumus, un ja ir iespējams tās ticami novērtēt. Ar līgumu saistītos ieņēmumus novērtē saņemtās vai saņemamās atlīdzības patiesajā vērtībā. Gaidāmo zaudējumu atzīšana Ja ilgtermiņa līgumu rezultātu ir iespējams ticami aplēst, ar šādu līgumu saistītos ieņēmumus un izmaksas atzīst attiecīgi par ieņēmumiem un izdevumiem, ņemot vērā līgumdarba izpildes apjomu procentos bilances datumā. Ja ir ticams, ka ar līgumu saistītās kopējās izmaksas pārsniegs kopējos ieņēmumus, gaidāmos zaudējumus uzreiz atzīst par izdevumiem
B26: 1.4.7. | C26: Izdevumu atzīšanas principi Izmaksas peļņas vai zaudējuma aprēķinā norāda pēc uzkrāšanas principa, ņemot vērā to rašanās laiku, nevis naudas izdošanas laiku. Ar pārskata saistītos izdevumus norāda neatkarīgi no maksājuma vai rēķina saņemšanas datuma. Izmaksas saskaņo ar ieņēmumiem attiecīgajos pārskata periodos.
B27: 1.7. | C27: Skaidrojums par atkāpšanos no likumā noteiktajiem finanšu pārskata posteņu atzīšanas,novērtēšanas un norādīšanas principiem vai noteikumiem Sagatavojot 2019.gada pārskatu, saskaņā ar “Gada pārskatu un konsolidēto gada pārskatu likuma” normām, sabiedrība, pamatojoties uz likuma 13.panta 4. un 5.daļas nosacījumiem ir atkāpusies no finanšu pārskata posteņu atzīšanas, novērtēšanas un norādīšanas principiem, atspoguļojot finanšu pārskatā atliktā nodokļa saistības, sakarā ar to, ka bez šīs informācijas atspoguļošanas nav ievērots patiesa un skaidra priekšstata princips. Sabiedrība atlikto nodokli ir atzinusi arī iepriekšējos periodos, tā apmērs ir būtisks. Atliktā nodokļa aprēķinā un atspoguļošanā tiek izmantots Starptautiskais grāmatvedības standarts Nr. 12. ”Ienākumu nodokļi”. Atliktā nodokļa aktīvi vai saistības (saskaņā ar SGS) Pārskata gada uzņēmuma ienākuma nodokļa izmaksas ir iekļautas gada pārskatā, pamatojoties uz vadības aprēķiniem saskaņā ar Latvijas Republikas nodokļu likumdošanu. Atliktais nodoklis tiek aprēķināts saskaņā ar saistību metodi attiecībā uz visām pagaidu atšķirībām starp aktīvu un saistību vērtībām finanšu pārskatos un to vērtībām nodokļu aprēķinu mērķiem. Atliktā nodokļa aprēķinos tiek izmantota nodokļu likme, kas sagaidāma periodos, kad pagaidu atšķirības izlīdzināsies. Gadījumos, kad kopējais uzkrātā nodokļa aprēķina rezultāts būtu atspoguļojams bilances aktīvā, to iekļauj gada pārskatā tikai tad, kad tā atgūšana ir droši sagaidāma (sabiedrība iegūs ar nodokli apliekamu peļņu, uz kuru varēs attiecināt pagaidu starpības, kas veidojušas atliktā nodokļa aktīvu). Pārdošanai turēti ilgtermiņa ieguldījumi (novērtēti saskaņā ar SGS) Pamatlīdzekli, kura vērtību paredzēts atgūt to pārdodot, nevis izmantojot saimnieciskajā darbībā, un kurš nav ieguldījuma īpašums, finanšu pārskatos uzrāda atsevišķi kā pārdošanai turētu aktīvu. Pamatlīdzekli uzskata par pārdošanai paredzētu aktīvu, ja tas ir sagatavots tūlītējai pārdošanai, uzņēmuma vadība ir pieņēmusi lēmumu to pārdot un ir uzsākusi aktīvu šā lēmuma īstenošanu. Bilancē pārdošanai turētos pamatlīdzekļus iekļauj apgrozāmo līdzekļu sastāvā un novērtē zemākajā no bilances vērtības un patiesās vērtības, atskaitot izmaksas, kuras būs nepieciešamas, lai pamatlīdzekli pārdotu. Ieguldījuma īpašumi (uzskaitīti un novērtēti SGS) Ieguldījuma īpašumi ir zemes gabali, ēkas, būves vai šo objektu daļas, ko sabiedrība tur (kā īpašnieks vai kā nomnieks saskaņā ar finanšu nomu), lai iegūtu nomas (īres) maksu vai sagaidītu cenas celšanos (vērtības pieaugumu), nevis lai izmantotu paša Sabiedrība. Ēkas un būves 10%
B28: 1.8.8. | C28: Noma bez izpirkuma tiesībām (operatīvā noma) Gadījumos, kad pamatlīdzekļi tiek nomāti uz nomas bez izpirkuma tiesībām noteikumiem, nomas maksājumi un priekšapmaksas maksājumi par nomu tiek iekļauti peļņas vai zaudējuma aprēķinā pēc lineārās metodes nomas perioda laikā.
B29: 1.8.9. | C29: Noma ar izpirkumu (finanšu noma) Gadījumos, kad pamatlīdzekļi, kas iegūti nomā ar izpirkumu (finanšu nomā), saistībā ar kuriem uzņēmumam pāriet visi riski un atlīdzība, kas raksturīga īpašumtiesībām, tiek uzskatīti par Sabiedrības aktīviem tādā vērtībā, par kādu tos varētu iegādāties ar tūlītējo samaksu. Līzinga procentu maksājumi un tiem pielīdzināmi maksājumi tiek iekļauti tā perioda peļņas vai zaudējumu aprēķinā, kurā tie ir radušies.
B30: 1.10. | C30: Būtiski notikumi pēc bilances datuma, kas neattiecas uz pārskata gadu un tāpēc nav iekļauti bilancē vai peļņas vai zaudējumu aprēķinā Finanšu pārskatos tiek atspoguļoti tādi notikumi pēc pārskata gada beigām, kas sniedz papildu informāciju par sabiedrības finansiālo stāvokli bilances sagatavošanas datumā (koriģējošie notikumi). Ja notikumi pēc pārskata gada beigām nav koriģējoši, tie tiek atspoguļoti finanšu pārskatu pielikumos, tikai tad, ja tie ir būtiski.
B31: 1.14. | C31: Pētniecības un attīstības pasākumi un pašu akcijas vai daļas Sabiedrībai nav pētniecības un attīstības pasākumu un tā pārskata gadā nav atpirkusi savas akcijas vai daļas.
B32: 2.1. | C32: Gada pārskata perioda maiņa: Saskaņā ar sabiedrības statūtiem pārskata perioda sākums mainīts no 1.janvāra uz 1.septembri. Šā pārskata gada sākuma rādītāji nav salīdzināmi, jo tie ir par 12 mēnešiem, bet pārskata gada dati ir par 4 mēnešiem.
B33: 5.2. | C33: Finanšu palīdzība un atbalsts, ziedojumi un dāvinājumi Saņemtos finansiālos atbalstus iekļauj ieņēmumos tajā pārskata gadā kurā saņemta finanšu palīdzība vai finansiālais atbalsts. Pamatlīdzekļu izveidošanai saņemtā finanšu palīdzība un atbalsts tiek uzskaitīts kā nākamo periodu ienākumi, kurus pakāpeniski iekļauj ieņēmumos saņemto vai par finanšu palīdzību un atbalstu iegādāto pamatlīdzekļu lietderīgās izmantošanas perioda laikā. Pārējās dotācijas attiecina uz pārskata gada rezultātiem dotāciju saņemšanas periodā. Gadījumā ja sabiedrībai ir pamatota pārliecība par to, ka visi ar finanšu palīdzības saņemšanu saistītie nosacījumi tiks izpildīti un atbalstāmo izdevumu atmaksa tiks saņemta, Sabiedrība saņemamo finansiālo atbalstu iekļauj ieņēmumos pirms atbalstāmo izdevumu atmaksas saņemšanas. Šī summa tiek finanšu pārskatā uzrādīta postenī “Uzkrātie ieņēmumi”.
B34: 7 | C34: Peļņas vai zaudējumu aprēķins sagatavots atbilstoši izdevumu funkcijas metodei/ (izdevumu veidu metodei).

Sheet Revidents (hidden)
A1: =COLUMN(S1)-COLUMN(G1) -> 12 | B1: xmlIdent | C1: xmlClmn | D1: width
G3: Informācija par revidentu | Q3: =IF(Pamatdati!$H$5=Pamatdati!$Q$5,IF(Pamatdati!$H$8-1=Pamatdati!$Q$9,"IPG","PG"),"N") -> PG | S3: Informācija par revidentu
B5: RevZinDat | C5: =COLUMN(M5) -> 13 | G5: Revidenta ziņojuma datums* | S5: Revidenta ziņojuma datums
B6: RevidentsJp | C6: =COLUMN(M6) -> 13 | G6: Zvērinātu revidentu komercsabiedrības reģistrācijas numurs* | S6: Zvērinātu revidentu komercsabiedrības reģistrācijas numurs
B7: RevJpLicNr | C7: =COLUMN(M7) -> 13 | G7: Licences numurs* | S7: Licences numurs
B8: RevFpSertNr | C8: =COLUMN(M8) -> 13 | G8: Sertifikāta numurs* | S8: Sertifikāta numurs
B10: RevKoment | C10: =COLUMN(I10) -> 9 | D10: =CLEAN(LEFT(I10,LEN(I10)/2)) ->  | G10: Komentārs | S10: Komentārs
D11: =CLEAN(RIGHT(I10,LEN(I10)/2)) -> 

Sheet Instrukcija (hidden)
C2: Apraksts: | E2: http://exceldarbariki.mozello.lv/produkti/gpimpexp/
C3: Kā ieslēgt makrosus: | F3: http://exceldarbariki.mozello.lv/produkti/instrukcijas/
B5: Lapas nosaukumi un lapu redzamība | R5: Kā dabūt XML failu no EDS
C7: AKT | D7: Aktīvi | E7: uz lapas PMD šūnā 'F14' = x | J7: PMD | K7: Pamatdati | M7: Vienmēr ir redzama
C8: PSV | D8: Pasīvi | E8: uz lapas PMD šūnā 'F15' = x | J8: PMI | K8: Pamatinformācija | M8: uz lapas PMD šūnā 'F13' = x
C9: PZ1 | D9: PZA1 | E9: uz lapas PMD šūnā 'F16' = x un 'I16' = PZA1 | J9: PvP | K9: Pielikums vai piezīmes | M9: uz lapas PMD šūnā 'F19' = x
C10: PZ2 | D10: PZA2 | E10: uz lapas PMD šūnā 'F16' = x un 'I16' = PZA2 | J10: RVD | K10: Revidents | M10: uz lapas PMD šūnā 'F20' = x
C11: NP1 | D11: NPP1 | E11: uz lapas PMD šūnā 'F17' = x un 'I17' = NPP1 | J11: INST | K11: Instrukcija | M11: uz lapas PMD šūnā 'I13' nav tukšums
C12: NP2 | D12: NPP2 | E12: uz lapas PMD šūnā 'F17' = x un 'I17' = NPP2 | J12: ŠAP | K12: Šabloni pielikumiem | M12: uz lapas PMD šūnā 'I19' nav tukšums
C13: PKIP | D13: PKIP | E13: uz lapas PMD šūnā 'F18' = x
C15: Lai pārslēgties uz lapas gariem nosaukumiem, uz lapas PMD šūnā 'M8' jāizvēlas 'jā'
C16: Uz ŠAP var aizpildīt tekstus, kuri būs redzami uz lapas PvP, ja stāvot uz dzeltenas šūnas atbilstošā punktā, kuram kolonnā 'BH' ir identifikators, nospiest pogu Šablons. Identifikatoram uz abām lapām jājūt vienādam. Kā variants var izmantot punkta numuru, kā identifikatoru (paraugs 1.3.).
B19: Instrukcija - auditoriem
C20: 1. Šūnā 'K15' noradiet "1. no EDS XML uz šo rīku"
C21: 2. Nospiediet pogu Nolasīt gada pārskatu (1). Atvērtā logā uzradiet EDS XML failu. Poga ir redzama, ja šūnā 'K15' noradiet "1. no EDS XML uz šo rīku"
C22: 3. Ja nepieciešams ielādēt vēl vienu pārskatu, tad nospiediet pogu Nolasīt gada pārskatu (2). Atvērtā logā uzradiet EDS XML failu.
C23: Kad ir ielādēts otrais pārskats, tas starp tiem uz katras lapas būs krāsainas šūnas.
C24: Ja šūna ir zaļa, tad dari rindā pilnīgi sakrīt. Ja roza, tad ir atšķirības vismaz vienā simbolā.
C25: 4. Katru reizi kad tiek ielādēta informācija uz bloku 1. vai 2.,
C26: vispirms tiek automātiski iztukšojas visas šūnas (dzeltenas kad ir 1., zaļas kad ir 2.) atbilstošā blokā.
C27: 5. Ja nepieciešams iztukšot failu no datiem. Tad palaidiet datu nolasīšanu, bet atceliet faila izvēli.
C28: Tad dati tiks iztukšot, bet jauni netiks ielādēti. Ja izmantojat Bloku 2., tad iztukšojiet vispirms to, un tad Bloku 1.
C29: 6. Ar pogu Eksportēt var eksportēt visas šī rīka lapas, kas attiecas uz EDS GP, uz tukšu failu.
B31: Instrukcija - grāmatvežiem
C32: 1. Šūnā 'K15' noradiet "2. uz EDS XML no šī rīka"
C33: 2. Aizpildiet visus nepieciešamus datus. Aizpildīšanai paredzētas tikai dzeltenas šūnas.
C34: Gaiši dzeltena - manuālai ievadīšanai, nedaudz tumši dzeltena - tur ir izkrītošais saraksts, kur var izvelēties vērtību.
C35: Svarīgi - aizpildiet datus atbilstošā formātā - cipari, teksts datums.
C36: Ja tur kur jābūt datumam vai cipariem, būs teksts, tad tādi dati var neimportēties uz EDS.
C37: 3. Uz vairākām lapām ir rindas kuras paslēptas vai sagrupētas.
C38: Paslēptas rindas kuras parasti nav aktuālas Jūsu uzņēmuma lielumam (lapa PMD šūnas 'F24:F27'). Sagrupētas rindas kur nav ievadīti dati.
C39: Ja nepieciešams, var atvērt sagrupētas vai paslēptas rindas.
C40: Kad fails tiek atvērts no jauna, tad notiek automātiska pārgrupēšana, un tur kur dati ir aizpildīti, rindas vairs nebūs sagrupētas.
C41: Kā arī var veikt šo pārgrupēšanu nospiežot uz lapas PMD pogu Pārgrupēt rindas.
C42: 4. Kad dati ir gatavi eksportam uz EDS, tad nospiediet pogu Sagatavot XML failu. Poga ir redzama, ja šūnā 'K15' noradiet "2. uz EDS XML no šī rīka"
C43: Tad blakus šim failam tiks izveidota mape 'GP XML' un tajā tiks izveidots XML fails
C44: Ja nepieciešams, tad XML failu var veidot atkārtoti tik daudz cik tas ir nepieciešams. Jaunai fails tiks ierakstīt pa virsu vecam XML.
B46: Pastāv iespēja apvienot Jūsu GP Excel formu ar šo rīku, lai savienot daļu no datiem ar formulām, kas var ietaupīt Jūsu laiku nākotnē.

Sheet <-eds-uzņ-> (hidden)

Sheet Klasifikācija (hidden)
G2: =SUM(G6:G1048576) -> 0 | H2: 0 | I2: 0 | J2: 0 | K2: 0 | L2: 0 | M2: 0 | N2: 0
B4: Tips | C4: Rindas kods | E4: Konts | F4: Nosaukums | G4: Pārskata gads | K4: Iepriekšējais gads
C5: Debets | D5: Kredits | G5: B.Saldo | H5: Debets | I5: Kredīts | J5: S.Atl | K5: B.Saldo | L5: Debets | M5: Kredīts | N5: S.Atl

Sheet VgDati (hidden)
A2: Pārskata gads | L2: Iepriekšējā pārskata gads
A4: Konts | B4: Nosaukums | C4: Sāk.D.Saldo | D4: Sāk.K.Saldo | E4: D.Apgroz. | F4: K.Apgroz. | G4: Beigu D.Saldo | H4: Beigu K.Saldo | L4: Konts | M4: Nosaukums | N4: Sāk.D.Saldo | O4: Sāk.K.Saldo | P4: D.Apgroz. | Q4: K.Apgroz. | R4: Beigu D.Saldo | S4: Beigu K.Saldo

Sheet TabSchema (hidden)
A2: R112 | B2: Nosaukums | C2: Adrese | D2: Lidzdaliba | E2: Kapitals | F2: Pelna
A3: R113 | B3: Nosaukums | C3: Adrese | D3: Lidzdaliba | E3: Kapitals | F3: Pelna
A4: R115 | B4: Veids | C4: Nosaukums | D4: Adrese
A5: R116 | B5: Nosaukums | C5: Adrese | D5: Institucija | E5: InstitucijasAdrese | F5: MatesNosaukums | G5: MatesAdrese | H5: MatesInstitucija | I5: MatesInstitucijasAdrese
A6: R117 | B6: Darijums | C6: Summa
A7: R204 | B7: Aplese | C7: Korekcija | D7: Skaidrojums | E7: Informacija
A8: R205 | B8: Kluda | C8: Korekcija | D8: Iemesli | E8: Izmainas
A9: R3010401 | B9: Kategorija | C9: Vertiba | D9: IzmainasPelna | E9: IzmainasRezerve
A10: R30105 | B10: Grupa | C10: Bilance | D10: PatiesaVertiba | E10: Starpiba
A11: R30106 | B11: Bilance | C11: PatiesaVertiba | D11: Skaidrojums
A12: R30107 | B12: Instruments | C12: Skaits | D12: Tiesibas
A13: R30108 | B13: Akcijas | C13: Skaits | D13: Vertiba | E13: Kopsumma | F13: UzskaitesVertiba | G13: Ipatsvars | H13: Iemesls
A14: R30109 | B14: Grupa | C14: Kopsumma | D14: Nosacijumi
A15: R3020101 | B15: Amats | C15: IzsniegsanasDatums | D15: Summa | E15: Likme | F15: SanemtaSumma | G15: Parads | H15: AtmaksasDatums
A16: R3020102 | B16: Amats | C16: IzsniegsanasDatums | D16: Summa | E16: Likme | F16: SanemtaSumma | G16: Parads | H16: AtmaksasDatums
A17: R30203 | B17: Amats | C17: Aprekinats | D17: Datums | E17: Izsniegts | F17: Parsniegums
A18: R30204 | B18: PapildusInformacija | C18: Summa | D18: Izmainas | E18: Atlikums
A19: R3020501 | B19: PapildusInformacija | C19: Summa | D19: Izmainas | E19: Atlikums
A20: R3020502 | B20: PapildusInformacija | C20: Summa | D20: Izmainas | E20: Atlikums
A21: R401 | B21: Veids | C21: Skaits | D21: NominalVertiba | E21: UzskaitesVertiba
A22: R40201 | B22: Objekts | C22: RezerveSakuma | D22: RezerveBeigas | E22: Vertiba | F22: Korekcijas | G22: PamatlidzeklisNavParvertesana | H22: PamatlidzeklisParvertesana
A23: R40202 | B23: Objekts | C23: RezerveSakuma | D23: RezerveBeigas | E23: Vertiba | F23: Korekcijas | G23: PamatlidzeklisNavParvertesana | H23: PamatlidzeklisParvertesana
A24: R40203 | B24: Objekts | C24: RezerveSakuma | D24: RezerveBeigas | E24: Vertiba | F24: Korekcijas | G24: PamatlidzeklisNavParvertesana | H24: PamatlidzeklisParvertesana
A25: R40204 | B25: Objekts | C25: RezerveSakuma | D25: RezerveBeigas | E25: Vertiba | F25: Korekcijas | G25: PamatlidzeklisNavParvertesana | H25: PamatlidzeklisParvertesana
A26: R40206 | B26: NovertesanasDatums | C26: Laikposms
A27: R403 | B27: Instruments | C27: VertibaSakuma | D27: VertibaBeigas | E27: Starpiba
A28: R404 | B28: Veids | C28: RasanasLaiks | D28: SegsanasLaiks | E28: Summa | F28: LikmesIzmainas
A29: R40504 | B29: Veids | C29: Summa | D29: PapildusSniegtaInformacija
A30: R40505 | B30: Summa | C30: PapildusSniegtaInformacija
A31: R40506 | B31: Veids | C31: Summa | D31: PapildusSniegtaInformacija
A32: R50101 | B32: Nace | C32: Summa
A33: R50102 | B33: Valsts | C33: Summa
A34: R502 | B34: Sniedzejs | C34: Gads | D34: Summa | E34: Merkis | F34: Nosacijumi | G34: AtmaksajamaSumma
A35: R504 | B35: Objekts | C35: Bilance | D35: Ienemumi | E35: Izdevumi | F35: Bruto | G35: Pelna
A36: R505 | B36: Pasutitajs | C36: Izmaksas | D36: Ienemumi | E36: Zaudejumi | F36: Avansi | G36: Aiztureti
A37: R506 | B37: Veids | C37: Summa
A38: R507 | B38: Objekts | C38: Bilance | D38: Samazinajums | E38: BilanceBeigas
A39: R6 | B39: PostenisNo | C39: PostenisUz | D39: Summa

Sheet Saraksti (hidden)
B2: PP_4.5.4. | C2: Xml
B3: 1.1. - Aizņēmumi pret obligācijām, kuru samaksas termiņš ilgāks par 5 gadiem (likuma 52.panta pirmās daļas 5.punkts)
B4: 1.2. - Aizņēmumi pret obligācijām, kuri segti ar nodrošinājumu, norādot nodrošinājuma veidu un formu (likuma 52.panta pirmās daļas 5.punkts)
B5: 2.1. - Akcijās pārvēršamie aizņēmumi kuru samaksas termiņš ilgāks par 5 gadiem (likuma 52.panta pirmās daļas 5.punkts)
B6: 2.2. - Akcijās pārvēršamie aizņēmumi, kuri segti ar nodrošinājumu, norādot nodrošinājuma veidu un formu (likuma 52.panta pirmās daļas 5.punkts)
B7: 3.1. - Aizņēmumi no kredītiestādēm, kuru samaksas termiņš ilgāks par 5 gadiem (likuma 52.panta pirmās daļas 5.punkts)
B8: 3.2. - Aizņēmumi no kredītiestādēm, kuri segti ar nodrošinājumu, norādot nodrošinājuma veidu un formu (likuma 52.panta pirmās daļas 5.punkts)
B9: 4.1. - Citi aizņēmumi, kuru samaksas termiņš ilgāks par 5 gadiem (likuma 52.panta pirmās daļas 5.punkts)
B10: 4.2. - Citi aizņēmumi, kuri segti ar nodrošinājumu, norādot nodrošinājuma veidu un formu (likuma 52.panta pirmās daļas 5.punkts)
B11: 5.1. - Aizņēmumi no radniecīgajām sabiedrībām, kuru samaksas termiņš ilgāks par 5 gadiem (likuma 52.panta pirmās daļas 5.punkts)
B12: 5.2. - Aizņēmumi no radniecīgajām sabiedrībām, kuri segti ar nodrošinājumu, norādot nodrošinājuma veidu un formu (likuma 52.panta pirmās daļas 5.punkts)
B13: 6.1. - Aizņēmumi no asociētajām sabiedrībām, kuru samaksas termiņš ilgāks par 5 gadiem (likuma 52.panta pirmās daļas 5.punkts)
B14: 6.2. - Aizņēmumi no asociētajām sabiedrībām, kuri segti ar nodrošinājumu, norādot nodrošinājuma veidu un formu (likuma 52.panta pirmās daļas 5.punkts)
B15: 7.1. - Maksājamie vekseļi, kuru samaksas termiņš ir ilgāks par 5 gadiem (likuma 52. panta pirmās daļas 5. punkts)
B16: 7.2. - Maksājamie vekseļi, kuri segti ar nodrošinājumu, norādot nodrošinājuma veidu un formu (likuma 52.panta pirmās daļas 5.punkts)
B18: PP_4.5.6.
B19: 1.1. - Parādi piegādātājiem un darbuzņēmējiem, kuru samaksas termiņš ilgāks par 5 gadiem pēc bilances datuma (likuma 52.panta pirmās daļas 5.punkts)
B20: 1.2. - Parādi piegādātājiem un darbuzņēmējiem, kuri segti ar nodrošinājumu, norādot nodrošinājuma veidu un formu (likuma 52.panta pirmās daļas 5.punkts)
B21: 2.1. - No pircējiem saņemtie avansi, kuru segšanas termiņš ilgāks par 5 gadiem pēc bilances datuma (likuma 52.panta pirmās daļas 5.punkts)
B22: 2.2. - No pircējiem saņemtie avansi, kuri segti ar nodrošinājumu, norādot nodrošinājuma veidu un formu (likuma 52.panta pirmās daļas 5.punkts)
B23: 3.1. - Pārējo kreditoru parādi, kuru samaksas termiņš ilgāks par 5 gadiem pēc bilances datuma (likuma 52.panta pirmās daļas 5.punkts)
B24: 3.2. - Pārējie kreditoru parādi, kuri segti ar nodrošinājumu, norādot nodrošinājuma veidu un formu (likuma 52.panta pirmās daļas 5.punkts)
B25: 4. - Neizmaksātās dividendes, kuru izmaksas termiņš ir ilgāks par 5 gadiem pēc bilances datuma
B27: PP_3.1.7.
B28: Līdzdalības apliecības | C28: 1
B29: Regulētā tirgū tirgotas garantijas | C29: 2
B30: Iespējas līgumi | C30: 3
B32: PP_3.1.8.
B33: Atpirktās | C33: 1
B34: Pārdotās | C34: 2
B35: Iegūtās un turētās | C35: 3
B37: PM_6
B38: Saimnieciskā darbība tiek turpināta pilnā vai ierobežotā apjomā | C38: 1
B39: Saimnieciskā darbība tiek izbeigta | C39: 2
B41: PZAType
B42: PZA1 - Klasificēts pēc izdevumu veidiem | C42: 1
B43: PZA2 - Klasificēts pēc izdevumu funkcijām | C43: 2
B45: NPPType
B46: NPP1 - NPP pēc tiešās metodes | C46: 1
B47: NPP2 - NPP pēc netiešās metodes | C47: 2
B49: PM_10
B50: euro | C50: V
B51: tukstoši euro | C51: T
B52: miljoni euro | C52: M
B54: PM_12
B55: Kapitālsabiedrība | C55: 1
B56: Personālsabiedrība | C56: 2
B57: Kooperatīva sabiedrība | C57: 3
B58: Individuālais uzņēmums, zemnieka vai zvejnieka saimniecība | C58: 4
B60: PM_13
B61: uzņēmuma grāmatvedis | C61: 1
B62: ārpakalpojuma grāmatvedis | C62: 2
B63: valdes loceklis | C63: 3
B65: PP_1.15.
B66: Sabiedrība ar ierobežotu atbildību | C66: 1
B67: Akciju sabiedrība | C67: 2
B69: PP_4.1.
B70: Parastās | C70: 1
B71: Priekšrocību | C71: 2
B72: Personāla | C72: 3
B74: Gp tips
B75: Uzņēmuma gada pārskats | C75: UGP
B76: Konsolidētais uzņēmuma gada pārskats | C76: UKGP
B77: Biedrības, nodibinājuma un arodbiedrības gada pārskats | C77: BNAGPv3

Sheet Tiesibas (hidden)
D2: DatumsNo | E2: 2025-09-09 | H2: TisWbName | I2: ThisWbCustId | J2: RN | K2: ActivationDate | L2: CompName/Path | M2: Processor/HddSerialId | N2: PROCESSOR_REVISION | O2: USERNAME
D3: DatumsLidz | E3: 2025-09-20 | H3: GPB | I3: 1 | J3: 25 | K3: 2020-09-09 | L3: - | M3: - | N3: - | O3: -
D4: Skaitītājs
D6: ThisWbName | E6: GPB
D7: ThisWbCustId | E7: 1
D8: Limenis | E8: D
D10: Nesakonfigurētas tiesības!
D11: Nesakonfigurētas tiesības versijai!
D12: Versijas periods ir beidzies!
D13: Versijas apstrādes uzņēmuma RegNr neatbilst definētam!
D14: Izvelētais RegNr nav definēts šajā versijā!
D15: Lūdzu aizpildiet reģistrācijas numuru!
D16: Versijas Importa/Eksporta skaits sasniedza 20!
D17: Lūdzu veikt faila aktivāciju uz lapas "Instrukcija"!
D18: Fails jau ir aktivizēts šim datoram un lietotājam!
D21: Īstais | E21: Garais
D22: PMD | E22: Pamatdati
D23: PMI | E23: Pamatinformācija
D24: AKT | E24: Aktīvi
D25: PSV | E25: Pasīvi
D26: PZ1 | E26: PZA1
D27: PZ2 | E27: PZA2
D28: NP1 | E28: NPP1
D29: NP2 | E29: NPP2
D30: PvP | E30: Pielikums vai piezīmes
D31: ŠAP | E31: Šabloni pielikumiem
D32: RVD | E32: Revidents
D33: INST | E33: Instrukcija
D34: VG | E34: VgDati
D35: KLAS | E35: Klasifikācija

Sheet Format (hidden)
A1: B_F+
K2: =ROUND(SUMIFS(Klasifikācija!$G:$G,Klasifikācija!$B:$B,"B",Klasifikācija!$C:$C,$J2,Klasifikācija!$G:$G,">0")+SUMIFS(Klasifikācija!$G:$G,Klasifikācija!$B:$B,"B",Klasifikācija!$D:$D,$J2,Klasifikācija!$G:$G,"<0"),0) -> 0 | L2: =ROUND(SUMIFS(Klasifikācija!$K:$K,Klasifikācija!$B:$B,"B",Klasifikācija!$C:$C,$J2,Klasifikācija!$K:$K,">0")+SUMIFS(Klasifikācija!$K:$K,Klasifikācija!$B:$B,"B",Klasifikācija!$D:$D,$J2,Klasifikācija!$K:$K,"<0"),0) -> 0
A3: P2_F ien
K4: =-ROUND(SUMIFS(Klasifikācija!$I:$I,Klasifikācija!$B:$B,"P2",Klasifikācija!$D:$D,$J4)+SUMIFS(Klasifikācija!$H:$H,Klasifikācija!$B:$B,"P2",Klasifikācija!$C:$C,$J4),0) -> 0 | L4: =-ROUND(SUMIFS(Klasifikācija!$M:$M,Klasifikācija!$B:$B,"P2",Klasifikācija!$D:$D,$J4)+SUMIFS(Klasifikācija!$L:$L,Klasifikācija!$B:$B,"P2",Klasifikācija!$C:$C,$J4),0) -> 0
A5: B_F_P2
K6: ='PZA2'!$K$38 -> 0 | L6: ='PZA2'!$L$38 -> 0
A7: Klas_FMT
G8: =SUMIFS(VgDati!$G:$G,VgDati!$A:$A,$E8)-SUMIFS(VgDati!$H:$H,VgDati!$A:$A,$E8) -> 0 | H8: =SUMIFS(VgDati!$E:$E,VgDati!$A:$A,$E8) -> 0 | I8: =-SUMIFS(VgDati!$F:$F,VgDati!$A:$A,$E8) -> 0 | J8: =SUMIFS(VgDati!$C:$C,VgDati!$A:$A,$E8)-SUMIFS(VgDati!$D:$D,VgDati!$A:$A,$E8) -> 0 | K8: =SUMIFS(VgDati!$R:$R,VgDati!$L:$L,$E8)-SUMIFS(VgDati!$S:$S,VgDati!$L:$L,$E8) -> 0 | L8: =SUMIFS(VgDati!$P:$P,VgDati!$L:$L,$E8) -> 0 | M8: =-SUMIFS(VgDati!$Q:$Q,VgDati!$L:$L,$E8) -> 0 | N8: =SUMIFS(VgDati!$N:$N,VgDati!$L:$L,$E8)-SUMIFS(VgDati!$O:$O,VgDati!$L:$L,$E8) -> 0
A10: B_F-
K11: =-ROUND(SUMIFS(Klasifikācija!$G:$G,Klasifikācija!$B:$B,"B",Klasifikācija!$C:$C,$J11,Klasifikācija!$G:$G,">0")+SUMIFS(Klasifikācija!$G:$G,Klasifikācija!$B:$B,"B",Klasifikācija!$D:$D,$J11,Klasifikācija!$G:$G,"<0"),0) -> 0 | L11: =-ROUND(SUMIFS(Klasifikācija!$K:$K,Klasifikācija!$B:$B,"B",Klasifikācija!$C:$C,$J11,Klasifikācija!$K:$K,">0")+SUMIFS(Klasifikācija!$K:$K,Klasifikācija!$B:$B,"B",Klasifikācija!$D:$D,$J11,Klasifikācija!$K:$K,"<0"),0) -> 0
A12: P2_F izm
K13: =ROUND(SUMIFS(Klasifikācija!$I:$I,Klasifikācija!$B:$B,"P2",Klasifikācija!$D:$D,$J13)+SUMIFS(Klasifikācija!$H:$H,Klasifikācija!$B:$B,"P2",Klasifikācija!$C:$C,$J13),0) -> 0 | L13: =ROUND(SUMIFS(Klasifikācija!$M:$M,Klasifikācija!$B:$B,"P2",Klasifikācija!$D:$D,$J13)+SUMIFS(Klasifikācija!$L:$L,Klasifikācija!$B:$B,"P2",Klasifikācija!$C:$C,$J13),0) -> 0

Sheet VgKlas (hidden)
A1: Tips | B1: Debets | C1: Kredits | D1: Konts
